 Batch Number,Vendor Name,Invoice Number, Line,Line Amount,Account Description,Issue Date ,Total Amount Paid,Department,Proclass
141671,DEPARTMENT FOR WORK & PENSIONS,9002*,1,585.00,DWP NHS CHARGES,02/11/16,585.00,Compensation Budgets,Statutory Bodies
141382,DEPARTMENT FOR WORK & PENSIONS,9623,1,829.00,DWP NHS CHARGES,02/11/16,829.00,Compensation Budgets,Statutory Bodies
902686,BABCOCK CRITICAL SERVICES LTD,SMAI001697,1,"255,538.34",VEHICLES,02/11/16,"891,011.99",Procurement,Consultancy
902686,BABCOCK CRITICAL SERVICES LTD,SMAI001697,2,"619,526.84",VEHICLES,02/11/16,,Procurement,Consultancy
902686,BABCOCK CRITICAL SERVICES LTD,SMAI001697,3,"2,234.21",LOST & NFWT OPS EQUIPMENT,02/11/16,,Procurement,Consultancy
902686,BABCOCK CRITICAL SERVICES LTD,SMAI001697,4,"5,188.71",VEHICLES NWFT,02/11/16,,Procurement,Consultancy
902686,BABCOCK CRITICAL SERVICES LTD,SMAI001697,5,"2,398.97",ACCIDENT REPAIRS,02/11/16,,Procurement,Consultancy
902686,BABCOCK CRITICAL SERVICES LTD,SMAI001697,6,"1,560.18",ACCIDENT REPAIRS,02/11/16,,Procurement,Consultancy
902686,BABCOCK CRITICAL SERVICES LTD,SMAI001697,7,"2,571.36",PURCHASES-PLANT/MACHINERY,02/11/16,,Procurement,Consultancy
902686,BABCOCK CRITICAL SERVICES LTD,SMAI001697,8,545.82,MODIFICATIONS,02/11/16,,Procurement,Consultancy
902686,BABCOCK CRITICAL SERVICES LTD,SMAI001697,9,"1,155.00",VEHICLES,02/11/16,,Procurement,Consultancy
902686,BABCOCK CRITICAL SERVICES LTD,SMAI001697,10,292.56,GENERAL,02/11/16,,LFB 150th Anniversary,Consultancy
311016K,SYNERGY HEALTH LAB SERVICE LTD,0000173629,1,265.00,DRUG & ALCOHOL TESTS,03/11/16,265.00,HR Management,Healthcare
281016K,BRIGLY FIRE LTD,0150,1,"3,666.60",CONSULTANTS,03/11/16,"3,666.60",Fire Safety Regulation,Fire & Rescue
271016G,VIMPEX LIMITED================,100035,1,"1,006.40",CLOTHING,03/11/16,"1,635.40",Cadets,Fire & Rescue
271016G,VIMPEX LIMITED================,100035,2,629.00,CLOTHING,03/11/16,,Cadets,Fire & Rescue
311016K,INFOR (UNITED KINGDOM) LIMITED,11620902-GB04G,1,"2,040.00",MAINTENANCE & SUPPORT,03/11/16,"2,040.00",Information and Communication Technology,ICT
311016K,INFOR (UNITED KINGDOM) LIMITED,11620912-GB0G,1,"1,360.00",MAINTENANCE & SUPPORT,03/11/16,"2,040.00",Information and Communication Technology,ICT
311016K,INFOR (UNITED KINGDOM) LIMITED,11620912-GB0G,2,680.00,MAINTENANCE & SUPPORT,03/11/16,,Information and Communication Technology,ICT
311016K,RESPIREX======================,157536,1,130.00,OPERATIONAL EQUIP-PURCHASE,03/11/16,"1,690.00",Operational Policy,Clothing
311016K,RESPIREX======================,157536,2,390.00,OPERATIONAL EQUIP-PURCHASE,03/11/16,,Operational Policy,Clothing
311016K,RESPIREX======================,157536,3,325.00,OPERATIONAL EQUIP-PURCHASE,03/11/16,,Operational Policy,Clothing
311016K,RESPIREX======================,157536,4,585.00,OPERATIONAL EQUIP-PURCHASE,03/11/16,,Operational Policy,Clothing
311016K,RESPIREX======================,157536,5,260.00,OPERATIONAL EQUIP-PURCHASE,03/11/16,,Operational Policy,Clothing
800090370,TOTAL SUPPORT SERVICES,161013,1,768.28,REACTIVE APPLIANCE BAY DOORS,03/11/16,"2,223.28",Technical and Service Support,Works - Construction
800090370,TOTAL SUPPORT SERVICES,161013,2,120.00,REACTIVE APPLIANCE BAY DOORS,03/11/16,,Technical and Service Support,Works - Construction
800090370,TOTAL SUPPORT SERVICES,161013,3,200.00,REACTIVE APPLIANCE BAY DOORS,03/11/16,,Technical and Service Support,Works - Construction
800090370,TOTAL SUPPORT SERVICES,161013,4,200.00,REACTIVE APPLIANCE BAY DOORS,03/11/16,,Technical and Service Support,Works - Construction
800090370,TOTAL SUPPORT SERVICES,161013,5,160.00,REACTIVE APPLIANCE BAY DOORS,03/11/16,,Technical and Service Support,Works - Construction
800090370,TOTAL SUPPORT SERVICES,161013,6,215.00,REACTIVE APPLIANCE BAY DOORS,03/11/16,,Technical and Service Support,Works - Construction
800090370,TOTAL SUPPORT SERVICES,161013,7,140.00,REACTIVE APPLIANCE BAY DOORS,03/11/16,,Technical and Service Support,Works - Construction
800090370,TOTAL SUPPORT SERVICES,161013,8,120.00,REACTIVE APPLIANCE BAY DOORS,03/11/16,,Technical and Service Support,Works - Construction
800090370,TOTAL SUPPORT SERVICES,161013,9,160.00,REACTIVE APPLIANCE BAY DOORS,03/11/16,,Technical and Service Support,Works - Construction
800090370,TOTAL SUPPORT SERVICES,161013,10,140.00,REACTIVE APPLIANCE BAY DOORS,03/11/16,,Technical and Service Support,Works - Construction
171016K,GREATER LONDON AUTHORITY======,1800006205,1,"3,900.00",FIRE AUTHS-MUTUAL ASSISTANCE,03/11/16,"3,900.00",Communications,Statutory Bodies
141670,LONDON PENSIONS FUND AUTHORITY,1868,1,"82,564.29",LOCAL GOVT PENSION SCHEME PAYM,03/11/16,"82,564.29",Central Finance,Financial Services
251016K,DYSLEXIA ACTION,211984,1,400.00,LEARNING SUPPORT,03/11/16,400.00,Development and Training,Human Resources
800090364,MAINTENANCE ASSOCIATED,24947,1,24.44,PLANNED PEST CONTROL,03/11/16,"1,280.95",Technical and Service Support,Environmental Services
800090364,MAINTENANCE ASSOCIATED,24947,2,97.75,PLANNED PEST CONTROL,03/11/16,,Technical and Service Support,Environmental Services
800090364,MAINTENANCE ASSOCIATED,24947,3,24.44,PLANNED PEST CONTROL,03/11/16,,Technical and Service Support,Environmental Services
800090364,MAINTENANCE ASSOCIATED,24947,4,19.55,PLANNED PEST CONTROL,03/11/16,,Technical and Service Support,Environmental Services
800090364,MAINTENANCE ASSOCIATED,24947,5,108.28,PLANNED PEST CONTROL,03/11/16,,Technical and Service Support,Environmental Services
800090364,MAINTENANCE ASSOCIATED,24947,6,29.33,PLANNED PEST CONTROL,03/11/16,,Technical and Service Support,Environmental Services
800090364,MAINTENANCE ASSOCIATED,24947,7,820.00,PLANNED PEST CONTROL,03/11/16,,Technical and Service Support,Environmental Services
800090364,MAINTENANCE ASSOCIATED,24947,8,29.33,PLANNED PEST CONTROL,03/11/16,,Technical and Service Support,Environmental Services
800090364,MAINTENANCE ASSOCIATED,24947,9,19.55,PLANNED PEST CONTROL,03/11/16,,Technical and Service Support,Environmental Services
800090364,MAINTENANCE ASSOCIATED,24947,10,108.28,PLANNED PEST CONTROL,03/11/16,,Technical and Service Support,Environmental Services
800090359,MAINTENANCE ASSOCIATED,24948,1,97.75,PLANNED PEST CONTROL,03/11/16,489.53,Technical and Service Support,Environmental Services
800090359,MAINTENANCE ASSOCIATED,24948,2,48.88,PLANNED PEST CONTROL,03/11/16,,Technical and Service Support,Environmental Services
800090359,MAINTENANCE ASSOCIATED,24948,3,39.10,PLANNED PEST CONTROL,03/11/16,,Technical and Service Support,Environmental Services
800090359,MAINTENANCE ASSOCIATED,24948,4,48.88,PLANNED PEST CONTROL,03/11/16,,Technical and Service Support,Environmental Services
800090359,MAINTENANCE ASSOCIATED,24948,5,48.88,PLANNED PEST CONTROL,03/11/16,,Technical and Service Support,Environmental Services
800090359,MAINTENANCE ASSOCIATED,24948,6,24.44,PLANNED PEST CONTROL,03/11/16,,Technical and Service Support,Environmental Services
800090359,MAINTENANCE ASSOCIATED,24948,7,24.44,PLANNED PEST CONTROL,03/11/16,,Technical and Service Support,Environmental Services
800090359,MAINTENANCE ASSOCIATED,24948,8,29.33,PLANNED PEST CONTROL,03/11/16,,Technical and Service Support,Environmental Services
800090359,MAINTENANCE ASSOCIATED,24948,9,19.55,PLANNED PEST CONTROL,03/11/16,,Technical and Service Support,Environmental Services
800090359,MAINTENANCE ASSOCIATED,24948,10,108.28,PLANNED PEST CONTROL,03/11/16,,Technical and Service Support,Environmental Services
800090366,MAINTENANCE ASSOCIATED,24949,1,24.44,PLANNED PEST CONTROL,03/11/16,486.14,Technical and Service Support,Environmental Services
800090366,MAINTENANCE ASSOCIATED,24949,2,19.55,PLANNED PEST CONTROL,03/11/16,,Technical and Service Support,Environmental Services
800090366,MAINTENANCE ASSOCIATED,24949,3,108.28,PLANNED PEST CONTROL,03/11/16,,Technical and Service Support,Environmental Services
800090366,MAINTENANCE ASSOCIATED,24949,4,29.33,PLANNED PEST CONTROL,03/11/16,,Technical and Service Support,Environmental Services
800090366,MAINTENANCE ASSOCIATED,24949,5,19.55,PLANNED PEST CONTROL,03/11/16,,Technical and Service Support,Environmental Services
800090366,MAINTENANCE ASSOCIATED,24949,6,108.28,PLANNED PEST CONTROL,03/11/16,,Technical and Service Support,Environmental Services
800090366,MAINTENANCE ASSOCIATED,24949,7,108.28,PLANNED PEST CONTROL,03/11/16,,Technical and Service Support,Environmental Services
800090366,MAINTENANCE ASSOCIATED,24949,8,19.55,PLANNED PEST CONTROL,03/11/16,,Technical and Service Support,Environmental Services
800090366,MAINTENANCE ASSOCIATED,24949,9,29.33,PLANNED PEST CONTROL,03/11/16,,Technical and Service Support,Environmental Services
800090366,MAINTENANCE ASSOCIATED,24949,10,19.55,PLANNED PEST CONTROL,03/11/16,,Technical and Service Support,Environmental Services
800090360,MAINTENANCE ASSOCIATED,24950,1,29.33,PLANNED PEST CONTROL,03/11/16,411.33,Technical and Service Support,Environmental Services
800090360,MAINTENANCE ASSOCIATED,24950,2,108.28,PLANNED PEST CONTROL,03/11/16,,Technical and Service Support,Environmental Services
800090360,MAINTENANCE ASSOCIATED,24950,3,24.44,PLANNED PEST CONTROL,03/11/16,,Technical and Service Support,Environmental Services
800090360,MAINTENANCE ASSOCIATED,24950,4,29.33,PLANNED PEST CONTROL,03/11/16,,Technical and Service Support,Environmental Services
800090360,MAINTENANCE ASSOCIATED,24950,5,97.75,PLANNED PEST CONTROL,03/11/16,,Technical and Service Support,Environmental Services
800090360,MAINTENANCE ASSOCIATED,24950,6,24.44,PLANNED PEST CONTROL,03/11/16,,Technical and Service Support,Environmental Services
800090360,MAINTENANCE ASSOCIATED,24950,7,24.44,PLANNED PEST CONTROL,03/11/16,,Technical and Service Support,Environmental Services
800090360,MAINTENANCE ASSOCIATED,24950,8,24.44,PLANNED PEST CONTROL,03/11/16,,Technical and Service Support,Environmental Services
800090360,MAINTENANCE ASSOCIATED,24950,9,29.33,PLANNED PEST CONTROL,03/11/16,,Technical and Service Support,Environmental Services
800090360,MAINTENANCE ASSOCIATED,24950,10,19.55,PLANNED PEST CONTROL,03/11/16,,Technical and Service Support,Environmental Services
800090365,MAINTENANCE ASSOCIATED,24951,1,39.10,PLANNED PEST CONTROL,03/11/16,255.52,Technical and Service Support,Environmental Services
800090365,MAINTENANCE ASSOCIATED,24951,2,29.33,PLANNED PEST CONTROL,03/11/16,,Technical and Service Support,Environmental Services
800090365,MAINTENANCE ASSOCIATED,24951,3,24.44,PLANNED PEST CONTROL,03/11/16,,Technical and Service Support,Environmental Services
800090365,MAINTENANCE ASSOCIATED,24951,4,39.10,PLANNED PEST CONTROL,03/11/16,,Technical and Service Support,Environmental Services
800090365,MAINTENANCE ASSOCIATED,24951,5,19.89,PLANNED PEST CONTROL,03/11/16,,Technical and Service Support,Environmental Services
800090365,MAINTENANCE ASSOCIATED,24951,6,19.89,PLANNED PEST CONTROL,03/11/16,,Technical and Service Support,Environmental Services
800090365,MAINTENANCE ASSOCIATED,24951,7,19.89,PLANNED PEST CONTROL,03/11/16,,Technical and Service Support,Environmental Services
800090365,MAINTENANCE ASSOCIATED,24951,8,19.89,PLANNED PEST CONTROL,03/11/16,,Technical and Service Support,Environmental Services
800090365,MAINTENANCE ASSOCIATED,24951,9,24.44,PLANNED PEST CONTROL,03/11/16,,Technical and Service Support,Environmental Services
800090365,MAINTENANCE ASSOCIATED,24951,10,19.55,PLANNED PEST CONTROL,03/11/16,,Technical and Service Support,Environmental Services
800090362,MAINTENANCE ASSOCIATED,24953,1,550.62,REACTIVE PEST CONTROL,03/11/16,"1,262.46",Technical and Service Support,Environmental Services
800090362,MAINTENANCE ASSOCIATED,24953,2,389.36,REACTIVE PEST CONTROL,03/11/16,,Technical and Service Support,Environmental Services
800090362,MAINTENANCE ASSOCIATED,24953,3,51.08,REACTIVE PEST CONTROL,03/11/16,,Technical and Service Support,Environmental Services
800090362,MAINTENANCE ASSOCIATED,24953,4,51.08,REACTIVE PEST CONTROL,03/11/16,,Technical and Service Support,Environmental Services
800090362,MAINTENANCE ASSOCIATED,24953,5,110.16,REACTIVE PEST CONTROL,03/11/16,,Technical and Service Support,Environmental Services
800090362,MAINTENANCE ASSOCIATED,24953,6,110.16,REACTIVE PEST CONTROL,03/11/16,,Technical and Service Support,Environmental Services
800090369,MAINTENANCE ASSOCIATED,24959,1,476.62,REACTIVE PEST CONTROL,03/11/16,"1,807.88",Technical and Service Support,Environmental Services
800090369,MAINTENANCE ASSOCIATED,24959,2,476.62,REACTIVE PEST CONTROL,03/11/16,,Technical and Service Support,Environmental Services
800090369,MAINTENANCE ASSOCIATED,24959,3,134.70,REACTIVE PEST CONTROL,03/11/16,,Technical and Service Support,Environmental Services
800090369,MAINTENANCE ASSOCIATED,24959,4,476.62,REACTIVE PEST CONTROL,03/11/16,,Technical and Service Support,Environmental Services
800090369,MAINTENANCE ASSOCIATED,24959,5,114.16,REACTIVE PEST CONTROL,03/11/16,,Technical and Service Support,Environmental Services
800090369,MAINTENANCE ASSOCIATED,24959,6,71.08,REACTIVE PEST CONTROL,03/11/16,,Technical and Service Support,Environmental Services
800090369,MAINTENANCE ASSOCIATED,24959,7,58.08,REACTIVE PEST CONTROL,03/11/16,,Technical and Service Support,Environmental Services
311016K,SOUTHWARK CATHEDRAL,2498,1,"1,994.83",PUBLIC RELATIONS,03/11/16,"1,994.83",LFB 150th Anniversary,Facilities & Management S
311016K,THE FILE FACTORY LIMITED,2525,1,422.50,STATIONERY CONSUMABLES,03/11/16,422.50,Technical and Service Support,Facilities & Management S
800090237,ADECCO UK LIMITED=============,27546822,1,"1,776.25",FRS STAFF AGENCY,03/11/16,"1,776.25",Information and Communication Technology,Human Resources
800090238,ADECCO UK LIMITED=============,27546823,1,"1,776.25",FRS STAFF AGENCY,03/11/16,"1,776.25",Information and Communication Technology,Human Resources
800090239,ADECCO UK LIMITED=============,27546824,1,"1,421.00",FRS STAFF AGENCY,03/11/16,"1,421.00",Information and Communication Technology,Human Resources
800090240,ADECCO UK LIMITED=============,27565785,1,"1,776.25",FRS STAFF AGENCY,03/11/16,"1,776.25",Information and Communication Technology,Human Resources
800090241,ADECCO UK LIMITED=============,27565786,1,"1,776.25",FRS STAFF AGENCY,03/11/16,"1,776.25",Information and Communication Technology,Human Resources
271016G,AECOM INFRASTRUCTURE &,28275219,1,"5,029.99",PROF FEES-MISCELLANEOUS,03/11/16,"5,029.99",Technical and Service Support,Consultancy
311016K,CANON (UK) LTD===============,401817936,1,147.07,OFFICE EQUIPMENT,03/11/16,442.13,Technical and Service Support,ICT
311016K,CANON (UK) LTD===============,401817936,2,295.06,OFFICE EQUIPMENT,03/11/16,,Technical and Service Support,ICT
311016K,CANON (UK) LTD===============,401820559,1,"1,400.58",OFFICE EQUIPMENT,03/11/16,"1,400.58",Technical and Service Support,ICT
201016G,CITY OF LONDON,4182376,1,"1,000.00",GENERAL,03/11/16,"1,000.00",Community Safety Delivery,Facilities & Management S
211016K,HAGEMEYER UK LTD==============,431166262,1,"1,663.35",FIRE DETECTORS,03/11/16,"1,663.35",Fire Stations (North East),Building Constr Materials
271016G,DEALERSHIP SERVICES LTD,4705,1,15.50,CLOTHING,03/11/16,416.85,Cadets,Clothing
271016G,DEALERSHIP SERVICES LTD,4705,2,119.70,CLOTHING,03/11/16,,Cadets,Clothing
271016G,DEALERSHIP SERVICES LTD,4705,3,39.90,CLOTHING,03/11/16,,Cadets,Clothing
271016G,DEALERSHIP SERVICES LTD,4705,4,79.80,CLOTHING,03/11/16,,Cadets,Clothing
271016G,DEALERSHIP SERVICES LTD,4705,5,39.90,CLOTHING,03/11/16,,Cadets,Clothing
271016G,DEALERSHIP SERVICES LTD,4705,6,21.45,CLOTHING,03/11/16,,Cadets,Clothing
271016G,DEALERSHIP SERVICES LTD,4705,7,21.45,CLOTHING,03/11/16,,Cadets,Clothing
271016G,DEALERSHIP SERVICES LTD,4705,8,21.45,CLOTHING,03/11/16,,Cadets,Clothing
271016G,DEALERSHIP SERVICES LTD,4705,9,28.85,CLOTHING,03/11/16,,Cadets,Clothing
271016G,DEALERSHIP SERVICES LTD,4705,10,28.85,CLOTHING,03/11/16,,Cadets,Clothing
271016G,EUROLOOS LTD,50076,1,850.00,OPERATIONAL EQUIP-PURCHASE,03/11/16,850.00,Central Operations,Facilities & Management S
271016G,CARPETS & FLOOR COVERS DIRECT=,5032,1,755.00,FIXTURES & FITTINGS,03/11/16,755.00,Technical and Service Support,Building Constr Materials
271016G,CARPETS & FLOOR COVERS DIRECT=,5049,1,"1,629.00",FIXTURES & FITTINGS,03/11/16,"1,629.00",Technical and Service Support,Building Constr Materials
141670,THAMES WATER UTILITIES LTD====,6069175066I,1,"1,974.81",WATER & SEWERAGE RATES,03/11/16,"1,974.81",Technical and Service Support,Utilities
800090177,HAYS SPECIALIST RECRUITMENT,626250,1,369.60,FRS STAFF AGENCY,03/11/16,369.60,Information and Communication Technology,Human Resources
800090170,HAYS SPECIALIST RECRUITMENT,626251,1,520.56,FRS STAFF AGENCY,03/11/16,520.56,Fire Safety Regulation,Human Resources
800090146,HAYS SPECIALIST RECRUITMENT,626252,1,"1,179.41",FRS STAFF AGENCY,03/11/16,"1,179.41",Technical and Service Support,Human Resources
800090188,HAYS SPECIALIST RECRUITMENT,626253,1,"1,008.85",FRS STAFF AGENCY,03/11/16,"1,008.85",Operational Resilience,Human Resources
800090156,HAYS SPECIALIST RECRUITMENT,626254,1,508.90,FRS STAFF AGENCY,03/11/16,508.90,Legal & Democratic Services,Human Resources
800090152,HAYS SPECIALIST RECRUITMENT,626255,1,531.78,FRS STAFF AGENCY,03/11/16,531.78,Procurement,Human Resources
800090176,HAYS SPECIALIST RECRUITMENT,626256,1,"1,068.55",FRS STAFF AGENCY,03/11/16,"1,068.55",Technical and Service Support,Human Resources
800090175,HAYS SPECIALIST RECRUITMENT,626257,1,493.44,FRS STAFF AGENCY,03/11/16,493.44,Cadets,Human Resources
800090185,HAYS SPECIALIST RECRUITMENT,626258,1,733.60,FRS STAFF AGENCY,03/11/16,733.60,Information and Communication Technology,Human Resources
800090166,HAYS SPECIALIST RECRUITMENT,626259,1,991.50,FRS STAFF AGENCY,03/11/16,991.50,Operational Resilience,Human Resources
800090151,HAYS SPECIALIST RECRUITMENT,626260,1,403.96,FRS STAFF AGENCY,03/11/16,403.96,National Operational Guidance Project,Human Resources
800090155,HAYS SPECIALIST RECRUITMENT,626261,1,524.30,FRS STAFF AGENCY,03/11/16,524.30,Fire Safety Regulation,Human Resources
800090165,HAYS SPECIALIST RECRUITMENT,626262,1,572.52,FRS STAFF AGENCY,03/11/16,572.52,Review of Property Services,Human Resources
800090153,HAYS SPECIALIST RECRUITMENT,626263,1,407.12,FRS STAFF AGENCY,03/11/16,407.12,Fire Stations (North East),Human Resources
800090197,HAYS SPECIALIST RECRUITMENT,626264,1,"1,374.10",FRS STAFF AGENCY,03/11/16,"1,374.10",Legal & Democratic Services,Human Resources
800090184,HAYS SPECIALIST RECRUITMENT,626265,1,610.75,FRS STAFF AGENCY,03/11/16,610.75,Procurement,Human Resources
800090154,HAYS SPECIALIST RECRUITMENT,626266,1,428.93,FRS STAFF AGENCY,03/11/16,428.93,Fire Stations (South West),Human Resources
800090149,HAYS SPECIALIST RECRUITMENT,626267,1,314.58,FRS STAFF AGENCY,03/11/16,314.58,Fire Safety Regulation,Human Resources
800090159,HAYS SPECIALIST RECRUITMENT,626268,1,549.68,FRS STAFF AGENCY,03/11/16,549.68,Fire Safety Regulation,Human Resources
800090192,HAYS SPECIALIST RECRUITMENT,626269,1,524.30,FRS STAFF AGENCY,03/11/16,524.30,HR Management,Human Resources
800090180,HAYS SPECIALIST RECRUITMENT,626270,1,255.45,FRS STAFF AGENCY,03/11/16,255.45,Technical and Service Support,Human Resources
800090181,HAYS SPECIALIST RECRUITMENT,626271,1,895.10,FRS STAFF AGENCY,03/11/16,895.10,Technical and Service Support,Human Resources
800090174,HAYS SPECIALIST RECRUITMENT,626272,1,524.30,FRS STAFF AGENCY,03/11/16,524.30,Fire Safety Regulation,Human Resources
800090186,HAYS SPECIALIST RECRUITMENT,626273,1,950.49,FRS STAFF AGENCY,03/11/16,950.49,Procurement,Human Resources
800090140,HAYS SPECIALIST RECRUITMENT,626274,1,596.05,FRS STAFF AGENCY,03/11/16,596.05,Strategy & Inclusion,Human Resources
800090183,HAYS SPECIALIST RECRUITMENT,626275,1,"1,303.05",FRS STAFF AGENCY,03/11/16,"1,303.05",Information and Communication Technology,Human Resources
800090195,HAYS SPECIALIST RECRUITMENT,626276,1,524.30,FRS STAFF AGENCY,03/11/16,524.30,Fire Safety Regulation,Human Resources
800090196,HAYS SPECIALIST RECRUITMENT,626277,1,"2,088.70",FRS STAFF AGENCY,03/11/16,"2,088.70",Corporate Management Team,Human Resources
800090173,HAYS SPECIALIST RECRUITMENT,626278,1,"1,259.14",FRS STAFF AGENCY,03/11/16,"1,259.14",National Operational Guidance Project,Human Resources
800090182,HAYS SPECIALIST RECRUITMENT,626279,1,610.05,FRS STAFF AGENCY,03/11/16,610.05,Operational Resilience,Human Resources
800090143,HAYS SPECIALIST RECRUITMENT,626280,1,"1,076.60",FRS STAFF AGENCY,03/11/16,"1,076.60",Development and Training,Human Resources
800090193,HAYS SPECIALIST RECRUITMENT,626281,1,524.30,FRS STAFF AGENCY,03/11/16,524.30,Fire Stations (South East),Human Resources
800090150,HAYS SPECIALIST RECRUITMENT,626282,1,524.30,FRS STAFF AGENCY,03/11/16,524.30,Fire Safety Regulation,Human Resources
800090191,HAYS SPECIALIST RECRUITMENT,626283,1,707.70,FRS STAFF AGENCY,03/11/16,707.70,Exercise Unified Response,Human Resources
800090179,HAYS SPECIALIST RECRUITMENT,626284,1,434.42,FRS STAFF AGENCY,03/11/16,434.42,Finance Services,Human Resources
800090139,HAYS SPECIALIST RECRUITMENT,626285,1,524.30,FRS STAFF AGENCY,03/11/16,524.30,HR Management,Human Resources
800090172,HAYS SPECIALIST RECRUITMENT,626286,1,476.84,FRS STAFF AGENCY,03/11/16,476.84,Central Operations,Human Resources
800090148,HAYS SPECIALIST RECRUITMENT,626287,1,527.80,FRS STAFF AGENCY,03/11/16,527.80,Fire Stations (South West),Human Resources
800090189,HAYS SPECIALIST RECRUITMENT,626288,1,616.00,FRS STAFF AGENCY,03/11/16,616.00,Information and Communication Technology,Human Resources
800090178,HAYS SPECIALIST RECRUITMENT,626290,1,251.50,FRS STAFF AGENCY,03/11/16,251.50,Health and Safety,Human Resources
800090147,HAYS SPECIALIST RECRUITMENT,626293,1,314.58,FRS STAFF AGENCY,03/11/16,314.58,Fire Safety Regulation,Human Resources
800090161,HAYS SPECIALIST RECRUITMENT,626294,1,419.44,FRS STAFF AGENCY,03/11/16,419.44,Fire Safety Regulation,Human Resources
800090144,HAYS SPECIALIST RECRUITMENT,626295,1,"2,060.16",FRS STAFF AGENCY,03/11/16,"2,060.16",Legal & Democratic Services,Human Resources
800090171,HAYS SPECIALIST RECRUITMENT,626296,1,"1,790.80",FRS STAFF AGENCY,03/11/16,"1,790.80",National Operational Guidance Project,Human Resources
800090168,HAYS SPECIALIST RECRUITMENT,626297,1,"1,173.44",FRS STAFF AGENCY,03/11/16,"1,173.44",Legal & Democratic Services,Human Resources
800090169,HAYS SPECIALIST RECRUITMENT,626298,1,524.30,FRS STAFF AGENCY,03/11/16,524.30,Fire Safety Regulation,Human Resources
800090141,HAYS SPECIALIST RECRUITMENT,626299,1,596.05,FRS STAFF AGENCY,03/11/16,596.05,Information Management,Human Resources
800090163,HAYS SPECIALIST RECRUITMENT,626300,1,"1,545.12",FRS STAFF AGENCY,03/11/16,"1,545.12",Legal & Democratic Services,Human Resources
800090190,HAYS SPECIALIST RECRUITMENT,626301,1,621.95,FRS STAFF AGENCY,03/11/16,621.95,Legal & Democratic Services,Human Resources
800090158,HAYS SPECIALIST RECRUITMENT,626302,1,596.05,FRS STAFF AGENCY,03/11/16,596.05,HR Management,Human Resources
800090194,HAYS SPECIALIST RECRUITMENT,626303,1,444.78,FRS STAFF AGENCY,03/11/16,444.78,Information Management,Human Resources
800090142,HAYS SPECIALIST RECRUITMENT,626304,1,"1,534.05",FRS STAFF AGENCY,03/11/16,"1,534.05",Strategy & Inclusion,Human Resources
800090145,HAYS SPECIALIST RECRUITMENT,626305,1,533.05,FRS STAFF AGENCY,03/11/16,533.05,Fire Safety Regulation,Human Resources
800090187,HAYS SPECIALIST RECRUITMENT,626306,1,616.00,FRS STAFF AGENCY,03/11/16,616.00,Information and Communication Technology,Human Resources
800090167,HAYS SPECIALIST RECRUITMENT,626307,1,508.90,FRS STAFF AGENCY,03/11/16,508.90,Information Management,Human Resources
800090160,HAYS SPECIALIST RECRUITMENT,626308,1,269.64,FRS STAFF AGENCY,03/11/16,269.64,Fire Safety Regulation,Human Resources
800090198,HAYS SPECIALIST RECRUITMENT,626309,1,305.34,FRS STAFF AGENCY,03/11/16,305.34,Fire Stations (North East),Human Resources
800090199,HAYS SPECIALIST RECRUITMENT,626310,1,"1,374.10",FRS STAFF AGENCY,03/11/16,"1,374.10",Legal & Democratic Services,Human Resources
800090203,HAYS SPECIALIST RECRUITMENT,626311,1,610.75,FRS STAFF AGENCY,03/11/16,610.75,Fire Safety Regulation,Human Resources
800090202,HAYS SPECIALIST RECRUITMENT,626312,1,357.63,FRS STAFF AGENCY,03/11/16,357.63,Technical and Service Support,Human Resources
800090204,HAYS SPECIALIST RECRUITMENT,626313,1,895.10,FRS STAFF AGENCY,03/11/16,895.10,Technical and Service Support,Human Resources
800090200,HAYS SPECIALIST RECRUITMENT,626314,1,979.32,FRS STAFF AGENCY,03/11/16,979.32,National Operational Guidance Project,Human Resources
800090205,HAYS SPECIALIST RECRUITMENT,626315,1,596.05,FRS STAFF AGENCY,03/11/16,596.05,Information Management,Human Resources
800090201,HAYS SPECIALIST RECRUITMENT,626316,1,533.05,FRS STAFF AGENCY,03/11/16,533.05,Fire Safety Regulation,Human Resources
800090206,HAYS SPECIALIST RECRUITMENT,626317,1,508.90,FRS STAFF AGENCY,03/11/16,508.90,Information Management,Human Resources
141670,AFFINITY WATER,63110231I,1,311.37,WATER & SEWERAGE RATES,03/11/16,311.37,Technical and Service Support,Utilities
281016K,CONTRACT CATERING CONSULTANTS=,6405,1,500.00,CONSULTANTS,03/11/16,500.00,Technical and Service Support,Catering
271016G,SWEETT  UK LTD,7077010,1,325.00,PLANNED BUILDING DECORATIONS,03/11/16,325.00,Technical and Service Support,"Works - Construction, R&M"
271016G,SWEETT  UK LTD,7077011,1,334.42,PLANNED BUILDING DECORATIONS,03/11/16,334.42,Technical and Service Support,"Works - Construction, R&M"
271016G,SWEETT  UK LTD,7077076,1,"1,031.92",PLANNED BUILDING DECORATIONS,03/11/16,"1,031.92",Technical and Service Support,"Works - Construction, R&M"
271016G,GAS & AIR SERVICES (UK)=======,7094,1,"2,400.00",REPAIR & MAINTENANCE,03/11/16,"2,400.00",Technical and Service Support,Building Constr Materials
271016G,GAS & AIR SERVICES (UK)=======,7108,1,"2,400.00",REPAIR & MAINTENANCE,03/11/16,"2,400.00",Technical and Service Support,Building Constr Materials
311016K,CANON (UK) LTD===============,770583735,1,390.86,OFFICE EQUIPMENT,03/11/16,390.86,Technical and Service Support,ICT
311016K,CANON (UK) LTD===============,770583738,1,390.86,OFFICE EQUIPMENT,03/11/16,390.86,Technical and Service Support,ICT
271016G,BANNER GROUP LIMITED,8495652,1,435.00,COMMUNITY RELATIONS,03/11/16,"4,395.00",Community Safety Delivery,ICT
271016G,BANNER GROUP LIMITED,8495652,2,840.00,COMMUNITY RELATIONS,03/11/16,,Community Safety Delivery,ICT
271016G,BANNER GROUP LIMITED,8495652,3,980.00,COMMUNITY RELATIONS,03/11/16,,Community Safety Delivery,ICT
271016G,BANNER GROUP LIMITED,8495652,4,820.00,COMMUNITY RELATIONS,03/11/16,,Community Safety Delivery,ICT
271016G,BANNER GROUP LIMITED,8495652,5,840.00,COMMUNITY RELATIONS,03/11/16,,Community Safety Delivery,ICT
271016G,BANNER GROUP LIMITED,8495652,6,480.00,COMMUNITY RELATIONS,03/11/16,,Community Safety Delivery,ICT
281016K,SHARPE PRITCHARD==============,85951,1,621.95,DISPOSAL COSTS-ESTATES AGENTS,03/11/16,621.95,Technical and Service Support,Legal Services
281016K,TWO SERVICES LTD==============,90008,1,724.00,CATERING EQUIPMENT,03/11/16,724.00,Fire Stations (South West),Catering
271016G,*OFFICE DEPOT UK LTD,968999131,1,264.00,STATIONERY CONSUMABLES,03/11/16,264.00,Technical and Service Support,Stationery
251016K,ASTEC SURVEYS LIMITED=========,ASL-16-207,1,"1,135.00",PLANNED ASBESTOS,03/11/16,"1,135.00",Technical and Service Support,Environmental Services
251016K,ASTEC SURVEYS LIMITED=========,ASL-16-208,1,"1,170.00",PLANNED ASBESTOS,03/11/16,"1,175.00",Technical and Service Support,Environmental Services
251016K,ASTEC SURVEYS LIMITED=========,ASL-16-208,2,5.00,PLANNED ASBESTOS,03/11/16,,Technical and Service Support,Environmental Services
281016K,PITNEY BOWES PURCHASE POWER,BE096803,1,"4,040.00",POSTAL SERVICES,03/11/16,"4,040.00",Information Management,Mail Services
281016K,E&S B DAVIS LTD,DAV/63669,1,295.00,OPERATIONAL EQUIP-PURCHASE,03/11/16,295.00,Fire Stations (South East),Environmental Services
271016G,E&S B DAVIS LTD,DAV/64536,1,295.00,OPERATIONAL EQUIP-PURCHASE,03/11/16,295.00,Fire Stations (North West),Environmental Services
271016G,E&S B DAVIS LTD,DAV/64553,1,295.00,OPERATIONAL EQUIP-PURCHASE,03/11/16,295.00,Fire Stations (North East),Environmental Services
271016G,E&S B DAVIS LTD,DAV/64634,1,295.00,OPERATIONAL EQUIP-PURCHASE,03/11/16,295.00,Fire Stations (North East),Environmental Services
311016K,E&S B DAVIS LTD,DAV/64671,1,295.00,OPERATIONAL EQUIP-PURCHASE,03/11/16,295.00,Fire Stations (North West),Environmental Services
311016K,KIER BUILDING SERV ENGINEERS==,F00059455,1,"2,245.96",PLANNED BUILDING DECORATIONS,03/11/16,"2,245.96",Technical and Service Support,"Works - Construction, R&M"
311016K,KIER BUILDING SERV ENGINEERS==,F00059456,1,"1,787.15",PLANNED BUILDING DECORATIONS,03/11/16,"1,787.15",Technical and Service Support,"Works - Construction, R&M"
311016K,KIER BUILDING SERV ENGINEERS==,F00059638,1,"2,425.51",PLANNED BUILDING DECORATIONS,03/11/16,"2,425.51",Technical and Service Support,"Works - Construction, R&M"
181016K,CASUALTIES UNION LONDON BRANCH,HI300816,1,100.00,PROFESSIONAL DEVELOPMENT,03/11/16,800.00,Challenge Team,Fire & Rescue
181016K,CASUALTIES UNION LONDON BRANCH,HI300816,2,100.00,PROFESSIONAL DEVELOPMENT,03/11/16,,Challenge Team,Fire & Rescue
181016K,CASUALTIES UNION LONDON BRANCH,HI300816,3,100.00,PROFESSIONAL DEVELOPMENT,03/11/16,,Challenge Team,Fire & Rescue
181016K,CASUALTIES UNION LONDON BRANCH,HI300816,4,100.00,PROFESSIONAL DEVELOPMENT,03/11/16,,Challenge Team,Fire & Rescue
181016K,CASUALTIES UNION LONDON BRANCH,HI300816,5,150.00,PROFESSIONAL DEVELOPMENT,03/11/16,,Challenge Team,Fire & Rescue
181016K,CASUALTIES UNION LONDON BRANCH,HI300816,6,100.00,PROFESSIONAL DEVELOPMENT,03/11/16,,Challenge Team,Fire & Rescue
181016K,CASUALTIES UNION LONDON BRANCH,HI300816,7,100.00,PROFESSIONAL DEVELOPMENT,03/11/16,,Challenge Team,Fire & Rescue
181016K,CASUALTIES UNION LONDON BRANCH,HI300816,8,50.00,PROFESSIONAL DEVELOPMENT,03/11/16,,Challenge Team,Fire & Rescue
311016K,QA LIMITED,ICE427750,1,718.00,PROFESSIONAL DEVELOPMENT,03/11/16,718.00,National Operational Guidance Project,Human Resources
311016K,BABCOCK CIVIL INFRASTRUCTURE,II5002801,1,"6,006.45",PLANNED BUILDING DECORATIONS,03/11/16,"6,006.45",Technical and Service Support,"Works - Construction, R&M"
271016G,PILLINGER CONTROLS LTD========,PI75663,1,525.00,PLANNED BUILDING DECORATIONS,03/11/16,525.00,Technical and Service Support,Environmental Services
281016K,DODS GROUP PLC,PK0104599,1,555.00,PROFESSIONAL DEVELOPMENT,03/11/16,555.00,Corporate Management Team,Human Resources
311016K,HUNTER LODGE==================,SI-06331,1,435.00,ADVERTISING,03/11/16,435.00,Development and Training,Facilities & Management S
271016G,BABCOCK CRITICAL SERVICES LTD,SMAI001545,1,"16,979.34",PURCHASES-PLANT/MACHINERY,03/11/16,"16,979.34",Procurement,Consultancy
271016G,BABCOCK CRITICAL SERVICES LTD,SMAI001546,1,"3,496.61",PURCHASES-PLANT/MACHINERY,03/11/16,"3,496.61",Procurement,Consultancy
311016K,BABCOCK CRITICAL SERVICES LTD,SMAI001547,1,"562,800.00",PURCHASES-VEHICLES,03/11/16,"562,800.00",Procurement,Consultancy
311016K,BERENDSEN UK LTD,SN2522466,1,"6,388.00",LAUNDRY,03/11/16,"6,388.00",Central Operations,Cleaning & Janitorial
241016K,TRIDENT CRISIS SOLUTIONS LTD,TCS/13/2016/7,1,"1,924.20",PROFESSIONAL DEVELOPMENT,03/11/16,"1,924.20",Central Finance,Human Resources
241016K,TRIDENT CRISIS SOLUTIONS LTD,TCS/14/2016/7,1,"1,924.20",PROFESSIONAL DEVELOPMENT,03/11/16,"1,924.20",Central Finance,Human Resources
021116S,MOOLANDS LTD,00006316,1,558.00,PLANNED BUILDING DECORATIONS,07/11/16,558.00,Technical and Service Support,"Works - Construction, R&M"
141671,MR. DAN PAWSON POUNDS,093644,1,"1,620.00",PROFESSIONAL FEES ENFORCEMENT,07/11/16,"1,620.00",Legal & Democratic Services,Legal services
021116S,ROYAL COLLEGE OF MUSIC========,11049414,1,420.00,PUBLIC RELATIONS,07/11/16,420.00,Communications,Facilities & Management S
261016K,RICOH IMAGING UK LTD,1400193723,1,346.65,OPERATIONAL EQUIP-PURCHASE,07/11/16,346.65,Fire Safety Regulation,Facilities & Management S
800090837,REDFERN TRAVEL LTD,1432836,1,455.26,TRAVEL BOOKINGS,07/11/16,455.26,Legal & Democratic Services,Human Resources
261016K,BLUE3 (LONDON) LTD OPERATING,16040001,1,"8,212.14",DAY TO DAY MINOR IMPS,07/11/16,"8,212.14",Property PFI,"Works - Construction, R&M"
021116S,GEORGE JONES & SON LTD========,1729,1,"14,107.31",PLANNED BUILDING DECORATIONS,07/11/16,"14,107.31",Technical and Service Support,"Works - Construction, R&M"
011116G,GEORGE JONES & SON LTD========,1790,1,753.24,PLANNED BUILDING DECORATIONS,07/11/16,753.24,Technical and Service Support,"Works - Construction, R&M"
011116G,GEORGE JONES & SON LTD========,1791,1,"2,767.38",PLANNED BUILDING DECORATIONS,07/11/16,"2,767.38",Technical and Service Support,"Works - Construction, R&M"
800090697,REDFERN TRAVEL LTD,1919058,1,375.46,OVERSEAS TRAVEL,07/11/16,375.46,Operational Resilience,Human Resources
800090710,REDFERN TRAVEL LTD,1921401,1,313.66,ACCOMMODATION BOOKINGS,07/11/16,313.66,Fire Safety Regulation,Human Resources
800090760,REDFERN TRAVEL LTD,1922683,1,365.80,ACCOMMODATION BOOKINGS,07/11/16,365.80,National Operational Guidance Project,Human Resources
800090712,REDFERN TRAVEL LTD,1923899,1,622.45,OVERSEAS TRAVEL,07/11/16,622.45,Operational Policy,Human Resources
800090711,REDFERN TRAVEL LTD,1925488,1,461.10,ACCOMMODATION BOOKINGS,07/11/16,461.10,Corporate Management Team,Human Resources
800090776,REDFERN TRAVEL LTD,1926605,1,"1,453.23",TRAVEL BOOKINGS,07/11/16,"1,453.23",Operational Resilience,Human Resources
800090698,REDFERN TRAVEL LTD,1930364,1,"9,236.00",ACCOMMODATION BOOKINGS,07/11/16,"9,236.00",Challenge Team,Human Resources
800090778,REDFERN TRAVEL LTD,1930426,1,347.50,ACCOMMODATION BOOKINGS,07/11/16,347.50,National Operational Guidance Project,Human Resources
800090795,REDFERN TRAVEL LTD,1935358,1,374.71,TRAVEL BOOKINGS,07/11/16,374.71,National Operational Guidance Project,Human Resources
800090816,REDFERN TRAVEL LTD,1938781,1,306.62,TRAVEL BOOKINGS,07/11/16,306.62,Operational Response,Human Resources
800090737,REDFERN TRAVEL LTD,1941168,1,"1,402.80",ACCOMMODATION BOOKINGS,07/11/16,"1,402.80",Operational Policy,Human Resources
800090699,REDFERN TRAVEL LTD,1941187,1,291.70,ACCOMMODATION BOOKINGS,07/11/16,291.70,Operational Resilience,Human Resources
800090717,REDFERN TRAVEL LTD,1941284,1,327.70,ACCOMMODATION BOOKINGS,07/11/16,327.70,Operational Resilience,Human Resources
800090718,REDFERN TRAVEL LTD,1941326,1,327.70,ACCOMMODATION BOOKINGS,07/11/16,327.70,Operational Resilience,Human Resources
800090700,REDFERN TRAVEL LTD,1941409,1,291.70,TRAVEL BOOKINGS,07/11/16,291.70,Operational Resilience,Human Resources
800090701,REDFERN TRAVEL LTD,1941498,1,291.70,ACCOMMODATION BOOKINGS,07/11/16,291.70,Operational Resilience,Human Resources
800090702,REDFERN TRAVEL LTD,1941533,1,291.70,ACCOMMODATION BOOKINGS,07/11/16,291.70,Operational Resilience,Human Resources
800090812,REDFERN TRAVEL LTD,1943173,1,351.10,ACCOMMODATION BOOKINGS,07/11/16,351.10,National Operational Guidance Project,Human Resources
800090713,REDFERN TRAVEL LTD,1943259,1,404.70,ACCOMMODATION BOOKINGS,07/11/16,404.70,Community Safety Delivery,Human Resources
800090830,REDFERN TRAVEL LTD,1945775,1,281.25,TRAVEL BOOKINGS,07/11/16,281.25,National Operational Guidance Project,Human Resources
800090861,REDFERN TRAVEL LTD,1948646,1,298.81,TRAVEL BOOKINGS,07/11/16,298.81,Strategy & Inclusion,Human Resources
800090799,REDFERN TRAVEL LTD,1948647,1,297.81,TRAVEL BOOKINGS,07/11/16,297.81,National Operational Guidance Project,Human Resources
800090868,REDFERN TRAVEL LTD,1950324,1,299.44,ACCOMMODATION BOOKINGS,07/11/16,299.44,Fire Stations (North East),Human Resources
800090871,REDFERN TRAVEL LTD,1953114,1,467.00,OVERSEAS TRAVEL,07/11/16,467.00,Exercise Unified Response,Human Resources
800090874,REDFERN TRAVEL LTD,1953416,1,357.60,ACCOMMODATION BOOKINGS,07/11/16,357.60,National Operational Guidance Project,Human Resources
021116S,PAUL EVERS,211016,1,600.00,GENERAL,07/11/16,600.00,LIFE - LFB Funded,Human Resources
021116G,T/A QUANTUM CRYOGENICS,21710,1,305.80,REPAIR & MAINTENANCE,07/11/16,411.00,Technical and Service Support,Fire & Rescue
021116G,T/A QUANTUM CRYOGENICS,21710,2,79.20,REPAIR & MAINTENANCE,07/11/16,,Technical and Service Support,Fire & Rescue
021116G,T/A QUANTUM CRYOGENICS,21710,3,26.00,REPAIR & MAINTENANCE,07/11/16,,Technical and Service Support,Fire & Rescue
141671,MISS EMMA COLLINS,235489*,1,"1,400.00",PROFESSIONAL FEES ENFORCEMENT,07/11/16,"1,400.00",Legal & Democratic Services,Legal Services
141671,MISS SARAH LE FEVRE===========,235815,1,839.99,PROFESSIONAL FEES ENFORCEMENT,07/11/16,839.99,Legal & Democratic Services,Legal Services
141671,THAMES WATER UTILITIES LTD====,2406058171I,1,847.73,WATER & SEWERAGE RATES,07/11/16,847.73,Technical and Service Support,Utilities
021116S,MERIDIAN AUDIO VISUAL LIMITED,27047A,1,450.00,GENERAL,07/11/16,450.00,Exercise Unified Response,Facilities & Management S
021116S,GRADIENT CONSULTANTS LLP======,2755,1,75.00,PROF FEES-MISCELLANEOUS,07/11/16,"1,885.00",Technical and Service Support,"Works - Construction, R&M"
021116S,GRADIENT CONSULTANTS LLP======,2755,2,545.00,PROF FEES-MISCELLANEOUS,07/11/16,,Technical and Service Support,"Works - Construction, R&M"
021116S,GRADIENT CONSULTANTS LLP======,2755,3,75.00,PROF FEES-MISCELLANEOUS,07/11/16,,Technical and Service Support,"Works - Construction, R&M"
021116S,GRADIENT CONSULTANTS LLP======,2755,4,900.00,PROF FEES-MISCELLANEOUS,07/11/16,,Technical and Service Support,"Works - Construction, R&M"
021116S,GRADIENT CONSULTANTS LLP======,2755,5,290.00,PROF FEES-MISCELLANEOUS,07/11/16,,Technical and Service Support,"Works - Construction, R&M"
021116S,GRADIENT CONSULTANTS LLP======,2756,1,300.00,PLANNED ASBESTOS,07/11/16,"5,960.00",Technical and Service Support,"Works - Construction, R&M"
021116S,GRADIENT CONSULTANTS LLP======,2756,2,300.00,PLANNED ASBESTOS,07/11/16,,Technical and Service Support,"Works - Construction, R&M"
021116S,GRADIENT CONSULTANTS LLP======,2756,3,300.00,PLANNED ASBESTOS,07/11/16,,Technical and Service Support,"Works - Construction, R&M"
021116S,GRADIENT CONSULTANTS LLP======,2756,4,110.00,PLANNED ASBESTOS,07/11/16,,Technical and Service Support,"Works - Construction, R&M"
021116S,GRADIENT CONSULTANTS LLP======,2756,5,245.00,PLANNED ASBESTOS,07/11/16,,Technical and Service Support,"Works - Construction, R&M"
021116S,GRADIENT CONSULTANTS LLP======,2756,6,490.00,PLANNED ASBESTOS,07/11/16,,Technical and Service Support,"Works - Construction, R&M"
021116S,GRADIENT CONSULTANTS LLP======,2756,7,245.00,PLANNED ASBESTOS,07/11/16,,Technical and Service Support,"Works - Construction, R&M"
021116S,GRADIENT CONSULTANTS LLP======,2756,8,190.00,PLANNED ASBESTOS,07/11/16,,Technical and Service Support,"Works - Construction, R&M"
021116S,GRADIENT CONSULTANTS LLP======,2756,9,190.00,PLANNED ASBESTOS,07/11/16,,Technical and Service Support,"Works - Construction, R&M"
021116S,GRADIENT CONSULTANTS LLP======,2756,10,245.00,PLANNED ASBESTOS,07/11/16,,Technical and Service Support,"Works - Construction, R&M"
021116S,GRADIENT CONSULTANTS LLP======,2756,11,245.00,PLANNED ASBESTOS,07/11/16,,Technical and Service Support,"Works - Construction, R&M"
021116S,GRADIENT CONSULTANTS LLP======,2756,12,245.00,PLANNED ASBESTOS,07/11/16,,Technical and Service Support,"Works - Construction, R&M"
021116S,GRADIENT CONSULTANTS LLP======,2756,13,490.00,PLANNED ASBESTOS,07/11/16,,Technical and Service Support,"Works - Construction, R&M"
021116S,GRADIENT CONSULTANTS LLP======,2756,14,245.00,PLANNED ASBESTOS,07/11/16,,Technical and Service Support,"Works - Construction, R&M"
021116S,GRADIENT CONSULTANTS LLP======,2756,15,245.00,PLANNED ASBESTOS,07/11/16,,Technical and Service Support,"Works - Construction, R&M"
021116S,GRADIENT CONSULTANTS LLP======,2756,16,245.00,PLANNED ASBESTOS,07/11/16,,Technical and Service Support,"Works - Construction, R&M"
021116S,GRADIENT CONSULTANTS LLP======,2756,17,245.00,PLANNED ASBESTOS,07/11/16,,Technical and Service Support,"Works - Construction, R&M"
021116S,GRADIENT CONSULTANTS LLP======,2756,18,245.00,PLANNED ASBESTOS,07/11/16,,Technical and Service Support,"Works - Construction, R&M"
021116S,GRADIENT CONSULTANTS LLP======,2756,19,245.00,PLANNED ASBESTOS,07/11/16,,Technical and Service Support,"Works - Construction, R&M"
021116S,GRADIENT CONSULTANTS LLP======,2756,20,245.00,PLANNED ASBESTOS,07/11/16,,Technical and Service Support,"Works - Construction, R&M"
021116S,GRADIENT CONSULTANTS LLP======,2756,21,245.00,PLANNED BUILDING DECORATIONS,07/11/16,,Technical and Service Support,"Works - Construction, R&M"
021116S,GRADIENT CONSULTANTS LLP======,2756,22,245.00,PLANNED ASBESTOS,07/11/16,,Technical and Service Support,"Works - Construction, R&M"
021116S,GRADIENT CONSULTANTS LLP======,2756,23,160.00,PLANNED ASBESTOS,07/11/16,,Technical and Service Support,"Works - Construction, R&M"
021116S,GRADIENT CONSULTANTS LLP======,2757,1,62.50,PLANNED ASBESTOS,07/11/16,"3,377.50",Technical and Service Support,"Works - Construction, R&M"
021116S,GRADIENT CONSULTANTS LLP======,2757,2,245.00,PLANNED ASBESTOS,07/11/16,,Technical and Service Support,"Works - Construction, R&M"
021116S,GRADIENT CONSULTANTS LLP======,2757,3,245.00,PLANNED ASBESTOS,07/11/16,,Technical and Service Support,"Works - Construction, R&M"
021116S,GRADIENT CONSULTANTS LLP======,2757,4,245.00,PLANNED ASBESTOS,07/11/16,,Technical and Service Support,"Works - Construction, R&M"
021116S,GRADIENT CONSULTANTS LLP======,2757,5,245.00,PLANNED ASBESTOS,07/11/16,,Technical and Service Support,"Works - Construction, R&M"
021116S,GRADIENT CONSULTANTS LLP======,2757,6,300.00,PLANNED ASBESTOS,07/11/16,,Technical and Service Support,"Works - Construction, R&M"
021116S,GRADIENT CONSULTANTS LLP======,2757,7,245.00,PLANNED ASBESTOS,07/11/16,,Technical and Service Support,"Works - Construction, R&M"
021116S,GRADIENT CONSULTANTS LLP======,2757,8,245.00,PLANNED ASBESTOS,07/11/16,,Technical and Service Support,"Works - Construction, R&M"
021116S,GRADIENT CONSULTANTS LLP======,2757,9,245.00,PLANNED ASBESTOS,07/11/16,,Technical and Service Support,"Works - Construction, R&M"
021116S,GRADIENT CONSULTANTS LLP======,2757,10,245.00,PLANNED ASBESTOS,07/11/16,,Technical and Service Support,"Works - Construction, R&M"
021116S,GRADIENT CONSULTANTS LLP======,2757,11,245.00,PLANNED ASBESTOS,07/11/16,,Technical and Service Support,"Works - Construction, R&M"
021116S,GRADIENT CONSULTANTS LLP======,2757,12,320.00,PLANNED ASBESTOS,07/11/16,,Technical and Service Support,"Works - Construction, R&M"
021116S,GRADIENT CONSULTANTS LLP======,2757,13,245.00,PLANNED ASBESTOS,07/11/16,,Technical and Service Support,"Works - Construction, R&M"
021116S,GRADIENT CONSULTANTS LLP======,2757,14,245.00,PLANNED ASBESTOS,07/11/16,,Technical and Service Support,"Works - Construction, R&M"
021116G,AECOM INFRASTRUCTURE &,28283227,1,"11,539.60",PROF FEES-MISCELLANEOUS,07/11/16,"150,014.70",Technical and Service Support,Consultancy
021116G,AECOM INFRASTRUCTURE &,28283227,2,"11,539.60",PROF FEES-MISCELLANEOUS,07/11/16,,Technical and Service Support,Consultancy
021116G,AECOM INFRASTRUCTURE &,28283227,3,"11,539.60",PROF FEES-MISCELLANEOUS,07/11/16,,Technical and Service Support,Consultancy
021116G,AECOM INFRASTRUCTURE &,28283227,4,"11,539.59",PROF FEES-MISCELLANEOUS,07/11/16,,Technical and Service Support,Consultancy
021116G,AECOM INFRASTRUCTURE &,28283227,5,"11,539.59",PROF FEES-MISCELLANEOUS,07/11/16,,Technical and Service Support,Consultancy
021116G,AECOM INFRASTRUCTURE &,28283227,6,"11,539.59",PROF FEES-MISCELLANEOUS,07/11/16,,Technical and Service Support,Consultancy
021116G,AECOM INFRASTRUCTURE &,28283227,7,"11,539.59",PROF FEES-MISCELLANEOUS,07/11/16,,Technical and Service Support,Consultancy
021116G,AECOM INFRASTRUCTURE &,28283227,8,"11,539.59",PROF FEES-MISCELLANEOUS,07/11/16,,Technical and Service Support,Consultancy
021116G,AECOM INFRASTRUCTURE &,28283227,9,"11,539.59",PROF FEES-MISCELLANEOUS,07/11/16,,Technical and Service Support,Consultancy
021116G,AECOM INFRASTRUCTURE &,28283227,10,"11,539.59",PROF FEES-MISCELLANEOUS,07/11/16,,Technical and Service Support,Consultancy
021116G,AECOM INFRASTRUCTURE &,28283227,11,"11,539.59",PROF FEES-MISCELLANEOUS,07/11/16,,Technical and Service Support,Consultancy
021116G,AECOM INFRASTRUCTURE &,28283227,12,"11,539.59",PROF FEES-MISCELLANEOUS,07/11/16,,Technical and Service Support,Consultancy
021116G,AECOM INFRASTRUCTURE &,28283227,13,"11,539.59",PROF FEES-MISCELLANEOUS,07/11/16,,Technical and Service Support,Consultancy
021116S,DRAEGER SAFETY UK LIMITED=====,2910058463/291006466,1,354.00,PROTECTIVE EQUIPT - PARTS,07/11/16,"1,950.48",Technical and Service Support,Fire & Rescue
021116S,DRAEGER SAFETY UK LIMITED=====,2910058463/291006466,2,432.60,PROTECTIVE EQUIPT - PARTS,07/11/16,,Technical and Service Support,Fire & Rescue
021116S,DRAEGER SAFETY UK LIMITED=====,2910058463/291006466,3,68.88,PROTECTIVE EQUIPT - PARTS,07/11/16,,Technical and Service Support,Fire & Rescue
021116S,DRAEGER SAFETY UK LIMITED=====,2910058463/291006466,4,796.50,PROTECTIVE EQUIPT - PARTS,07/11/16,,Technical and Service Support,Fire & Rescue
021116S,DRAEGER SAFETY UK LIMITED=====,2910058463/291006466,5,110.00,PROTECTIVE EQUIPT - PARTS,07/11/16,,Technical and Service Support,Fire & Rescue
021116S,DRAEGER SAFETY UK LIMITED=====,2910058463/291006466,6,104.10,PROTECTIVE EQUIPT - PARTS,07/11/16,,Technical and Service Support,Fire & Rescue
021116S,DRAEGER SAFETY UK LIMITED=====,2910058463/291006466,7,84.40,PROTECTIVE EQUIPT - PARTS,07/11/16,,Technical and Service Support,Fire & Rescue
021116G,ARKAS LIMITED=================,29566,1,"4,472.00",STRATEGIC (CYCLICAL),07/11/16,"4,472.00",Technical and Service Support,"Works - Construction, R&M"
021116G,ARKAS LIMITED=================,29568,1,"2,336.00",STRATEGIC (CYCLICAL),07/11/16,"2,336.00",Technical and Service Support,"Works - Construction, R&M"
021116G,CIPFA BUSINESS,3122076,1,325.00,PROFESSIONAL DEVELOPMENT,07/11/16,325.00,Finance Services,Human Resources
141671,THAMES WATER UTILITIES LTD====,4017462014I,1,352.75,WATER & SEWERAGE RATES,07/11/16,352.75,Technical and Service Support,Utilities
021116G,OPEN UNIVERSITY===============,404186,1,"2,786.00",PROFESSIONAL DEVELOPMENT,07/11/16,"2,786.00",Development and Training,Human Resources
271016G,CAPITA SECURE INFO SOLUTIONS,6060017573,1,"96,863.00",CAMS CONTRACT,07/11/16,"120,382.93",Information and Communication Technology,ICT
271016G,CAPITA SECURE INFO SOLUTIONS,6060017573,2,"23,519.93",CAMS CONTRACT,07/11/16,,Information and Communication Technology,ICT
141671,ESSEX & SUFFOLK WATER PLC=====,612080610032S,1,602.93,WATER & SEWERAGE RATES,07/11/16,602.93,Technical and Service Support,Utilities
021116S,LINDFIELD ELECTRICAL SERVICES=,6656,1,"34,685.36",DEVELOPMENT  EXPENSES-CONTRACT,07/11/16,"34,685.36",Technical and Service Support,"Works - Construction, R&M"
041116G,INFICON GMBH==================,70870178,1,588.66,OPERATIONAL EQUIP-PURCHASE,07/11/16,588.66,CBRN RRT,Fire & Rescue
211016K,AQA EDUCATION,80493,1,"8,112.60",GENERAL,07/11/16,"8,112.60",LIFE - LFB Funded,Education
021116G,FIRE SERVICE COLLEGE LTD======,807757/807758,1,640.00,ACCOMMODATION BOOKINGS,07/11/16,640.00,PPE project,Human Resources
141671,THAMES WATER UTILITIES LTD====,9018672073I,1,484.03,WATER & SEWERAGE RATES,07/11/16,484.03,Technical and Service Support,Utilities
011116G,TWO SERVICES LTD==============,90385,1,724.00,CATERING EQUIPMENT,07/11/16,724.00,Fire Stations (South West),Catering
021116G,THE CHIEF FIRE OFFICERS ASSOC.,CFOA4429,1,"3,245.00",GENERAL,07/11/16,"3,245.00",Cadets,Human Resources
011116G,E&S B DAVIS LTD,DAV/63668,1,295.00,OPERATIONAL EQUIP-PURCHASE,07/11/16,295.00,Fire Stations (South East),Environmental Services
800090693,ALLSTAR BUSINESS SOLUTIONS LTD,E2007448578,1,441.53,FUEL,07/11/16,"13,801.49",Procurement,Vehicle Management
800090693,ALLSTAR BUSINESS SOLUTIONS LTD,E2007448578,2,371.52,FUEL,07/11/16,,Fire Stations (South East),Vehicle Management
800090693,ALLSTAR BUSINESS SOLUTIONS LTD,E2007448578,3,367.89,FUEL,07/11/16,,Fire Stations (North West),Vehicle Management
800090693,ALLSTAR BUSINESS SOLUTIONS LTD,E2007448578,4,330.76,FUEL,07/11/16,,Fire Stations (North East),Vehicle Management
800090693,ALLSTAR BUSINESS SOLUTIONS LTD,E2007448578,5,323.75,FUEL,07/11/16,,Fire Stations (North West),Vehicle Management
800090693,ALLSTAR BUSINESS SOLUTIONS LTD,E2007448578,6,321.68,FUEL,07/11/16,,Fire Stations (South West),Vehicle Management
800090693,ALLSTAR BUSINESS SOLUTIONS LTD,E2007448578,7,276.81,FUEL,07/11/16,,Fire Stations (South West),Vehicle Management
800090693,ALLSTAR BUSINESS SOLUTIONS LTD,E2007448578,8,275.94,FUEL,07/11/16,,Fire Stations (South West),Vehicle Management
800090693,ALLSTAR BUSINESS SOLUTIONS LTD,E2007448578,9,271.00,FUEL,07/11/16,,Fire Stations (North East),Vehicle Management
800090693,ALLSTAR BUSINESS SOLUTIONS LTD,E2007448578,10,270.31,FUEL,07/11/16,,Fire Stations (North West),Vehicle Management
800090693,ALLSTAR BUSINESS SOLUTIONS LTD,E2007448578,11,256.42,FUEL,07/11/16,,Fire Stations (South West),Vehicle Management
800090693,ALLSTAR BUSINESS SOLUTIONS LTD,E2007448578,12,251.43,FUEL,07/11/16,,Fire Stations (South East),Vehicle Management
800090693,ALLSTAR BUSINESS SOLUTIONS LTD,E2007448578,13,251.01,FUEL,07/11/16,,Fire Stations (North West),Vehicle Management
800090693,ALLSTAR BUSINESS SOLUTIONS LTD,E2007448578,14,241.11,FUEL,07/11/16,,Central Operations,Vehicle Management
800090693,ALLSTAR BUSINESS SOLUTIONS LTD,E2007448578,15,238.95,FUEL,07/11/16,,Fire Stations (South West),Vehicle Management
800090693,ALLSTAR BUSINESS SOLUTIONS LTD,E2007448578,16,233.70,FUEL,07/11/16,,Fire Stations (North East),Vehicle Management
800090693,ALLSTAR BUSINESS SOLUTIONS LTD,E2007448578,17,233.52,FUEL,07/11/16,,Fire Stations (North East),Vehicle Management
800090693,ALLSTAR BUSINESS SOLUTIONS LTD,E2007448578,18,227.16,FUEL,07/11/16,,Fire Stations (North West),Vehicle Management
800090693,ALLSTAR BUSINESS SOLUTIONS LTD,E2007448578,19,219.07,FUEL,07/11/16,,Fire Stations (North West),Vehicle Management
800090693,ALLSTAR BUSINESS SOLUTIONS LTD,E2007448578,20,216.66,FUEL,07/11/16,,Fire Stations (North East),Vehicle Management
800090693,ALLSTAR BUSINESS SOLUTIONS LTD,E2007448578,21,208.04,FUEL,07/11/16,,Fire Stations (North West),Vehicle Management
800090693,ALLSTAR BUSINESS SOLUTIONS LTD,E2007448578,22,205.35,FUEL,07/11/16,,Fire Stations (North West),Vehicle Management
800090693,ALLSTAR BUSINESS SOLUTIONS LTD,E2007448578,23,189.70,FUEL,07/11/16,,Fire Stations (South East),Vehicle Management
800090693,ALLSTAR BUSINESS SOLUTIONS LTD,E2007448578,24,188.70,FUEL,07/11/16,,Fire Stations (North West),Vehicle Management
800090693,ALLSTAR BUSINESS SOLUTIONS LTD,E2007448578,25,188.49,FUEL,07/11/16,,Fire Stations (North West),Vehicle Management
800090693,ALLSTAR BUSINESS SOLUTIONS LTD,E2007448578,26,186.91,FUEL,07/11/16,,Fire Stations (North East),Vehicle Management
800090693,ALLSTAR BUSINESS SOLUTIONS LTD,E2007448578,27,185.46,FUEL,07/11/16,,Fire Stations (South West),Vehicle Management
800090693,ALLSTAR BUSINESS SOLUTIONS LTD,E2007448578,28,182.28,FUEL,07/11/16,,Fire Safety Regulation,Vehicle Management
800090693,ALLSTAR BUSINESS SOLUTIONS LTD,E2007448578,29,180.65,FUEL,07/11/16,,Fire Stations (South West),Vehicle Management
800090693,ALLSTAR BUSINESS SOLUTIONS LTD,E2007448578,30,176.39,FUEL,07/11/16,,Fire Stations (South East),Vehicle Management
800090693,ALLSTAR BUSINESS SOLUTIONS LTD,E2007448578,31,168.69,FUEL,07/11/16,,Fire Stations (South East),Vehicle Management
800090693,ALLSTAR BUSINESS SOLUTIONS LTD,E2007448578,32,168.15,FUEL,07/11/16,,Fire Stations (North West),Vehicle Management
800090693,ALLSTAR BUSINESS SOLUTIONS LTD,E2007448578,33,166.26,FUEL,07/11/16,,Fire Stations (North East),Vehicle Management
800090693,ALLSTAR BUSINESS SOLUTIONS LTD,E2007448578,34,156.79,FUEL,07/11/16,,Fire Stations (North East),Vehicle Management
800090693,ALLSTAR BUSINESS SOLUTIONS LTD,E2007448578,35,156.14,FUEL,07/11/16,,Fire Stations (South West),Vehicle Management
800090693,ALLSTAR BUSINESS SOLUTIONS LTD,E2007448578,36,154.17,FUEL,07/11/16,,Fire Stations (South West),Vehicle Management
800090693,ALLSTAR BUSINESS SOLUTIONS LTD,E2007448578,37,148.96,FUEL,07/11/16,,Fire Stations (North East),Vehicle Management
800090693,ALLSTAR BUSINESS SOLUTIONS LTD,E2007448578,38,146.95,FUEL,07/11/16,,Fire Stations (South East),Vehicle Management
800090693,ALLSTAR BUSINESS SOLUTIONS LTD,E2007448578,39,143.86,FUEL,07/11/16,,Fire Stations (South East),Vehicle Management
800090693,ALLSTAR BUSINESS SOLUTIONS LTD,E2007448578,40,141.91,FUEL,07/11/16,,Fire Stations (North West),Vehicle Management
800090693,ALLSTAR BUSINESS SOLUTIONS LTD,E2007448578,41,141.82,FUEL,07/11/16,,Fire Stations (North East),Vehicle Management
800090693,ALLSTAR BUSINESS SOLUTIONS LTD,E2007448578,42,141.75,FUEL,07/11/16,,Fire Stations (North East),Vehicle Management
800090693,ALLSTAR BUSINESS SOLUTIONS LTD,E2007448578,43,140.71,FUEL,07/11/16,,Fire Stations (North West),Vehicle Management
800090693,ALLSTAR BUSINESS SOLUTIONS LTD,E2007448578,44,135.58,FUEL,07/11/16,,Fire Stations (South West),Vehicle Management
800090693,ALLSTAR BUSINESS SOLUTIONS LTD,E2007448578,45,134.68,FUEL,07/11/16,,Fire Stations (North West),Vehicle Management
800090693,ALLSTAR BUSINESS SOLUTIONS LTD,E2007448578,46,132.47,FUEL,07/11/16,,Fire Stations (North East),Vehicle Management
800090693,ALLSTAR BUSINESS SOLUTIONS LTD,E2007448578,47,127.98,FUEL,07/11/16,,Fire Stations (South East),Vehicle Management
800090693,ALLSTAR BUSINESS SOLUTIONS LTD,E2007448578,48,124.89,FUEL,07/11/16,,Fire Stations (South West),Vehicle Management
800090693,ALLSTAR BUSINESS SOLUTIONS LTD,E2007448578,49,119.57,FUEL,07/11/16,,Fire Stations (South West),Vehicle Management
800090693,ALLSTAR BUSINESS SOLUTIONS LTD,E2007448578,50,117.71,FUEL,07/11/16,,Fire Stations (South East),Vehicle Management
800090693,ALLSTAR BUSINESS SOLUTIONS LTD,E2007448578,51,116.82,FUEL,07/11/16,,Fire Stations (North East),Vehicle Management
800090693,ALLSTAR BUSINESS SOLUTIONS LTD,E2007448578,52,116.51,FUEL,07/11/16,,Fire Stations (South East),Vehicle Management
800090693,ALLSTAR BUSINESS SOLUTIONS LTD,E2007448578,53,115.20,FUEL,07/11/16,,Fire Stations (North East),Vehicle Management
800090693,ALLSTAR BUSINESS SOLUTIONS LTD,E2007448578,54,114.51,FUEL,07/11/16,,Fire Stations (North East),Vehicle Management
800090693,ALLSTAR BUSINESS SOLUTIONS LTD,E2007448578,55,112.95,FUEL,07/11/16,,Fire Stations (South West),Vehicle Management
800090693,ALLSTAR BUSINESS SOLUTIONS LTD,E2007448578,56,112.39,FUEL,07/11/16,,Fire Stations (South East),Vehicle Management
800090693,ALLSTAR BUSINESS SOLUTIONS LTD,E2007448578,57,111.08,FUEL,07/11/16,,Information and Communication Technology,Vehicle Management
800090693,ALLSTAR BUSINESS SOLUTIONS LTD,E2007448578,58,108.45,FUEL,07/11/16,,Fire Stations (North East),Vehicle Management
800090693,ALLSTAR BUSINESS SOLUTIONS LTD,E2007448578,59,107.57,FUEL,07/11/16,,Command Units,Vehicle Management
800090693,ALLSTAR BUSINESS SOLUTIONS LTD,E2007448578,60,107.50,FUEL,07/11/16,,Command Units,Vehicle Management
800090693,ALLSTAR BUSINESS SOLUTIONS LTD,E2007448578,61,107.10,FUEL,07/11/16,,Operational Policy,Vehicle Management
800090693,ALLSTAR BUSINESS SOLUTIONS LTD,E2007448578,62,104.15,FUEL,07/11/16,,Fire Stations (North West),Vehicle Management
800090693,ALLSTAR BUSINESS SOLUTIONS LTD,E2007448578,63,100.57,FUEL,07/11/16,,Fire Stations (North West),Vehicle Management
800090693,ALLSTAR BUSINESS SOLUTIONS LTD,E2007448578,64,100.41,FUEL,07/11/16,,Fire Stations (South East),Vehicle Management
800090693,ALLSTAR BUSINESS SOLUTIONS LTD,E2007448578,65,98.74,FUEL,07/11/16,,Fire Stations (North East),Vehicle Management
800090693,ALLSTAR BUSINESS SOLUTIONS LTD,E2007448578,66,96.51,FUEL,07/11/16,,LIFE - LFB Funded,Vehicle Management
800090693,ALLSTAR BUSINESS SOLUTIONS LTD,E2007448578,67,95.32,FUEL,07/11/16,,Fire Stations (South East),Vehicle Management
800090693,ALLSTAR BUSINESS SOLUTIONS LTD,E2007448578,68,94.29,FUEL,07/11/16,,Fire Stations (North East),Vehicle Management
800090693,ALLSTAR BUSINESS SOLUTIONS LTD,E2007448578,69,93.27,FUEL,07/11/16,,Fire Stations (North West),Vehicle Management
800090693,ALLSTAR BUSINESS SOLUTIONS LTD,E2007448578,70,90.85,FUEL,07/11/16,,Fire Stations (South West),Vehicle Management
800090693,ALLSTAR BUSINESS SOLUTIONS LTD,E2007448578,71,89.57,FUEL,07/11/16,,Fire Stations (North West),Vehicle Management
800090693,ALLSTAR BUSINESS SOLUTIONS LTD,E2007448578,72,86.84,FUEL,07/11/16,,Fire Stations (South East),Vehicle Management
800090693,ALLSTAR BUSINESS SOLUTIONS LTD,E2007448578,73,86.01,FUEL,07/11/16,,Fire Stations (North West),Vehicle Management
800090693,ALLSTAR BUSINESS SOLUTIONS LTD,E2007448578,74,84.45,FUEL,07/11/16,,CBRN RRT,Vehicle Management
800090693,ALLSTAR BUSINESS SOLUTIONS LTD,E2007448578,75,81.80,FUEL,07/11/16,,Fire Stations (North East),Vehicle Management
800090693,ALLSTAR BUSINESS SOLUTIONS LTD,E2007448578,76,79.31,FUEL,07/11/16,,Fire Stations (North East),Vehicle Management
800090693,ALLSTAR BUSINESS SOLUTIONS LTD,E2007448578,77,75.46,FUEL,07/11/16,,Fire Stations (North West),Vehicle Management
800090693,ALLSTAR BUSINESS SOLUTIONS LTD,E2007448578,78,73.34,FUEL,07/11/16,,Fire Stations (North East),Vehicle Management
800090693,ALLSTAR BUSINESS SOLUTIONS LTD,E2007448578,79,68.79,FUEL,07/11/16,,Fire Stations (South East),Vehicle Management
800090693,ALLSTAR BUSINESS SOLUTIONS LTD,E2007448578,80,66.54,FUEL,07/11/16,,Technical and Service Support,Vehicle Management
800090693,ALLSTAR BUSINESS SOLUTIONS LTD,E2007448578,81,64.12,FUEL,07/11/16,,Command Units,Vehicle Management
800090693,ALLSTAR BUSINESS SOLUTIONS LTD,E2007448578,82,63.83,FUEL,07/11/16,,Fire Stations (South East),Vehicle Management
800090693,ALLSTAR BUSINESS SOLUTIONS LTD,E2007448578,83,62.92,FUEL,07/11/16,,Fire Stations (South East),Vehicle Management
800090693,ALLSTAR BUSINESS SOLUTIONS LTD,E2007448578,84,60.90,FUEL,07/11/16,,Fire Stations (North West),Vehicle Management
800090693,ALLSTAR BUSINESS SOLUTIONS LTD,E2007448578,85,60.85,FUEL,07/11/16,,Fire Stations (South East),Vehicle Management
800090693,ALLSTAR BUSINESS SOLUTIONS LTD,E2007448578,86,57.32,FUEL,07/11/16,,Fire Stations (South East),Vehicle Management
800090693,ALLSTAR BUSINESS SOLUTIONS LTD,E2007448578,87,54.78,FUEL,07/11/16,,Fire Stations (North East),Vehicle Management
800090693,ALLSTAR BUSINESS SOLUTIONS LTD,E2007448578,88,40.14,FUEL,07/11/16,,Command Units,Vehicle Management
800090693,ALLSTAR BUSINESS SOLUTIONS LTD,E2007448578,89,32.56,FUEL,07/11/16,,Technical and Service Support,Vehicle Management
800090693,ALLSTAR BUSINESS SOLUTIONS LTD,E2007448578,90,16.72,FUEL,07/11/16,,Fire Stations (North West),Vehicle Management
800090693,ALLSTAR BUSINESS SOLUTIONS LTD,E2007448578,91,9.82,FUEL,07/11/16,,Fire Stations (South West),Vehicle Management
021116G,BOXFIT UK LIMITED,I/R18002911,1,56.24,COMMUNITY RELATIONS,07/11/16,316.32,Community Safety Delivery,Sports & Playground Equip
021116G,BOXFIT UK LIMITED,I/R18002911,2,50.98,COMMUNITY RELATIONS,07/11/16,,Community Safety Delivery,Sports & Playground Equip
021116G,BOXFIT UK LIMITED,I/R18002911,3,42.48,COMMUNITY RELATIONS,07/11/16,,Community Safety Delivery,Sports & Playground Equip
021116G,BOXFIT UK LIMITED,I/R18002911,4,145.81,COMMUNITY RELATIONS,07/11/16,,Community Safety Delivery,Sports & Playground Equip
021116G,BOXFIT UK LIMITED,I/R18002911,5,20.81,COMMUNITY RELATIONS,07/11/16,,Community Safety Delivery,Sports & Playground Equip
261016K,HALL FUELS,I08783503,1,"2,932.92",FUEL,07/11/16,"2,932.92",Fire Stations (North West),Vehicle Management
021116G,ULTIMA BUSINESS SOLUTIONS=====,OP/I104950,1,"1,700.00",MAINTENANCE & SUPPORT,07/11/16,"1,700.00",Information and Communication Technology,ICT
021116G,ULTIMA BUSINESS SOLUTIONS=====,OP/I104952,1,"1,700.00",MAINTENANCE & SUPPORT,07/11/16,"1,700.00",Information and Communication Technology,ICT
021116G,DODS GROUP PLC,PK0102428,1,595.00,PROFESSIONAL DEVELOPMENT,07/11/16,595.00,Corporate Management Team,Human Resources
902687,THERMO FISHER SCIENTIFIC MESST,RSI 504883,1,"6,050.00",REPAIR & MAINTENANCE,07/11/16,"6,076.00",Technical and Service Support,Environmental Services
902687,THERMO FISHER SCIENTIFIC MESST,RSI 504883,2,26.00,REPAIR & MAINTENANCE,07/11/16,,Technical and Service Support,Environmental Services
191016K,HUNTER LODGE==================,SI-06330,1,824.00,ADVERTISING,07/11/16,824.00,HR Management,Facilities & Management S
021116S,VODAFONE PAGING LTD===========,VR1463350,1,"5,049.33",CELLULAR TELEPHONES,07/11/16,"5,049.33",Information and Communication Technology,ICT
021116S,VODAFONE PAGING LTD===========,VR1463351,1,"1,847.88",CELLULAR TELEPHONES,07/11/16,"1,847.88",Information and Communication Technology,ICT
211016K,WESTMINSTER BUSINESS FORUM,W118727-916,1,630.00,PROFESSIONAL DEVELOPMENT,07/11/16,630.00,Operational Policy,Human Resources
902688,MARY EVANS PICTURE LIBRARY,4/2016,1,349.10,GENERAL,09/11/16,349.10,LFB 150th Anniversary,Education
031116C,MOOLANDS LTD,00002854,1,"3,849.50",PLANNED BUILDING DECORATIONS,10/11/16,"3,849.50",Technical and Service Support,"Works - Construction, R&M"
041116G,MOOLANDS LTD,00006358,1,792.00,STRATEGIC (CYCLICAL),10/11/16,"9,504.00",Technical and Service Support,"Works - Construction, R&M"
041116G,MOOLANDS LTD,00006358,2,792.00,STRATEGIC (CYCLICAL),10/11/16,,Technical and Service Support,"Works - Construction, R&M"
041116G,MOOLANDS LTD,00006358,3,792.00,STRATEGIC (CYCLICAL),10/11/16,,Technical and Service Support,"Works - Construction, R&M"
041116G,MOOLANDS LTD,00006358,4,792.00,STRATEGIC (CYCLICAL),10/11/16,,Technical and Service Support,"Works - Construction, R&M"
041116G,MOOLANDS LTD,00006358,5,792.00,STRATEGIC (CYCLICAL),10/11/16,,Technical and Service Support,"Works - Construction, R&M"
041116G,MOOLANDS LTD,00006358,6,792.00,STRATEGIC (CYCLICAL),10/11/16,,Technical and Service Support,"Works - Construction, R&M"
041116G,MOOLANDS LTD,00006358,7,792.00,STRATEGIC (CYCLICAL),10/11/16,,Technical and Service Support,"Works - Construction, R&M"
041116G,MOOLANDS LTD,00006358,8,792.00,STRATEGIC (CYCLICAL),10/11/16,,Technical and Service Support,"Works - Construction, R&M"
041116G,MOOLANDS LTD,00006358,9,792.00,STRATEGIC (CYCLICAL),10/11/16,,Technical and Service Support,"Works - Construction, R&M"
041116G,MOOLANDS LTD,00006358,10,792.00,STRATEGIC (CYCLICAL),10/11/16,,Technical and Service Support,"Works - Construction, R&M"
041116G,MOOLANDS LTD,00006358,11,792.00,STRATEGIC (CYCLICAL),10/11/16,,Technical and Service Support,"Works - Construction, R&M"
041116G,MOOLANDS LTD,00006358,12,792.00,STRATEGIC (CYCLICAL),10/11/16,,Technical and Service Support,"Works - Construction, R&M"
031116C,HCD BUILDING CONTROL LTD,0030822,1,950.00,PROF FEES-MISCELLANEOUS,10/11/16,950.00,Technical and Service Support,Facilities & Management S
041116G,JAMIE THOMPSON ASSOCIATES,01/2016,1,344.35,GENERAL,10/11/16,344.35,Fire Safety Regulation,Consultancy
141672,THAMES WATER UTILITIES LTD====,0213662018I,1,832.55,WATER & SEWERAGE RATES,10/11/16,832.55,Technical and Service Support,Utilities
251016K,TMP (LIMITED) UK,100000147072,1,"24,500.00",MAINTENANCE & SUPPORT,10/11/16,"24,500.00",Information and Communication Technology,Human Resources
141672,THAMES WATER UTILITIES LTD====,1038570223J,1,304.53,WATER & SEWERAGE RATES,10/11/16,304.53,Technical and Service Support,Utilities
800082596,AZTEC COMPUTING LTD===========,10503,1,"1,750.00",MAINTENANCE & SUPPORT,10/11/16,"1,750.00",HR Management,ICT
800090880,AZTEC COMPUTING LTD===========,10525,1,"4,500.00",MAINTENANCE & SUPPORT,10/11/16,"4,500.00",Information and Communication Technology,ICT
800090881,AZTEC COMPUTING LTD===========,10526,1,"1,400.00",MAINTENANCE & SUPPORT,10/11/16,"1,400.00",Information and Communication Technology,ICT
800090882,AZTEC COMPUTING LTD===========,10527,1,"2,625.00",MAINTENANCE & SUPPORT,10/11/16,"2,625.00",Information and Communication Technology,ICT
800090883,AZTEC COMPUTING LTD===========,10528,1,"1,312.50",MAINTENANCE & SUPPORT,10/11/16,"1,312.50",Development and Training,ICT
800090884,AZTEC COMPUTING LTD===========,10529,1,"5,625.00",MAINTENANCE & SUPPORT,10/11/16,"5,625.00",Information and Communication Technology,ICT
800090885,AZTEC COMPUTING LTD===========,10530,1,"1,500.00",MAINTENANCE & SUPPORT,10/11/16,"1,500.00",Information and Communication Technology,ICT
800090886,AZTEC COMPUTING LTD===========,10531,1,"12,187.50",MAINTENANCE & SUPPORT,10/11/16,"12,187.50",Information and Communication Technology,ICT
041116G,*SPRUE SAFETY PRODUCTS LTD====,1096290,1,741.60,FIRE DETECTORS,10/11/16,741.60,Fire Stations (South West),Health & Safety
251016K,IMTECH INVIRON,15006739R7,1,"5,716.00",DEVELOPMENT  EXPENSES-CONTRACT,10/11/16,"39,693.00",Technical and Service Support,Facilities & Management S
251016K,IMTECH INVIRON,15006739R7,2,559.00,DEVELOPMENT  EXPENSES-CONTRACT,10/11/16,,Technical and Service Support,Facilities & Management S
251016K,IMTECH INVIRON,15006739R7,3,"2,025.00",DEVELOPMENT  EXPENSES-CONTRACT,10/11/16,,Technical and Service Support,Facilities & Management S
251016K,IMTECH INVIRON,15006739R7,4,"2,025.00",DEVELOPMENT  EXPENSES-CONTRACT,10/11/16,,Technical and Service Support,Facilities & Management S
251016K,IMTECH INVIRON,15006739R7,5,559.00,DEVELOPMENT  EXPENSES-CONTRACT,10/11/16,,Technical and Service Support,Facilities & Management S
251016K,IMTECH INVIRON,15006739R7,6,"10,212.00",DEVELOPMENT  EXPENSES-CONTRACT,10/11/16,,Technical and Service Support,Facilities & Management S
251016K,IMTECH INVIRON,15006739R7,7,"2,025.00",DEVELOPMENT  EXPENSES-CONTRACT,10/11/16,,Technical and Service Support,Facilities & Management S
251016K,IMTECH INVIRON,15006739R7,8,"2,025.00",DEVELOPMENT  EXPENSES-CONTRACT,10/11/16,,Technical and Service Support,Facilities & Management S
251016K,IMTECH INVIRON,15006739R7,9,"2,025.00",DEVELOPMENT  EXPENSES-CONTRACT,10/11/16,,Technical and Service Support,Facilities & Management S
251016K,IMTECH INVIRON,15006739R7,10,"12,522.00",DEVELOPMENT  EXPENSES-CONTRACT,10/11/16,,Technical and Service Support,Facilities & Management S
311016K,KIER BUILDING SERV ENGINEERS==,16040747,1,"31,760.21",TACTICAL DAY TO DAY,10/11/16,"71,021.75",Technical and Service Support,"Works - Construction, R&M"
311016K,KIER BUILDING SERV ENGINEERS==,16040747,2,574.74,TACTICAL DAY TO DAY,10/11/16,,Technical and Service Support,"Works - Construction, R&M"
311016K,KIER BUILDING SERV ENGINEERS==,16040747,3,"1,820.04",TACTICAL DAY TO DAY,10/11/16,,Technical and Service Support,"Works - Construction, R&M"
311016K,KIER BUILDING SERV ENGINEERS==,16040747,4,"2,297.73",TACTICAL DAY TO DAY,10/11/16,,Technical and Service Support,"Works - Construction, R&M"
311016K,KIER BUILDING SERV ENGINEERS==,16040747,5,"26,073.62",STRATEGIC (CYCLICAL),10/11/16,,Technical and Service Support,"Works - Construction, R&M"
311016K,KIER BUILDING SERV ENGINEERS==,16040747,6,860.17,STRATEGIC (CYCLICAL),10/11/16,,Technical and Service Support,"Works - Construction, R&M"
311016K,KIER BUILDING SERV ENGINEERS==,16040747,7,"1,640.92",STRATEGIC (CYCLICAL),10/11/16,,Technical and Service Support,"Works - Construction, R&M"
311016K,KIER BUILDING SERV ENGINEERS==,16040747,8,"5,994.32",STRATEGIC (CYCLICAL),10/11/16,,Technical and Service Support,"Works - Construction, R&M"
311016K,KIER BUILDING SERV ENGINEERS==,16040748,1,"11,823.46",STRATEGIC (CYCLICAL),10/11/16,"11,823.46",Technical and Service Support,"Works - Construction, R&M"
041116G,KBR,1610G393009,1,"5,950.40",CONSULTANTS,10/11/16,"125,674.16",Technical and Service Support,Facilities & Management S
041116G,KBR,1610G393009,2,"17,873.63",CONSULTANTS,10/11/16,,Technical and Service Support,Facilities & Management S
041116G,KBR,1610G393009,3,"17,979.76",CONSULTANTS,10/11/16,,Technical and Service Support,Facilities & Management S
041116G,KBR,1610G393009,4,"4,074.04",CONSULTANTS,10/11/16,,Technical and Service Support,Facilities & Management S
041116G,KBR,1610G393009,5,"1,389.88",CONSULTANTS,10/11/16,,Technical and Service Support,Facilities & Management S
041116G,KBR,1610G393009,6,"7,464.77",CONSULTANTS,10/11/16,,Technical and Service Support,Facilities & Management S
041116G,KBR,1610G393009,7,"33,164.25",CONSULTANTS,10/11/16,,Technical and Service Support,Facilities & Management S
041116G,KBR,1610G393009,8,"2,316.47",CONSULTANTS,10/11/16,,Technical and Service Support,Facilities & Management S
041116G,KBR,1610G393009,9,"2,247.04",CONSULTANTS,10/11/16,,Technical and Service Support,Facilities & Management S
041116G,KBR,1610G393009,10,"12,020.27",CONSULTANTS,10/11/16,,Technical and Service Support,Facilities & Management S
041116G,KBR,1610G393009,11,"21,193.65",CONSULTANTS,10/11/16,,Technical and Service Support,Facilities & Management S
011116G,ENGIE,1800013357,1,668.69,PLANNED BUILDING DECORATIONS,10/11/16,668.69,Technical and Service Support,"Works - Construction, R&M"
011116G,ENGIE,1800013364,1,364.61,PLANNED BUILDING DECORATIONS,10/11/16,364.61,Technical and Service Support,"Works - Construction, R&M"
011116G,ENGIE,1800013367,1,522.35,PLANNED BUILDING DECORATIONS,10/11/16,522.35,Technical and Service Support,"Works - Construction, R&M"
011116G,ENGIE,1800013372,1,301.18,PLANNED BUILDING DECORATIONS,10/11/16,301.18,Technical and Service Support,"Works - Construction, R&M"
011116G,ENGIE,1800013375,1,351.48,PLANNED BUILDING DECORATIONS,10/11/16,351.48,Technical and Service Support,"Works - Construction, R&M"
011116G,ENGIE,1800013380,1,524.42,PLANNED BUILDING DECORATIONS,10/11/16,524.42,Technical and Service Support,"Works - Construction, R&M"
011116G,ENGIE,1800013382,1,401.23,PLANNED BUILDING DECORATIONS,10/11/16,401.23,Technical and Service Support,"Works - Construction, R&M"
011116G,ENGIE,1800013384,1,467.22,PLANNED BUILDING DECORATIONS,10/11/16,467.22,Technical and Service Support,"Works - Construction, R&M"
011116G,ENGIE,1800013616,1,"1,136.06",STRATEGIC (CYCLICAL),10/11/16,"1,136.06",Technical and Service Support,"Works - Construction, R&M"
011116G,ENGIE,1800013621,1,"1,304.37",STRATEGIC (CYCLICAL),10/11/16,"1,304.37",Technical and Service Support,"Works - Construction, R&M"
011116G,ENGIE,1800013625,1,"1,304.37",STRATEGIC (CYCLICAL),10/11/16,"1,304.37",Technical and Service Support,"Works - Construction, R&M"
011116G,ENGIE,1800013629,1,"1,304.37",STRATEGIC (CYCLICAL),10/11/16,"1,304.37",Technical and Service Support,"Works - Construction, R&M"
041116G,GEORGE JONES & SON LTD========,1805,1,"14,419.15",PLANNED BUILDING DECORATIONS,10/11/16,"14,419.15",Technical and Service Support,"Works - Construction, R&M"
041116G,DRON & WRIGHT=================,18514,1,875.50,PROFESSIONAL SERVICES,10/11/16,"27,828.73",Technical and Service Support,Facilities & Management S
041116G,DRON & WRIGHT=================,18514,2,"4,796.66",PROFESSIONAL SERVICES,10/11/16,,Technical and Service Support,Facilities & Management S
041116G,DRON & WRIGHT=================,18514,3,"1,727.00",PROFESSIONAL SERVICES,10/11/16,,Technical and Service Support,Facilities & Management S
041116G,DRON & WRIGHT=================,18514,4,"2,148.00",PROFESSIONAL SERVICES,10/11/16,,Technical and Service Support,Facilities & Management S
041116G,DRON & WRIGHT=================,18514,5,71.00,PROFESSIONAL SERVICES,10/11/16,,Technical and Service Support,Facilities & Management S
041116G,DRON & WRIGHT=================,18514,6,"1,027.00",DISPOSAL COSTS-ESTATES AGENTS,10/11/16,,Technical and Service Support,Facilities & Management S
041116G,DRON & WRIGHT=================,18514,7,"1,994.00",DISPOSAL COSTS-ESTATES AGENTS,10/11/16,,Technical and Service Support,Facilities & Management S
041116G,DRON & WRIGHT=================,18514,8,"1,856.50",PROFESSIONAL SERVICES,10/11/16,,Technical and Service Support,Facilities & Management S
041116G,DRON & WRIGHT=================,18514,9,"2,985.50",PROFESSIONAL SERVICES,10/11/16,,Technical and Service Support,Facilities & Management S
041116G,DRON & WRIGHT=================,18514,10,416.67,PROFESSIONAL SERVICES,10/11/16,,Technical and Service Support,Facilities & Management S
041116G,DRON & WRIGHT=================,18514,11,316.00,PROF FEES-MISCELLANEOUS,10/11/16,,Technical and Service Support,Facilities & Management S
041116G,DRON & WRIGHT=================,18514,12,470.40,PROF FEES-MISCELLANEOUS,10/11/16,,Technical and Service Support,Facilities & Management S
041116G,DRON & WRIGHT=================,18514,13,"7,417.70",DISPOSAL COSTS-ESTATES AGENTS,10/11/16,,Technical and Service Support,Facilities & Management S
041116G,DRON & WRIGHT=================,18514,14,35.00,PROF FEES-MISCELLANEOUS,10/11/16,,Technical and Service Support,Facilities & Management S
041116G,DRON & WRIGHT=================,18514,15,396.00,PROF FEES-MISCELLANEOUS,10/11/16,,Technical and Service Support,Facilities & Management S
041116G,DRON & WRIGHT=================,18514,16,2.00,PROF FEES-MISCELLANEOUS,10/11/16,,Technical and Service Support,Facilities & Management S
041116G,DRON & WRIGHT=================,18514,17,538.50,PROF FEES-MISCELLANEOUS,10/11/16,,Technical and Service Support,Facilities & Management S
041116G,DRON & WRIGHT=================,18514,18,755.30,PROF FEES-MISCELLANEOUS,10/11/16,,Technical and Service Support,Facilities & Management S
031116C,DRON & WRIGHT=================,18522,1,560.00,PROFESSIONAL SERVICES,10/11/16,575.50,Property PFI,Facilities & Management S
031116C,DRON & WRIGHT=================,18522,2,15.50,PROFESSIONAL SERVICES,10/11/16,,Property PFI,Facilities & Management S
071116G,DRON & WRIGHT=================,18532,1,"5,973.50",PROFESSIONAL SERVICES,10/11/16,"6,323.50",Technical and Service Support,Facilities & Management S
071116G,DRON & WRIGHT=================,18532,2,350.00,PROF FEES-MISCELLANEOUS,10/11/16,,Technical and Service Support,Facilities & Management S
141672,AFFINITY WATER,1903824-9M,1,283.79,WATER & SEWERAGE RATES,10/11/16,283.79,Technical and Service Support,Utilities
800090696,REDFERN TRAVEL LTD,1941227,1,"1,115.30",ACCOMMODATION BOOKINGS,10/11/16,"1,115.30",National Operational Guidance Project,Human Resources
031116C,FURNELLS======================,20372,1,387.00,PUBLIC RELATIONS,10/11/16,387.00,Communications,Facilities & Management S
071116G,SPECTRUM======================,2167,1,560.00,SPECIALIST EQUIPMENT,10/11/16,560.00,Communications,Facilities & Management S
071116G,L B OF RICHMOND===============,2205035256,1,"1,000.00",GENERAL,10/11/16,"1,000.00",Community Safety Delivery,Statutory Bodies
800090243,ADECCO UK LIMITED=============,27520511,1,454.23,FRS STAFF AGENCY,10/11/16,454.23,Information and Communication Technology,Human Resources
800090244,ADECCO UK LIMITED=============,27520512,1,757.05,FRS STAFF AGENCY,10/11/16,757.05,Information and Communication Technology,Human Resources
031116C,AECOM INFRASTRUCTURE &,28281825,1,"1,201.26",PROF FEES-MISCELLANEOUS,10/11/16,"1,201.26",Technical and Service Support,Consultancy
021116S,TNT UK LIMITED================,3250608,1,279.98,POSTAL SERVICES,10/11/16,279.98,Information Management,Mail Services
071116G,B NOKES CONTRACTS LTD,3355,1,"76,162.00",DEVELOPMENT  EXPENSES-CONTRACT,10/11/16,"76,162.00",Technical and Service Support,"Works - Construction, R&M"
031116C,BRISTOL UNIFORMS LTD==========,356592,1,"2,684.90",CLOTHING,10/11/16,"2,684.90",Central Operations,Clothing
031116C,BIFFA WASTE SERVICES LTD======,501M71552,1,414.56,PLANNED PEST CONTROL,10/11/16,414.56,Technical and Service Support,Environmental Services
031116C,FAHEY BUILDERS LTD============,5378,1,"5,425.00",DEVELOPMENT  EXPENSES-CONTRACT,10/11/16,"5,425.00",Technical and Service Support,"Works - Construction, R&M"
031116C,FAHEY BUILDERS LTD============,5379,1,"3,450.00",PLANNED BUILDING DECORATIONS,10/11/16,"3,450.00",Technical and Service Support,"Works - Construction, R&M"
031116C,FOCUS & VISION TECHNOLOGY LTD,54187,1,994.00,MEDICAL EXPENSES CONTRACT,10/11/16,994.00,HR Management,Healthcare
031116C,FOCUS & VISION TECHNOLOGY LTD,54261,1,315.03,MEDICAL EXPENSES CONTRACT,10/11/16,315.03,HR Management,Healthcare
031116C,FOCUS & VISION TECHNOLOGY LTD,54276,1,636.75,MEDICAL EXPENSES CONTRACT,10/11/16,636.75,HR Management,Healthcare
031116C,FOCUS & VISION TECHNOLOGY LTD,54419,1,"1,073.60",MEDICAL EXPENSES CONTRACT,10/11/16,"1,073.60",HR Management,Healthcare
141672,THAMES WATER UTILITIES LTD====,6131857448T,1,332.14,WATER & SEWERAGE RATES,10/11/16,332.14,Technical and Service Support,Utilities
800090422,HAYS SPECIALIST RECRUITMENT,629770,1,524.30,FRS STAFF AGENCY,10/11/16,524.30,Fire Safety Regulation,Human Resources
800090374,HAYS SPECIALIST RECRUITMENT,629771,1,"1,419.29",FRS STAFF AGENCY,10/11/16,"1,419.29",Technical and Service Support,Human Resources
800090389,HAYS SPECIALIST RECRUITMENT,629772,1,314.58,FRS STAFF AGENCY,10/11/16,314.58,HR Management,Human Resources
800090429,HAYS SPECIALIST RECRUITMENT,629773,1,305.34,FRS STAFF AGENCY,10/11/16,305.34,Legal & Democratic Services,Human Resources
800090431,HAYS SPECIALIST RECRUITMENT,629774,1,524.30,FRS STAFF AGENCY,10/11/16,524.30,Procurement,Human Resources
800090386,HAYS SPECIALIST RECRUITMENT,629775,1,524.30,FRS STAFF AGENCY,10/11/16,524.30,Fire Stations (South East),Human Resources
800090409,HAYS SPECIALIST RECRUITMENT,629776,1,524.30,FRS STAFF AGENCY,10/11/16,524.30,Fire Safety Regulation,Human Resources
800090391,HAYS SPECIALIST RECRUITMENT,629777,1,441.91,FRS STAFF AGENCY,10/11/16,441.91,Fire Stations (South East),Human Resources
800090420,HAYS SPECIALIST RECRUITMENT,629778,1,"1,068.55",FRS STAFF AGENCY,10/11/16,"1,068.55",Technical and Service Support,Human Resources
800090395,HAYS SPECIALIST RECRUITMENT,629779,1,493.44,FRS STAFF AGENCY,10/11/16,493.44,Cadets,Human Resources
800090418,HAYS SPECIALIST RECRUITMENT,629780,1,733.60,FRS STAFF AGENCY,10/11/16,733.60,Information and Communication Technology,Human Resources
800090377,HAYS SPECIALIST RECRUITMENT,629781,1,807.90,FRS STAFF AGENCY,10/11/16,807.90,National Operational Guidance Project,Human Resources
800090382,HAYS SPECIALIST RECRUITMENT,629783,1,524.30,FRS STAFF AGENCY,10/11/16,524.30,Fire Safety Regulation,Human Resources
800090426,HAYS SPECIALIST RECRUITMENT,629784,1,924.84,FRS STAFF AGENCY,10/11/16,924.84,Review of Property Services,Human Resources
800090373,HAYS SPECIALIST RECRUITMENT,629785,1,407.12,FRS STAFF AGENCY,10/11/16,407.12,Fire Stations (North East),Human Resources
800090385,HAYS SPECIALIST RECRUITMENT,629786,1,"1,015.00",FRS STAFF AGENCY,10/11/16,"1,015.00",Technical and Service Support,Human Resources
800090379,HAYS SPECIALIST RECRUITMENT,629787,1,"1,374.10",FRS STAFF AGENCY,10/11/16,"1,374.10",Legal & Democratic Services,Human Resources
800090406,HAYS SPECIALIST RECRUITMENT,629788,1,610.75,FRS STAFF AGENCY,10/11/16,610.75,Procurement,Human Resources
800090397,HAYS SPECIALIST RECRUITMENT,629789,1,508.90,FRS STAFF AGENCY,10/11/16,508.90,Fire Stations (South West),Human Resources
800090387,HAYS SPECIALIST RECRUITMENT,629790,1,524.30,FRS STAFF AGENCY,10/11/16,524.30,Fire Safety Regulation,Human Resources
800090428,HAYS SPECIALIST RECRUITMENT,629791,1,610.75,FRS STAFF AGENCY,10/11/16,610.75,Fire Safety Regulation,Human Resources
800090424,HAYS SPECIALIST RECRUITMENT,629793,1,509.32,FRS STAFF AGENCY,10/11/16,509.32,HR Management,Human Resources
800090402,HAYS SPECIALIST RECRUITMENT,629794,1,895.10,FRS STAFF AGENCY,10/11/16,895.10,Technical and Service Support,Human Resources
800090399,HAYS SPECIALIST RECRUITMENT,629795,1,"1,267.32",FRS STAFF AGENCY,10/11/16,"1,267.32",Procurement,Human Resources
800090410,HAYS SPECIALIST RECRUITMENT,629796,1,596.04,FRS STAFF AGENCY,10/11/16,596.04,Strategy & Inclusion,Human Resources
800090404,HAYS SPECIALIST RECRUITMENT,629797,1,"1,303.05",FRS STAFF AGENCY,10/11/16,"1,303.05",Information and Communication Technology,Human Resources
800090419,HAYS SPECIALIST RECRUITMENT,629799,1,"1,670.96",FRS STAFF AGENCY,10/11/16,"1,670.96",Corporate Management Team,Human Resources
800090425,HAYS SPECIALIST RECRUITMENT,629800,1,979.33,FRS STAFF AGENCY,10/11/16,979.33,National Operational Guidance Project,Human Resources
800090414,HAYS SPECIALIST RECRUITMENT,629801,1,610.05,FRS STAFF AGENCY,10/11/16,610.05,Operational Resilience,Human Resources
800090375,HAYS SPECIALIST RECRUITMENT,629802,1,645.96,FRS STAFF AGENCY,10/11/16,645.96,Development and Training,Human Resources
800090408,HAYS SPECIALIST RECRUITMENT,629803,1,950.50,FRS STAFF AGENCY,10/11/16,950.50,Procurement,Human Resources
800090380,HAYS SPECIALIST RECRUITMENT,629804,1,"1,566.95",FRS STAFF AGENCY,10/11/16,"1,566.95",National Operational Guidance Project,Human Resources
800090405,HAYS SPECIALIST RECRUITMENT,629805,1,"1,015.00",FRS STAFF AGENCY,10/11/16,"1,015.00",Technical and Service Support,Human Resources
800090376,HAYS SPECIALIST RECRUITMENT,629806,1,488.95,FRS STAFF AGENCY,10/11/16,488.95,Procurement,Human Resources
800090430,HAYS SPECIALIST RECRUITMENT,629807,1,419.44,FRS STAFF AGENCY,10/11/16,419.44,HR Management,Human Resources
800090381,HAYS SPECIALIST RECRUITMENT,629808,1,476.84,FRS STAFF AGENCY,10/11/16,476.84,Central Operations,Human Resources
800090388,HAYS SPECIALIST RECRUITMENT,629810,1,377.00,FRS STAFF AGENCY,10/11/16,377.00,Fire Stations (South West),Human Resources
800090390,HAYS SPECIALIST RECRUITMENT,629811,1,455.88,FRS STAFF AGENCY,10/11/16,455.88,Information and Communication Technology,Human Resources
800090413,HAYS SPECIALIST RECRUITMENT,629812,1,876.75,FRS STAFF AGENCY,10/11/16,876.75,Technical and Service Support,Human Resources
800090384,HAYS SPECIALIST RECRUITMENT,629813,1,628.75,FRS STAFF AGENCY,10/11/16,628.75,Health and Safety,Human Resources
800090421,HAYS SPECIALIST RECRUITMENT,629814,1,479.36,FRS STAFF AGENCY,10/11/16,479.36,Technical and Service Support,Human Resources
800090398,HAYS SPECIALIST RECRUITMENT,629815,1,524.30,FRS STAFF AGENCY,10/11/16,524.30,Fire Safety Regulation,Human Resources
800090403,HAYS SPECIALIST RECRUITMENT,629816,1,419.44,FRS STAFF AGENCY,10/11/16,419.44,Fire Safety Regulation,Human Resources
800090427,HAYS SPECIALIST RECRUITMENT,629817,1,283.08,FRS STAFF AGENCY,10/11/16,283.08,Communications,Human Resources
800090383,HAYS SPECIALIST RECRUITMENT,629818,1,527.80,FRS STAFF AGENCY,10/11/16,527.80,Procurement,Human Resources
800090411,HAYS SPECIALIST RECRUITMENT,629819,1,596.05,FRS STAFF AGENCY,10/11/16,596.05,Information Management,Human Resources
800090400,HAYS SPECIALIST RECRUITMENT,629820,1,616.00,FRS STAFF AGENCY,10/11/16,616.00,Information and Communication Technology,Human Resources
800090394,HAYS SPECIALIST RECRUITMENT,629821,1,"1,545.12",FRS STAFF AGENCY,10/11/16,"1,545.12",Legal & Democratic Services,Human Resources
800090407,HAYS SPECIALIST RECRUITMENT,629822,1,621.95,FRS STAFF AGENCY,10/11/16,621.95,Legal & Democratic Services,Human Resources
800090401,HAYS SPECIALIST RECRUITMENT,629823,1,596.05,FRS STAFF AGENCY,10/11/16,596.05,HR Management,Human Resources
800090415,HAYS SPECIALIST RECRUITMENT,629824,1,746.60,FRS STAFF AGENCY,10/11/16,746.60,Information Management,Human Resources
800090412,HAYS SPECIALIST RECRUITMENT,629825,1,"1,534.05",FRS STAFF AGENCY,10/11/16,"1,534.05",Strategy & Inclusion,Human Resources
800090393,HAYS SPECIALIST RECRUITMENT,629826,1,426.44,FRS STAFF AGENCY,10/11/16,426.44,Fire Safety Regulation,Human Resources
800090396,HAYS SPECIALIST RECRUITMENT,629827,1,616.00,FRS STAFF AGENCY,10/11/16,616.00,Information and Communication Technology,Human Resources
800090392,HAYS SPECIALIST RECRUITMENT,629828,1,508.90,FRS STAFF AGENCY,10/11/16,508.90,Information Management,Human Resources
800090423,HAYS SPECIALIST RECRUITMENT,629829,1,269.64,FRS STAFF AGENCY,10/11/16,269.64,Fire Safety Regulation,Human Resources
800090439,HAYS SPECIALIST RECRUITMENT,629830,1,524.30,FRS STAFF AGENCY,10/11/16,524.30,Fire Stations (South East),Human Resources
800090435,HAYS SPECIALIST RECRUITMENT,629831,1,"1,374.12",FRS STAFF AGENCY,10/11/16,"1,374.12",Legal & Democratic Services,Human Resources
800090440,HAYS SPECIALIST RECRUITMENT,629832,1,"2,376.25",FRS STAFF AGENCY,10/11/16,"2,376.25",Procurement,Human Resources
800090433,HAYS SPECIALIST RECRUITMENT,629833,1,"1,790.80",FRS STAFF AGENCY,10/11/16,"1,790.80",National Operational Guidance Project,Human Resources
800090441,HAYS SPECIALIST RECRUITMENT,629834,1,622.30,FRS STAFF AGENCY,10/11/16,622.30,Procurement,Human Resources
800090442,HAYS SPECIALIST RECRUITMENT,629836,1,876.75,FRS STAFF AGENCY,10/11/16,876.75,Technical and Service Support,Human Resources
800090437,HAYS SPECIALIST RECRUITMENT,629837,1,479.36,FRS STAFF AGENCY,10/11/16,479.36,Technical and Service Support,Human Resources
800090432,HAYS SPECIALIST RECRUITMENT,629838,1,524.30,FRS STAFF AGENCY,10/11/16,524.30,Fire Safety Regulation,Human Resources
800090436,HAYS SPECIALIST RECRUITMENT,629839,1,527.80,FRS STAFF AGENCY,10/11/16,527.80,Procurement,Human Resources
800090438,HAYS SPECIALIST RECRUITMENT,629840,1,596.05,FRS STAFF AGENCY,10/11/16,596.05,HR Management,Human Resources
031116C,MOORE STEPHENS CONSULTING LTD=,674586,1,"1,930.00",CAMS PURCHASES,10/11/16,"1,930.00",Information and Communication Technology,ICT
071116G,PACE PETROLEUM LIMITED========,6960802,1,"2,980.00",FUEL,10/11/16,"2,980.00",Fire Stations (South West),Vehicle Management
141672,THAMES WATER UTILITIES LTD====,6976687560I,1,386.72,WATER & SEWERAGE RATES,10/11/16,386.72,Technical and Service Support,Utilities
071116G,GAS & AIR SERVICES (UK)=======,7126,1,420.00,REPAIR & MAINTENANCE,10/11/16,420.00,Technical and Service Support,Building Constr Materials
141672,THAMES WATER UTILITIES LTD====,7633637258K,1,358.25,WATER & SEWERAGE RATES,10/11/16,358.25,Technical and Service Support,Utilities
071116G,H & V HEATING & VENTILATING==,8151/144/TR,1,"3,344.84",DEVELOPMENT  EXPENSES-CONTRACT,10/11/16,"6,055.34",Technical and Service Support,Building Constr Materials
071116G,H & V HEATING & VENTILATING==,8151/144/TR,2,"2,710.50",DEVELOPMENT  EXPENSES-CONTRACT,10/11/16,,Technical and Service Support,Building Constr Materials
041116G,WOOD & WOOD INTERNATIONL SIGNS,85430,1,"1,347.00",PLANNED BUILDING DECORATIONS,10/11/16,"1,347.00",Technical and Service Support,Building Constr Materials
041116G,SHARPE PRITCHARD==============,85613,1,"6,660.00",DISPOSAL COSTS-ESTATES AGENTS,10/11/16,"6,660.00",Technical and Service Support,Legal Services
031116C,SHARPE PRITCHARD==============,85987,1,"1,806.00",LEGAL PROFESSIONAL FEES-GENERL,10/11/16,"1,806.00",Central Finance,Legal Services
071116G,TWO SERVICES LTD==============,90282,1,724.00,CATERING EQUIPMENT,10/11/16,"1,520.00",Fire Stations (South West),Catering
071116G,TWO SERVICES LTD==============,90282,2,735.00,CATERING EQUIPMENT,10/11/16,,Fire Stations (South West),Catering
071116G,TWO SERVICES LTD==============,90282,3,61.00,CATERING EQUIPMENT,10/11/16,,Fire Stations (South West),Catering
800091008,ALLSTAR BUSINESS SOLUTIONS LTD,E2007491878,1,697.71,FUEL,10/11/16,"17,085.82",Procurement,Vehicle Management
800091008,ALLSTAR BUSINESS SOLUTIONS LTD,E2007491878,2,631.79,FUEL,10/11/16,,Fire Stations (South West),Vehicle Management
800091008,ALLSTAR BUSINESS SOLUTIONS LTD,E2007491878,3,621.62,FUEL,10/11/16,,Fire Stations (North West),Vehicle Management
800091008,ALLSTAR BUSINESS SOLUTIONS LTD,E2007491878,4,481.85,FUEL,10/11/16,,Fire Stations (South West),Vehicle Management
800091008,ALLSTAR BUSINESS SOLUTIONS LTD,E2007491878,5,351.74,FUEL,10/11/16,,Fire Stations (North West),Vehicle Management
800091008,ALLSTAR BUSINESS SOLUTIONS LTD,E2007491878,6,348.29,FUEL,10/11/16,,Fire Stations (North West),Vehicle Management
800091008,ALLSTAR BUSINESS SOLUTIONS LTD,E2007491878,7,330.56,FUEL,10/11/16,,Fire Stations (North West),Vehicle Management
800091008,ALLSTAR BUSINESS SOLUTIONS LTD,E2007491878,8,328.15,FUEL,10/11/16,,Fire Stations (North East),Vehicle Management
800091008,ALLSTAR BUSINESS SOLUTIONS LTD,E2007491878,9,324.37,FUEL,10/11/16,,Fire Stations (South West),Vehicle Management
800091008,ALLSTAR BUSINESS SOLUTIONS LTD,E2007491878,10,317.72,FUEL,10/11/16,,Fire Stations (South West),Vehicle Management
800091008,ALLSTAR BUSINESS SOLUTIONS LTD,E2007491878,11,316.20,FUEL,10/11/16,,Fire Stations (North West),Vehicle Management
800091008,ALLSTAR BUSINESS SOLUTIONS LTD,E2007491878,12,311.50,FUEL,10/11/16,,Fire Stations (South West),Vehicle Management
800091008,ALLSTAR BUSINESS SOLUTIONS LTD,E2007491878,13,308.36,FUEL,10/11/16,,Fire Stations (South West),Vehicle Management
800091008,ALLSTAR BUSINESS SOLUTIONS LTD,E2007491878,14,304.02,FUEL,10/11/16,,Fire Stations (South East),Vehicle Management
800091008,ALLSTAR BUSINESS SOLUTIONS LTD,E2007491878,15,303.85,FUEL,10/11/16,,Fire Stations (North East),Vehicle Management
800091008,ALLSTAR BUSINESS SOLUTIONS LTD,E2007491878,16,296.50,FUEL,10/11/16,,Fire Stations (North West),Vehicle Management
800091008,ALLSTAR BUSINESS SOLUTIONS LTD,E2007491878,17,294.54,FUEL,10/11/16,,Fire Stations (South East),Vehicle Management
800091008,ALLSTAR BUSINESS SOLUTIONS LTD,E2007491878,18,277.54,FUEL,10/11/16,,Fire Stations (North West),Vehicle Management
800091008,ALLSTAR BUSINESS SOLUTIONS LTD,E2007491878,19,270.84,FUEL,10/11/16,,Fire Stations (North West),Vehicle Management
800091008,ALLSTAR BUSINESS SOLUTIONS LTD,E2007491878,20,267.19,FUEL,10/11/16,,Fire Stations (South East),Vehicle Management
800091008,ALLSTAR BUSINESS SOLUTIONS LTD,E2007491878,21,257.17,FUEL,10/11/16,,Fire Stations (North East),Vehicle Management
800091008,ALLSTAR BUSINESS SOLUTIONS LTD,E2007491878,22,251.03,FUEL,10/11/16,,Fire Stations (South West),Vehicle Management
800091008,ALLSTAR BUSINESS SOLUTIONS LTD,E2007491878,23,250.34,FUEL,10/11/16,,Fire Stations (North East),Vehicle Management
800091008,ALLSTAR BUSINESS SOLUTIONS LTD,E2007491878,24,248.92,FUEL,10/11/16,,Fire Stations (South East),Vehicle Management
800091008,ALLSTAR BUSINESS SOLUTIONS LTD,E2007491878,25,246.38,FUEL,10/11/16,,Fire Stations (North East),Vehicle Management
800091008,ALLSTAR BUSINESS SOLUTIONS LTD,E2007491878,26,245.63,FUEL,10/11/16,,Fire Stations (North East),Vehicle Management
800091008,ALLSTAR BUSINESS SOLUTIONS LTD,E2007491878,27,235.06,FUEL,10/11/16,,Fire Stations (South East),Vehicle Management
800091008,ALLSTAR BUSINESS SOLUTIONS LTD,E2007491878,28,234.52,FUEL,10/11/16,,Fire Stations (North East),Vehicle Management
800091008,ALLSTAR BUSINESS SOLUTIONS LTD,E2007491878,29,231.45,FUEL,10/11/16,,Fire Stations (South East),Vehicle Management
800091008,ALLSTAR BUSINESS SOLUTIONS LTD,E2007491878,30,231.11,FUEL,10/11/16,,Fire Stations (South West),Vehicle Management
800091008,ALLSTAR BUSINESS SOLUTIONS LTD,E2007491878,31,224.80,FUEL,10/11/16,,Fire Stations (North West),Vehicle Management
800091008,ALLSTAR BUSINESS SOLUTIONS LTD,E2007491878,32,217.55,FUEL,10/11/16,,Fire Stations (North West),Vehicle Management
800091008,ALLSTAR BUSINESS SOLUTIONS LTD,E2007491878,33,216.54,FUEL,10/11/16,,Fire Stations (North West),Vehicle Management
800091008,ALLSTAR BUSINESS SOLUTIONS LTD,E2007491878,34,214.47,FUEL,10/11/16,,Fire Stations (South West),Vehicle Management
800091008,ALLSTAR BUSINESS SOLUTIONS LTD,E2007491878,35,193.96,FUEL,10/11/16,,Fire Stations (South East),Vehicle Management
800091008,ALLSTAR BUSINESS SOLUTIONS LTD,E2007491878,36,175.58,FUEL,10/11/16,,Fire Stations (South West),Vehicle Management
800091008,ALLSTAR BUSINESS SOLUTIONS LTD,E2007491878,37,174.31,FUEL,10/11/16,,Fire Stations (North East),Vehicle Management
800091008,ALLSTAR BUSINESS SOLUTIONS LTD,E2007491878,38,165.37,FUEL,10/11/16,,Fire Stations (North East),Vehicle Management
800091008,ALLSTAR BUSINESS SOLUTIONS LTD,E2007491878,39,154.68,FUEL,10/11/16,,Fire Stations (South West),Vehicle Management
800091008,ALLSTAR BUSINESS SOLUTIONS LTD,E2007491878,40,149.31,FUEL,10/11/16,,Fire Stations (South East),Vehicle Management
800091008,ALLSTAR BUSINESS SOLUTIONS LTD,E2007491878,41,148.66,FUEL,10/11/16,,Information and Communication Technology,Vehicle Management
800091008,ALLSTAR BUSINESS SOLUTIONS LTD,E2007491878,42,148.19,FUEL,10/11/16,,Fire Safety Regulation,Vehicle Management
800091008,ALLSTAR BUSINESS SOLUTIONS LTD,E2007491878,43,146.68,FUEL,10/11/16,,Fire Stations (North West),Vehicle Management
800091008,ALLSTAR BUSINESS SOLUTIONS LTD,E2007491878,44,144.94,FUEL,10/11/16,,Fire Stations (North East),Vehicle Management
800091008,ALLSTAR BUSINESS SOLUTIONS LTD,E2007491878,45,140.19,FUEL,10/11/16,,Fire Stations (North East),Vehicle Management
800091008,ALLSTAR BUSINESS SOLUTIONS LTD,E2007491878,46,138.72,FUEL,10/11/16,,Command Units,Vehicle Management
800091008,ALLSTAR BUSINESS SOLUTIONS LTD,E2007491878,47,138.70,FUEL,10/11/16,,Fire Stations (South East),Vehicle Management
800091008,ALLSTAR BUSINESS SOLUTIONS LTD,E2007491878,48,135.57,FUEL,10/11/16,,Central Operations,Vehicle Management
800091008,ALLSTAR BUSINESS SOLUTIONS LTD,E2007491878,49,134.00,FUEL,10/11/16,,Fire Stations (South East),Vehicle Management
800091008,ALLSTAR BUSINESS SOLUTIONS LTD,E2007491878,50,132.89,FUEL,10/11/16,,Fire Stations (North West),Vehicle Management
800091008,ALLSTAR BUSINESS SOLUTIONS LTD,E2007491878,51,131.82,FUEL,10/11/16,,Fire Stations (South East),Vehicle Management
800091008,ALLSTAR BUSINESS SOLUTIONS LTD,E2007491878,52,131.29,FUEL,10/11/16,,Fire Stations (North East),Vehicle Management
800091008,ALLSTAR BUSINESS SOLUTIONS LTD,E2007491878,53,127.94,FUEL,10/11/16,,Fire Stations (South East),Vehicle Management
800091008,ALLSTAR BUSINESS SOLUTIONS LTD,E2007491878,54,127.57,FUEL,10/11/16,,Fire Stations (North East),Vehicle Management
800091008,ALLSTAR BUSINESS SOLUTIONS LTD,E2007491878,55,127.26,FUEL,10/11/16,,Fire Stations (North West),Vehicle Management
800091008,ALLSTAR BUSINESS SOLUTIONS LTD,E2007491878,56,125.57,FUEL,10/11/16,,Fire Stations (South West),Vehicle Management
800091008,ALLSTAR BUSINESS SOLUTIONS LTD,E2007491878,57,124.67,FUEL,10/11/16,,Fire Stations (South West),Vehicle Management
800091008,ALLSTAR BUSINESS SOLUTIONS LTD,E2007491878,58,123.72,FUEL,10/11/16,,Fire Stations (North East),Vehicle Management
800091008,ALLSTAR BUSINESS SOLUTIONS LTD,E2007491878,59,122.52,FUEL,10/11/16,,Command Units,Vehicle Management
800091008,ALLSTAR BUSINESS SOLUTIONS LTD,E2007491878,60,120.66,FUEL,10/11/16,,Fire Stations (North West),Vehicle Management
800091008,ALLSTAR BUSINESS SOLUTIONS LTD,E2007491878,61,119.63,FUEL,10/11/16,,Fire Stations (North West),Vehicle Management
800091008,ALLSTAR BUSINESS SOLUTIONS LTD,E2007491878,62,119.60,FUEL,10/11/16,,Fire Stations (North East),Vehicle Management
800091008,ALLSTAR BUSINESS SOLUTIONS LTD,E2007491878,63,118.92,FUEL,10/11/16,,Technical and Service Support,Vehicle Management
800091008,ALLSTAR BUSINESS SOLUTIONS LTD,E2007491878,64,111.06,FUEL,10/11/16,,Fire Stations (South East),Vehicle Management
800091008,ALLSTAR BUSINESS SOLUTIONS LTD,E2007491878,65,107.28,FUEL,10/11/16,,Command Units,Vehicle Management
800091008,ALLSTAR BUSINESS SOLUTIONS LTD,E2007491878,66,106.16,FUEL,10/11/16,,Fire Stations (North West),Vehicle Management
800091008,ALLSTAR BUSINESS SOLUTIONS LTD,E2007491878,67,105.71,FUEL,10/11/16,,Fire Stations (North West),Vehicle Management
800091008,ALLSTAR BUSINESS SOLUTIONS LTD,E2007491878,68,103.99,FUEL,10/11/16,,Fire Stations (North East),Vehicle Management
800091008,ALLSTAR BUSINESS SOLUTIONS LTD,E2007491878,69,100.67,FUEL,10/11/16,,Fire Stations (North East),Vehicle Management
800091008,ALLSTAR BUSINESS SOLUTIONS LTD,E2007491878,70,99.15,FUEL,10/11/16,,Fire Stations (South East),Vehicle Management
800091008,ALLSTAR BUSINESS SOLUTIONS LTD,E2007491878,71,97.56,FUEL,10/11/16,,Fire Stations (North East),Vehicle Management
800091008,ALLSTAR BUSINESS SOLUTIONS LTD,E2007491878,72,96.66,FUEL,10/11/16,,Command Units,Vehicle Management
800091008,ALLSTAR BUSINESS SOLUTIONS LTD,E2007491878,73,95.15,FUEL,10/11/16,,Command Units,Vehicle Management
800091008,ALLSTAR BUSINESS SOLUTIONS LTD,E2007491878,74,93.24,FUEL,10/11/16,,Fire Stations (North East),Vehicle Management
800091008,ALLSTAR BUSINESS SOLUTIONS LTD,E2007491878,75,93.11,FUEL,10/11/16,,Command Units,Vehicle Management
800091008,ALLSTAR BUSINESS SOLUTIONS LTD,E2007491878,76,91.93,FUEL,10/11/16,,Fire Stations (South East),Vehicle Management
800091008,ALLSTAR BUSINESS SOLUTIONS LTD,E2007491878,77,90.91,FUEL,10/11/16,,Fire Stations (North West),Vehicle Management
800091008,ALLSTAR BUSINESS SOLUTIONS LTD,E2007491878,78,84.67,FUEL,10/11/16,,Fire Stations (South East),Vehicle Management
800091008,ALLSTAR BUSINESS SOLUTIONS LTD,E2007491878,79,83.55,FUEL,10/11/16,,Fire Stations (North East),Vehicle Management
800091008,ALLSTAR BUSINESS SOLUTIONS LTD,E2007491878,80,77.20,FUEL,10/11/16,,Operational Resilience,Vehicle Management
800091008,ALLSTAR BUSINESS SOLUTIONS LTD,E2007491878,81,76.36,FUEL,10/11/16,,Fire Stations (South West),Vehicle Management
800091008,ALLSTAR BUSINESS SOLUTIONS LTD,E2007491878,82,74.22,FUEL,10/11/16,,Fire Stations (South East),Vehicle Management
800091008,ALLSTAR BUSINESS SOLUTIONS LTD,E2007491878,83,71.11,FUEL,10/11/16,,Fire Stations (South East),Vehicle Management
800091008,ALLSTAR BUSINESS SOLUTIONS LTD,E2007491878,84,63.57,FUEL,10/11/16,,Fire Stations (South East),Vehicle Management
800091008,ALLSTAR BUSINESS SOLUTIONS LTD,E2007491878,85,53.50,FUEL,10/11/16,,Command Units,Vehicle Management
800091008,ALLSTAR BUSINESS SOLUTIONS LTD,E2007491878,86,51.98,FUEL,10/11/16,,CBRN RRT,Vehicle Management
800091008,ALLSTAR BUSINESS SOLUTIONS LTD,E2007491878,87,49.64,FUEL,10/11/16,,Fire Stations (South East),Vehicle Management
800091008,ALLSTAR BUSINESS SOLUTIONS LTD,E2007491878,88,49.57,FUEL,10/11/16,,Fire Stations (North East),Vehicle Management
800091008,ALLSTAR BUSINESS SOLUTIONS LTD,E2007491878,89,46.71,FUEL,10/11/16,,Fire Stations (South East),Vehicle Management
800091008,ALLSTAR BUSINESS SOLUTIONS LTD,E2007491878,90,21.02,FUEL,10/11/16,,Fire Stations (North West),Vehicle Management
800091008,ALLSTAR BUSINESS SOLUTIONS LTD,E2007491878,91,9.91,FUEL,10/11/16,,Fire Stations (North East),Vehicle Management
800091008,ALLSTAR BUSINESS SOLUTIONS LTD,E2007491878,92,9.00,FUEL,10/11/16,,Technical and Service Support,Vehicle Management
800091008,ALLSTAR BUSINESS SOLUTIONS LTD,E2007491878,93,7.00,FUEL,10/11/16,,Fire Stations (South West),Vehicle Management
800091008,ALLSTAR BUSINESS SOLUTIONS LTD,E2007491878,94,6.00,FUEL,10/11/16,,Fire Stations (South West),Vehicle Management
800091008,ALLSTAR BUSINESS SOLUTIONS LTD,E2007491878,95,5.00,FUEL,10/11/16,,Fire Stations (South West),Vehicle Management
800091008,ALLSTAR BUSINESS SOLUTIONS LTD,E2007491878,96,5.00,FUEL,10/11/16,,Operational Policy,Vehicle Management
800091008,ALLSTAR BUSINESS SOLUTIONS LTD,E2007491878,97,5.00,FUEL,10/11/16,,Technical and Service Support,Vehicle Management
800091008,ALLSTAR BUSINESS SOLUTIONS LTD,E2007491878,98,4.00,FUEL,10/11/16,,Fire Stations (South West),Vehicle Management
800091008,ALLSTAR BUSINESS SOLUTIONS LTD,E2007491878,99,4.00,FUEL,10/11/16,,Fire Stations (South West),Vehicle Management
800091008,ALLSTAR BUSINESS SOLUTIONS LTD,E2007491878,100,4.00,FUEL,10/11/16,,Fire Stations (North West),Vehicle Management
800091008,ALLSTAR BUSINESS SOLUTIONS LTD,E2007491878,101,4.00,FUEL,10/11/16,,Fire Stations (North East),Vehicle Management
800091008,ALLSTAR BUSINESS SOLUTIONS LTD,E2007491878,102,4.00,FUEL,10/11/16,,Fire Stations (North West),Vehicle Management
800091008,ALLSTAR BUSINESS SOLUTIONS LTD,E2007491878,103,3.00,FUEL,10/11/16,,Fire Stations (South East),Vehicle Management
800091008,ALLSTAR BUSINESS SOLUTIONS LTD,E2007491878,104,3.00,FUEL,10/11/16,,Fire Stations (North West),Vehicle Management
800091008,ALLSTAR BUSINESS SOLUTIONS LTD,E2007491878,105,3.00,FUEL,10/11/16,,Fire Stations (South East),Vehicle Management
800091008,ALLSTAR BUSINESS SOLUTIONS LTD,E2007491878,106,3.00,FUEL,10/11/16,,Fire Stations (North West),Vehicle Management
800091008,ALLSTAR BUSINESS SOLUTIONS LTD,E2007491878,107,3.00,FUEL,10/11/16,,Fire Stations (South East),Vehicle Management
800091008,ALLSTAR BUSINESS SOLUTIONS LTD,E2007491878,108,3.00,FUEL,10/11/16,,Operational Resilience,Vehicle Management
800091008,ALLSTAR BUSINESS SOLUTIONS LTD,E2007491878,109,3.00,FUEL,10/11/16,,Fire Stations (South East),Vehicle Management
800091008,ALLSTAR BUSINESS SOLUTIONS LTD,E2007491878,110,3.00,FUEL,10/11/16,,Fire Stations (South West),Vehicle Management
800091008,ALLSTAR BUSINESS SOLUTIONS LTD,E2007491878,111,3.00,FUEL,10/11/16,,Fire Stations (North West),Vehicle Management
800091008,ALLSTAR BUSINESS SOLUTIONS LTD,E2007491878,112,3.00,FUEL,10/11/16,,Fire Stations (South East),Vehicle Management
800091008,ALLSTAR BUSINESS SOLUTIONS LTD,E2007491878,113,3.00,FUEL,10/11/16,,Fire Stations (North West),Vehicle Management
800091008,ALLSTAR BUSINESS SOLUTIONS LTD,E2007491878,114,3.00,FUEL,10/11/16,,Fire Stations (North East),Vehicle Management
800091008,ALLSTAR BUSINESS SOLUTIONS LTD,E2007491878,115,3.00,FUEL,10/11/16,,Operational Response,Vehicle Management
800091008,ALLSTAR BUSINESS SOLUTIONS LTD,E2007491878,116,3.00,FUEL,10/11/16,,LIFE - LFB Funded,Vehicle Management
800091008,ALLSTAR BUSINESS SOLUTIONS LTD,E2007491878,117,3.00,FUEL,10/11/16,,Fire Stations (South East),Vehicle Management
800091008,ALLSTAR BUSINESS SOLUTIONS LTD,E2007491878,118,3.00,FUEL,10/11/16,,Fire Stations (North East),Vehicle Management
800091008,ALLSTAR BUSINESS SOLUTIONS LTD,E2007491878,119,3.00,FUEL,10/11/16,,Fire Stations (North West),Vehicle Management
800091008,ALLSTAR BUSINESS SOLUTIONS LTD,E2007491878,120,3.00,FUEL,10/11/16,,Fire Stations (North East),Vehicle Management
800091008,ALLSTAR BUSINESS SOLUTIONS LTD,E2007491878,121,3.00,FUEL,10/11/16,,Cadets,Vehicle Management
800091008,ALLSTAR BUSINESS SOLUTIONS LTD,E2007491878,122,2.00,FUEL,10/11/16,,Operational Response,Vehicle Management
800091008,ALLSTAR BUSINESS SOLUTIONS LTD,E2007491878,123,2.00,FUEL,10/11/16,,Fire Stations (North West),Vehicle Management
800091008,ALLSTAR BUSINESS SOLUTIONS LTD,E2007491878,124,2.00,FUEL,10/11/16,,Fire Stations (South West),Vehicle Management
800091008,ALLSTAR BUSINESS SOLUTIONS LTD,E2007491878,125,2.00,FUEL,10/11/16,,Fire Stations (North East),Vehicle Management
800091008,ALLSTAR BUSINESS SOLUTIONS LTD,E2007491878,126,2.00,FUEL,10/11/16,,Challenge Team,Vehicle Management
800091008,ALLSTAR BUSINESS SOLUTIONS LTD,E2007491878,127,2.00,FUEL,10/11/16,,Fire Stations (South West),Vehicle Management
800091008,ALLSTAR BUSINESS SOLUTIONS LTD,E2007491878,128,2.00,FUEL,10/11/16,,Procurement,Vehicle Management
800091008,ALLSTAR BUSINESS SOLUTIONS LTD,E2007491878,129,2.00,FUEL,10/11/16,,LFB 150th Anniversary,Vehicle Management
800091008,ALLSTAR BUSINESS SOLUTIONS LTD,E2007491878,130,1.00,FUEL,10/11/16,,Command Units,Vehicle Management
800091008,ALLSTAR BUSINESS SOLUTIONS LTD,E2007491878,131,1.00,FUEL,10/11/16,,Fire Stations (North West),Vehicle Management
800091008,ALLSTAR BUSINESS SOLUTIONS LTD,E2007491878,132,1.00,FUEL,10/11/16,,Fire Stations (North East),Vehicle Management
800091008,ALLSTAR BUSINESS SOLUTIONS LTD,E2007491878,133,1.00,FUEL,10/11/16,,Operational Policy,Vehicle Management
800091008,ALLSTAR BUSINESS SOLUTIONS LTD,E2007491878,134,1.00,FUEL,10/11/16,,Operational Resilience,Vehicle Management
800091008,ALLSTAR BUSINESS SOLUTIONS LTD,E2007491878,135,1.00,FUEL,10/11/16,,Fire Stations (North West),Vehicle Management
800091008,ALLSTAR BUSINESS SOLUTIONS LTD,E2007491878,136,1.00,FUEL,10/11/16,,Fire Stations (South East),Vehicle Management
800091008,ALLSTAR BUSINESS SOLUTIONS LTD,E2007491878,137,1.00,FUEL,10/11/16,,Community Safety Delivery,Vehicle Management
800091008,ALLSTAR BUSINESS SOLUTIONS LTD,E2007491878,138,1.00,FUEL,10/11/16,,Cadets,Vehicle Management
800091008,ALLSTAR BUSINESS SOLUTIONS LTD,E2007491878,139,1.00,FUEL,10/11/16,,Cadets,Vehicle Management
800091008,ALLSTAR BUSINESS SOLUTIONS LTD,E2007491878,140,1.00,FUEL,10/11/16,,Cadets,Vehicle Management
800091008,ALLSTAR BUSINESS SOLUTIONS LTD,E2007491878,141,1.00,FUEL,10/11/16,,Cadets,Vehicle Management
800091008,ALLSTAR BUSINESS SOLUTIONS LTD,E2007491878,142,1.00,FUEL,10/11/16,,Cadets,Vehicle Management
800091008,ALLSTAR BUSINESS SOLUTIONS LTD,E2007491878,143,1.00,FUEL,10/11/16,,Cadets,Vehicle Management
800091008,ALLSTAR BUSINESS SOLUTIONS LTD,E2007491878,144,1.00,FUEL,10/11/16,,Cadets,Vehicle Management
800091008,ALLSTAR BUSINESS SOLUTIONS LTD,E2007491878,145,1.00,FUEL,10/11/16,,Cadets,Vehicle Management
800091008,ALLSTAR BUSINESS SOLUTIONS LTD,E2007491878,146,1.00,FUEL,10/11/16,,Cadets,Vehicle Management
800091008,ALLSTAR BUSINESS SOLUTIONS LTD,E2007491878,147,1.00,FUEL,10/11/16,,Exercise Unified Response,Vehicle Management
031116C,WM ENGINEERING SERVICES LTD===,I-5175,1,267.95,TACTICAL DAY TO DAY,10/11/16,267.95,Technical and Service Support,"Works - Construction, R&M"
031116C,WM ENGINEERING SERVICES LTD===,I-5191,1,300.00,TACTICAL DAY TO DAY,10/11/16,300.00,Technical and Service Support,"Works - Construction, R&M"
041116G,BABCOCK CIVIL INFRASTRUCTURE,II5003031,1,"31,762.30",STRATEGIC (CYCLICAL),10/11/16,"31,762.30",Technical and Service Support,"Works - Construction, R&M"
041116G,BABCOCK CIVIL INFRASTRUCTURE,II5003032,1,"31,762.30",STRATEGIC (CYCLICAL),10/11/16,"31,762.30",Technical and Service Support,"Works - Construction, R&M"
041116G,BABCOCK CIVIL INFRASTRUCTURE,II5003033,1,"6,738.95",STRATEGIC (CYCLICAL),10/11/16,"6,738.95",Technical and Service Support,"Works - Construction, R&M"
041116G,BABCOCK CIVIL INFRASTRUCTURE,II5003034,1,"6,738.95",STRATEGIC (CYCLICAL),10/11/16,"6,738.95",Technical and Service Support,"Works - Construction, R&M"
041116G,HAZMATLINK LIMITED============,INV-2081,1,40.00,GENERAL,10/11/16,470.00,Operational Policy,Environmental Services
041116G,HAZMATLINK LIMITED============,INV-2081,2,10.00,OPERATIONAL EQUIP-PURCHASE,10/11/16,,Fire Safety Regulation,Environmental Services
041116G,HAZMATLINK LIMITED============,INV-2081,3,10.00,OPERATIONAL EQUIP-PURCHASE,10/11/16,,Fire Safety Regulation,Environmental Services
041116G,HAZMATLINK LIMITED============,INV-2081,4,10.00,OPERATIONAL EQUIP-PURCHASE,10/11/16,,Fire Stations (South East),Environmental Services
041116G,HAZMATLINK LIMITED============,INV-2081,5,10.00,OPERATIONAL EQUIP-PURCHASE,10/11/16,,Fire Stations (South East),Environmental Services
041116G,HAZMATLINK LIMITED============,INV-2081,6,10.00,OPERATIONAL EQUIP-PURCHASE,10/11/16,,Fire Stations (South East),Environmental Services
041116G,HAZMATLINK LIMITED============,INV-2081,7,10.00,OPERATIONAL EQUIP-PURCHASE,10/11/16,,Fire Stations (South West),Environmental Services
041116G,HAZMATLINK LIMITED============,INV-2081,8,10.00,OPERATIONAL EQUIP-PURCHASE,10/11/16,,Fire Stations (South West),Environmental Services
041116G,HAZMATLINK LIMITED============,INV-2081,9,10.00,OPERATIONAL EQUIP-PURCHASE,10/11/16,,Fire Stations (North East),Environmental Services
041116G,HAZMATLINK LIMITED============,INV-2081,10,10.00,OPERATIONAL EQUIP-PURCHASE,10/11/16,,Fire Stations (North East),Environmental Services
041116G,HAZMATLINK LIMITED============,INV-2081,11,10.00,OPERATIONAL EQUIP-PURCHASE,10/11/16,,Fire Stations (North East),Environmental Services
041116G,HAZMATLINK LIMITED============,INV-2081,12,10.00,OPERATIONAL EQUIP-PURCHASE,10/11/16,,Fire Stations (North East),Environmental Services
041116G,HAZMATLINK LIMITED============,INV-2081,13,10.00,OPERATIONAL EQUIP-PURCHASE,10/11/16,,Fire Stations (North East),Environmental Services
041116G,HAZMATLINK LIMITED============,INV-2081,14,10.00,OPERATIONAL EQUIP-PURCHASE,10/11/16,,Fire Stations (North West),Environmental Services
041116G,HAZMATLINK LIMITED============,INV-2081,15,10.00,OPERATIONAL EQUIP-PURCHASE,10/11/16,,Fire Stations (North West),Environmental Services
041116G,HAZMATLINK LIMITED============,INV-2081,16,10.00,OPERATIONAL EQUIP-PURCHASE,10/11/16,,Fire Stations (North West),Environmental Services
041116G,HAZMATLINK LIMITED============,INV-2081,17,10.00,OPERATIONAL EQUIP-PURCHASE,10/11/16,,Fire Stations (North West),Environmental Services
041116G,HAZMATLINK LIMITED============,INV-2081,18,10.00,OPERATIONAL EQUIP-PURCHASE,10/11/16,,Fire Stations (North West),Environmental Services
041116G,HAZMATLINK LIMITED============,INV-2081,19,10.00,OPERATIONAL EQUIP-PURCHASE,10/11/16,,Fire Stations (South West),Environmental Services
041116G,HAZMATLINK LIMITED============,INV-2081,20,10.00,OPERATIONAL EQUIP-PURCHASE,10/11/16,,Development and Training,Environmental Services
041116G,HAZMATLINK LIMITED============,INV-2081,21,10.00,OPERATIONAL EQUIP-PURCHASE,10/11/16,,Development and Training,Environmental Services
041116G,HAZMATLINK LIMITED============,INV-2081,22,10.00,OPERATIONAL EQUIP-PURCHASE,10/11/16,,Operational Policy,Environmental Services
041116G,HAZMATLINK LIMITED============,INV-2081,23,10.00,OPERATIONAL EQUIP-PURCHASE,10/11/16,,Operational Policy,Environmental Services
041116G,HAZMATLINK LIMITED============,INV-2081,24,10.00,OPERATIONAL EQUIP-PURCHASE,10/11/16,,Operational Policy,Environmental Services
041116G,HAZMATLINK LIMITED============,INV-2081,25,10.00,OPERATIONAL EQUIP-PURCHASE,10/11/16,,Operational Policy,Environmental Services
041116G,HAZMATLINK LIMITED============,INV-2081,26,10.00,OPERATIONAL EQUIP-PURCHASE,10/11/16,,Operational Policy,Environmental Services
041116G,HAZMATLINK LIMITED============,INV-2081,27,10.00,OPERATIONAL EQUIP-PURCHASE,10/11/16,,Fire Safety Regulation,Environmental Services
041116G,HAZMATLINK LIMITED============,INV-2081,28,10.00,OPERATIONAL EQUIP-PURCHASE,10/11/16,,Fire Safety Regulation,Environmental Services
041116G,HAZMATLINK LIMITED============,INV-2081,29,10.00,OPERATIONAL EQUIP-PURCHASE,10/11/16,,Central Operations,Environmental Services
041116G,HAZMATLINK LIMITED============,INV-2081,30,10.00,OPERATIONAL EQUIP-PURCHASE,10/11/16,,Central Operations,Environmental Services
041116G,HAZMATLINK LIMITED============,INV-2081,31,10.00,OPERATIONAL EQUIP-PURCHASE,10/11/16,,Operational Resilience,Environmental Services
041116G,HAZMATLINK LIMITED============,INV-2081,32,10.00,OPERATIONAL EQUIP-PURCHASE,10/11/16,,Operational Resilience,Environmental Services
041116G,HAZMATLINK LIMITED============,INV-2081,33,10.00,OPERATIONAL EQUIP-PURCHASE,10/11/16,,Operational Resilience,Environmental Services
041116G,HAZMATLINK LIMITED============,INV-2081,34,10.00,OPERATIONAL EQUIP-PURCHASE,10/11/16,,Operational Resilience,Environmental Services
041116G,HAZMATLINK LIMITED============,INV-2081,35,10.00,OPERATIONAL EQUIP-PURCHASE,10/11/16,,Operations Review Team,Environmental Services
041116G,HAZMATLINK LIMITED============,INV-2081,36,10.00,OPERATIONAL EQUIP-PURCHASE,10/11/16,,Operations Review Team,Environmental Services
041116G,HAZMATLINK LIMITED============,INV-2081,37,80.00,OPERATIONAL EQUIP-PURCHASE,10/11/16,,CBRN RRT,Environmental Services
261016K,CDW LTD,PSINV01751385,1,636.80,ACQUISITIONS,10/11/16,636.80,Information and Communication Technology,Consultancy
281016K,MARINA ROPES LTD==============,SIN029146,1,421.12,OPERATIONAL EQUIP-PURCHASE,10/11/16,431.12,Technical and Service Support,Fire & Rescue
281016K,MARINA ROPES LTD==============,SIN029146,2,10.00,OPERATIONAL EQUIP-PURCHASE,10/11/16,,Technical and Service Support,Fire & Rescue
800090459,*THOMAS KNEALE & CO LTD,TK1157731,1,171.92,COMMUNITY RELATIONS,10/11/16,931.57,Community Safety Delivery,Furniture
800090459,*THOMAS KNEALE & CO LTD,TK1157731,2,10.89,CLOTHING,10/11/16,,Fire Stations (North East),Furniture
800090459,*THOMAS KNEALE & CO LTD,TK1157731,3,3.47,CLOTHING,10/11/16,,Fire Stations (North East),Furniture
800090459,*THOMAS KNEALE & CO LTD,TK1157731,4,1.48,CLOTHING,10/11/16,,Fire Stations (North East),Furniture
800090459,*THOMAS KNEALE & CO LTD,TK1157731,5,0.99,CLOTHING,10/11/16,,Fire Stations (North West),Furniture
800090459,*THOMAS KNEALE & CO LTD,TK1157731,6,10.89,CLOTHING,10/11/16,,Fire Stations (North West),Furniture
800090459,*THOMAS KNEALE & CO LTD,TK1157731,7,6.94,CLOTHING,10/11/16,,Fire Stations (South East),Furniture
800090459,*THOMAS KNEALE & CO LTD,TK1157731,8,10.89,CLOTHING,10/11/16,,Fire Stations (North West),Furniture
800090459,*THOMAS KNEALE & CO LTD,TK1157731,9,10.89,CLOTHING,10/11/16,,Fire Stations (North West),Furniture
800090459,*THOMAS KNEALE & CO LTD,TK1157731,10,4.98,OFFICE FURNITURE,10/11/16,,Fire Stations (North East),Furniture
800090459,*THOMAS KNEALE & CO LTD,TK1157731,11,3.47,CLOTHING,10/11/16,,Fire Stations (South West),Furniture
800090459,*THOMAS KNEALE & CO LTD,TK1157731,12,1.48,CLOTHING,10/11/16,,Fire Stations (South West),Furniture
800090459,*THOMAS KNEALE & CO LTD,TK1157731,13,10.89,CLOTHING,10/11/16,,Fire Stations (South West),Furniture
800090459,*THOMAS KNEALE & CO LTD,TK1157731,14,10.89,CLOTHING,10/11/16,,Fire Stations (North West),Furniture
800090459,*THOMAS KNEALE & CO LTD,TK1157731,15,3.47,CLOTHING,10/11/16,,Fire Stations (North West),Furniture
800090459,*THOMAS KNEALE & CO LTD,TK1157731,16,6.94,CLOTHING,10/11/16,,CBRN RRT,Furniture
800090459,*THOMAS KNEALE & CO LTD,TK1157731,17,10.89,CLOTHING,10/11/16,,Fire Stations (North West),Furniture
800090459,*THOMAS KNEALE & CO LTD,TK1157731,18,1.48,CLOTHING,10/11/16,,Fire Stations (North West),Furniture
800090459,*THOMAS KNEALE & CO LTD,TK1157731,19,1.48,CLOTHING,10/11/16,,Fire Stations (North East),Furniture
800090459,*THOMAS KNEALE & CO LTD,TK1157731,20,3.47,CLOTHING,10/11/16,,Fire Stations (North East),Furniture
800090459,*THOMAS KNEALE & CO LTD,TK1157731,21,3.47,CLOTHING,10/11/16,,Fire Stations (North West),Furniture
800090459,*THOMAS KNEALE & CO LTD,TK1157731,22,1.48,CLOTHING,10/11/16,,Fire Stations (North West),Furniture
800090459,*THOMAS KNEALE & CO LTD,TK1157731,23,2.84,OFFICE FURNITURE,10/11/16,,Fire Stations (North West),Furniture
800090459,*THOMAS KNEALE & CO LTD,TK1157731,24,161.94,OFFICE FURNITURE,10/11/16,,Fire Stations (North East),Furniture
800090459,*THOMAS KNEALE & CO LTD,TK1157731,25,53.98,OFFICE FURNITURE,10/11/16,,Fire Stations (North East),Furniture
800090459,*THOMAS KNEALE & CO LTD,TK1157731,26,14.20,OFFICE FURNITURE,10/11/16,,Fire Stations (North East),Furniture
800090459,*THOMAS KNEALE & CO LTD,TK1157731,27,10.89,CLOTHING,10/11/16,,Fire Stations (North East),Furniture
800090459,*THOMAS KNEALE & CO LTD,TK1157731,28,10.89,CLOTHING,10/11/16,,Fire Stations (North West),Furniture
800090459,*THOMAS KNEALE & CO LTD,TK1157731,29,10.89,CLOTHING,10/11/16,,Fire Stations (South East),Furniture
800090459,*THOMAS KNEALE & CO LTD,TK1157731,30,10.89,CLOTHING,10/11/16,,Fire Stations (North West),Furniture
800090459,*THOMAS KNEALE & CO LTD,TK1157731,31,2.96,CLOTHING,10/11/16,,Fire Stations (North West),Furniture
800090459,*THOMAS KNEALE & CO LTD,TK1157731,32,21.78,CLOTHING,10/11/16,,Fire Stations (South East),Furniture
800090459,*THOMAS KNEALE & CO LTD,TK1157731,33,6.94,CLOTHING,10/11/16,,Fire Stations (South East),Furniture
800090459,*THOMAS KNEALE & CO LTD,TK1157731,34,1.98,CLOTHING,10/11/16,,Fire Stations (South East),Furniture
800090459,*THOMAS KNEALE & CO LTD,TK1157731,35,3.47,CLOTHING,10/11/16,,Fire Stations (North East),Furniture
800090459,*THOMAS KNEALE & CO LTD,TK1157731,36,10.89,CLOTHING,10/11/16,,Fire Stations (South West),Furniture
800090459,*THOMAS KNEALE & CO LTD,TK1157731,37,3.47,CLOTHING,10/11/16,,Fire Stations (South West),Furniture
800090459,*THOMAS KNEALE & CO LTD,TK1157731,38,6.94,CLOTHING,10/11/16,,Fire Stations (North East),Furniture
800090459,*THOMAS KNEALE & CO LTD,TK1157731,39,5.92,CLOTHING,10/11/16,,Fire Stations (North East),Furniture
800090459,*THOMAS KNEALE & CO LTD,TK1157731,40,32.67,CLOTHING,10/11/16,,Fire Stations (North East),Furniture
800090459,*THOMAS KNEALE & CO LTD,TK1157731,41,3.96,CLOTHING,10/11/16,,Fire Stations (North East),Furniture
800090459,*THOMAS KNEALE & CO LTD,TK1157731,42,5.18,OFFICE FURNITURE,10/11/16,,Fire Stations (North East),Furniture
800090459,*THOMAS KNEALE & CO LTD,TK1157731,43,5.68,OFFICE FURNITURE,10/11/16,,Fire Stations (North East),Furniture
800090459,*THOMAS KNEALE & CO LTD,TK1157731,44,14.20,OFFICE FURNITURE,10/11/16,,Fire Stations (North West),Furniture
800090459,*THOMAS KNEALE & CO LTD,TK1157731,45,10.89,CLOTHING,10/11/16,,Fire Stations (North East),Furniture
800090459,*THOMAS KNEALE & CO LTD,TK1157731,46,0.99,CLOTHING,10/11/16,,Fire Stations (North East),Furniture
800090459,*THOMAS KNEALE & CO LTD,TK1157731,47,6.94,CLOTHING,10/11/16,,Fire Stations (North East),Furniture
800090459,*THOMAS KNEALE & CO LTD,TK1157731,48,2.96,CLOTHING,10/11/16,,Fire Stations (North East),Furniture
800090459,*THOMAS KNEALE & CO LTD,TK1157731,49,10.89,CLOTHING,10/11/16,,Fire Stations (South East),Furniture
800090459,*THOMAS KNEALE & CO LTD,TK1157731,50,10.89,CLOTHING,10/11/16,,Fire Stations (South East),Furniture
800090459,*THOMAS KNEALE & CO LTD,TK1157731,51,1.48,CLOTHING,10/11/16,,Fire Stations (South East),Furniture
800090459,*THOMAS KNEALE & CO LTD,TK1157731,52,3.47,CLOTHING,10/11/16,,Fire Stations (South East),Furniture
800090459,*THOMAS KNEALE & CO LTD,TK1157731,53,10.89,CLOTHING,10/11/16,,Fire Stations (South East),Furniture
800090459,*THOMAS KNEALE & CO LTD,TK1157731,54,2.96,CLOTHING,10/11/16,,Fire Stations (North West),Furniture
800090459,*THOMAS KNEALE & CO LTD,TK1157731,55,6.94,CLOTHING,10/11/16,,Fire Stations (North West),Furniture
800090459,*THOMAS KNEALE & CO LTD,TK1157731,56,3.47,CLOTHING,10/11/16,,Fire Stations (North East),Furniture
800090459,*THOMAS KNEALE & CO LTD,TK1157731,57,3.47,CLOTHING,10/11/16,,Fire Stations (North East),Furniture
800090459,*THOMAS KNEALE & CO LTD,TK1157731,58,10.89,CLOTHING,10/11/16,,Fire Stations (South West),Furniture
800090459,*THOMAS KNEALE & CO LTD,TK1157731,59,3.47,CLOTHING,10/11/16,,Fire Stations (South West),Furniture
800090459,*THOMAS KNEALE & CO LTD,TK1157731,60,0.99,CLOTHING,10/11/16,,Fire Stations (South West),Furniture
800090459,*THOMAS KNEALE & CO LTD,TK1157731,61,10.89,CLOTHING,10/11/16,,Fire Stations (South West),Furniture
800090459,*THOMAS KNEALE & CO LTD,TK1157731,62,1.48,CLOTHING,10/11/16,,Fire Stations (South West),Furniture
800090459,*THOMAS KNEALE & CO LTD,TK1157731,63,3.47,CLOTHING,10/11/16,,Fire Stations (South West),Furniture
800090459,*THOMAS KNEALE & CO LTD,TK1157731,64,10.89,CLOTHING,10/11/16,,Fire Stations (North West),Furniture
800090459,*THOMAS KNEALE & CO LTD,TK1157731,65,10.89,CLOTHING,10/11/16,,Fire Stations (North West),Furniture
800090459,*THOMAS KNEALE & CO LTD,TK1157731,66,0.99,CLOTHING,10/11/16,,Fire Stations (North West),Furniture
800090459,*THOMAS KNEALE & CO LTD,TK1157731,67,0.99,CLOTHING,10/11/16,,Fire Stations (North West),Furniture
800090459,*THOMAS KNEALE & CO LTD,TK1157731,68,10.89,CLOTHING,10/11/16,,Fire Stations (North West),Furniture
800090459,*THOMAS KNEALE & CO LTD,TK1157731,69,3.47,CLOTHING,10/11/16,,Fire Stations (North West),Furniture
800090459,*THOMAS KNEALE & CO LTD,TK1157731,70,10.89,CLOTHING,10/11/16,,Fire Stations (South East),Furniture
800090459,*THOMAS KNEALE & CO LTD,TK1157731,71,10.89,CLOTHING,10/11/16,,Fire Stations (North West),Furniture
800090459,*THOMAS KNEALE & CO LTD,TK1157731,72,3.47,CLOTHING,10/11/16,,Fire Stations (North East),Furniture
800090459,*THOMAS KNEALE & CO LTD,TK1157731,73,1.48,CLOTHING,10/11/16,,Fire Stations (North East),Furniture
800090459,*THOMAS KNEALE & CO LTD,TK1157731,74,10.89,CLOTHING,10/11/16,,Fire Stations (South East),Furniture
800090459,*THOMAS KNEALE & CO LTD,TK1157731,75,0.99,CLOTHING,10/11/16,,Fire Stations (South East),Furniture
800090459,*THOMAS KNEALE & CO LTD,TK1157731,76,1.48,CLOTHING,10/11/16,,Fire Stations (South East),Furniture
800090459,*THOMAS KNEALE & CO LTD,TK1157731,77,3.47,CLOTHING,10/11/16,,Fire Stations (South East),Furniture
800090459,*THOMAS KNEALE & CO LTD,TK1157731,78,10.89,CLOTHING,10/11/16,,Fire Stations (North West),Furniture
800090459,*THOMAS KNEALE & CO LTD,TK1157731,79,3.47,CLOTHING,10/11/16,,Fire Stations (North West),Furniture
800090459,*THOMAS KNEALE & CO LTD,TK1157731,80,10.89,CLOTHING,10/11/16,,Fire Stations (North West),Furniture
800090459,*THOMAS KNEALE & CO LTD,TK1157731,81,2.59,OFFICE FURNITURE,10/11/16,,Fire Stations (North West),Furniture
800090459,*THOMAS KNEALE & CO LTD,TK1157731,82,6.94,CLOTHING,10/11/16,,Fire Stations (North West),Furniture
800090459,*THOMAS KNEALE & CO LTD,TK1157731,83,1.48,CLOTHING,10/11/16,,Fire Stations (North West),Furniture
800090459,*THOMAS KNEALE & CO LTD,TK1157731,84,10.89,CLOTHING,10/11/16,,Fire Stations (North West),Furniture
800090879,*THOMAS KNEALE & CO LTD,TK116029,1,4.98,OFFICE FURNITURE,10/11/16,887.09,Fire Stations (North West),Furniture
800090879,*THOMAS KNEALE & CO LTD,TK116029,2,0.99,CLOTHING,10/11/16,,Fire Stations (North West),Furniture
800090879,*THOMAS KNEALE & CO LTD,TK116029,3,10.89,CLOTHING,10/11/16,,Fire Stations (South West),Furniture
800090879,*THOMAS KNEALE & CO LTD,TK116029,4,1.48,CLOTHING,10/11/16,,Fire Stations (North East),Furniture
800090879,*THOMAS KNEALE & CO LTD,TK116029,5,10.89,CLOTHING,10/11/16,,Fire Stations (South West),Furniture
800090879,*THOMAS KNEALE & CO LTD,TK116029,6,0.99,CLOTHING,10/11/16,,Fire Stations (South West),Furniture
800090879,*THOMAS KNEALE & CO LTD,TK116029,7,6.94,CLOTHING,10/11/16,,Fire Stations (South West),Furniture
800090879,*THOMAS KNEALE & CO LTD,TK116029,8,2.96,CLOTHING,10/11/16,,Fire Stations (South West),Furniture
800090879,*THOMAS KNEALE & CO LTD,TK116029,9,10.89,CLOTHING,10/11/16,,Fire Stations (South West),Furniture
800090879,*THOMAS KNEALE & CO LTD,TK116029,10,6.94,CLOTHING,10/11/16,,Fire Stations (South West),Furniture
800090879,*THOMAS KNEALE & CO LTD,TK116029,11,1.48,CLOTHING,10/11/16,,Fire Stations (North West),Furniture
800090879,*THOMAS KNEALE & CO LTD,TK116029,12,10.89,CLOTHING,10/11/16,,Fire Stations (North West),Furniture
800090879,*THOMAS KNEALE & CO LTD,TK116029,13,10.89,CLOTHING,10/11/16,,Fire Stations (South West),Furniture
800090879,*THOMAS KNEALE & CO LTD,TK116029,14,3.47,CLOTHING,10/11/16,,Fire Stations (South West),Furniture
800090879,*THOMAS KNEALE & CO LTD,TK116029,15,10.89,CLOTHING,10/11/16,,Fire Stations (South West),Furniture
800090879,*THOMAS KNEALE & CO LTD,TK116029,16,4.98,OFFICE FURNITURE,10/11/16,,Fire Stations (North West),Furniture
800090879,*THOMAS KNEALE & CO LTD,TK116029,17,10.89,CLOTHING,10/11/16,,Fire Stations (South West),Furniture
800090879,*THOMAS KNEALE & CO LTD,TK116029,18,0.99,CLOTHING,10/11/16,,Fire Stations (South West),Furniture
800090879,*THOMAS KNEALE & CO LTD,TK116029,19,1.48,CLOTHING,10/11/16,,Fire Stations (South West),Furniture
800090879,*THOMAS KNEALE & CO LTD,TK116029,20,3.47,CLOTHING,10/11/16,,Fire Stations (South West),Furniture
800090879,*THOMAS KNEALE & CO LTD,TK116029,21,5.18,CLOTHING,10/11/16,,Fire Stations (South West),Furniture
800090879,*THOMAS KNEALE & CO LTD,TK116029,22,3.47,CLOTHING,10/11/16,,Fire Stations (South East),Furniture
800090879,*THOMAS KNEALE & CO LTD,TK116029,23,3.47,CLOTHING,10/11/16,,Fire Stations (North East),Furniture
800090879,*THOMAS KNEALE & CO LTD,TK116029,24,1.48,CLOTHING,10/11/16,,Fire Stations (North East),Furniture
800090879,*THOMAS KNEALE & CO LTD,TK116029,25,10.89,CLOTHING,10/11/16,,Fire Stations (North East),Furniture
800090879,*THOMAS KNEALE & CO LTD,TK116029,26,10.89,CLOTHING,10/11/16,,Fire Stations (South West),Furniture
800090879,*THOMAS KNEALE & CO LTD,TK116029,27,3.47,CLOTHING,10/11/16,,Fire Stations (South West),Furniture
800090879,*THOMAS KNEALE & CO LTD,TK116029,28,1.48,CLOTHING,10/11/16,,Fire Stations (South West),Furniture
800090879,*THOMAS KNEALE & CO LTD,TK116029,29,2.59,OFFICE FURNITURE,10/11/16,,Fire Stations (South East),Furniture
800090879,*THOMAS KNEALE & CO LTD,TK116029,30,1.48,CLOTHING,10/11/16,,Fire Stations (South East),Furniture
800090879,*THOMAS KNEALE & CO LTD,TK116029,31,10.89,CLOTHING,10/11/16,,Fire Stations (South East),Furniture
800090879,*THOMAS KNEALE & CO LTD,TK116029,32,0.99,CLOTHING,10/11/16,,Fire Stations (South East),Furniture
800090879,*THOMAS KNEALE & CO LTD,TK116029,33,4.98,OFFICE FURNITURE,10/11/16,,Fire Stations (North West),Furniture
800090879,*THOMAS KNEALE & CO LTD,TK116029,34,5.18,CLOTHING,10/11/16,,Fire Stations (South West),Furniture
800090879,*THOMAS KNEALE & CO LTD,TK116029,35,10.89,CLOTHING,10/11/16,,Fire Stations (South East),Furniture
800090879,*THOMAS KNEALE & CO LTD,TK116029,36,3.47,CLOTHING,10/11/16,,Fire Stations (South East),Furniture
800090879,*THOMAS KNEALE & CO LTD,TK116029,37,1.48,CLOTHING,10/11/16,,Fire Stations (South East),Furniture
800090879,*THOMAS KNEALE & CO LTD,TK116029,38,1.48,CLOTHING,10/11/16,,Fire Stations (South West),Furniture
800090879,*THOMAS KNEALE & CO LTD,TK116029,39,5.18,CLOTHING,10/11/16,,Fire Stations (South West),Furniture
800090879,*THOMAS KNEALE & CO LTD,TK116029,40,3.47,CLOTHING,10/11/16,,Fire Stations (North East),Furniture
800090879,*THOMAS KNEALE & CO LTD,TK116029,41,10.89,CLOTHING,10/11/16,,Fire Stations (North West),Furniture
800090879,*THOMAS KNEALE & CO LTD,TK116029,42,10.89,CLOTHING,10/11/16,,Fire Stations (North West),Furniture
800090879,*THOMAS KNEALE & CO LTD,TK116029,43,6.94,CLOTHING,10/11/16,,Fire Stations (North West),Furniture
800090879,*THOMAS KNEALE & CO LTD,TK116029,44,2.96,CLOTHING,10/11/16,,Fire Stations (North West),Furniture
800090879,*THOMAS KNEALE & CO LTD,TK116029,45,0.99,CLOTHING,10/11/16,,Fire Stations (North West),Furniture
800090879,*THOMAS KNEALE & CO LTD,TK116029,46,3.47,CLOTHING,10/11/16,,Fire Stations (North West),Furniture
800090879,*THOMAS KNEALE & CO LTD,TK116029,47,1.48,CLOTHING,10/11/16,,Fire Stations (North West),Furniture
800090879,*THOMAS KNEALE & CO LTD,TK116029,48,2.84,OFFICE FURNITURE,10/11/16,,Fire Stations (North West),Furniture
800090879,*THOMAS KNEALE & CO LTD,TK116029,49,53.98,OFFICE FURNITURE,10/11/16,,Fire Stations (North West),Furniture
800090879,*THOMAS KNEALE & CO LTD,TK116029,50,2.84,OFFICE FURNITURE,10/11/16,,Fire Stations (North West),Furniture
800090879,*THOMAS KNEALE & CO LTD,TK116029,51,3.47,CLOTHING,10/11/16,,Fire Stations (South West),Furniture
800090879,*THOMAS KNEALE & CO LTD,TK116029,52,10.89,CLOTHING,10/11/16,,Fire Stations (South West),Furniture
800090879,*THOMAS KNEALE & CO LTD,TK116029,53,13.88,CLOTHING,10/11/16,,Fire Stations (South West),Furniture
800090879,*THOMAS KNEALE & CO LTD,TK116029,54,5.92,CLOTHING,10/11/16,,Fire Stations (South West),Furniture
800090879,*THOMAS KNEALE & CO LTD,TK116029,55,43.56,CLOTHING,10/11/16,,Fire Stations (South West),Furniture
800090879,*THOMAS KNEALE & CO LTD,TK116029,56,10.89,CLOTHING,10/11/16,,Fire Stations (South West),Furniture
800090879,*THOMAS KNEALE & CO LTD,TK116029,57,10.89,CLOTHING,10/11/16,,Fire Stations (North West),Furniture
800090879,*THOMAS KNEALE & CO LTD,TK116029,58,0.99,CLOTHING,10/11/16,,Fire Stations (North West),Furniture
800090879,*THOMAS KNEALE & CO LTD,TK116029,59,3.47,CLOTHING,10/11/16,,Fire Stations (North West),Furniture
800090879,*THOMAS KNEALE & CO LTD,TK116029,60,1.48,CLOTHING,10/11/16,,Fire Stations (North West),Furniture
800090879,*THOMAS KNEALE & CO LTD,TK116029,61,10.89,CLOTHING,10/11/16,,Fire Stations (North West),Furniture
800090879,*THOMAS KNEALE & CO LTD,TK116029,62,0.99,CLOTHING,10/11/16,,Fire Stations (North West),Furniture
800090879,*THOMAS KNEALE & CO LTD,TK116029,63,3.47,CLOTHING,10/11/16,,Fire Stations (North West),Furniture
800090879,*THOMAS KNEALE & CO LTD,TK116029,64,10.89,CLOTHING,10/11/16,,Fire Stations (North West),Furniture
800090879,*THOMAS KNEALE & CO LTD,TK116029,65,0.99,CLOTHING,10/11/16,,Fire Stations (North West),Furniture
800090879,*THOMAS KNEALE & CO LTD,TK116029,66,10.89,CLOTHING,10/11/16,,Fire Stations (North West),Furniture
800090879,*THOMAS KNEALE & CO LTD,TK116029,67,10.89,CLOTHING,10/11/16,,Fire Stations (South West),Furniture
800090879,*THOMAS KNEALE & CO LTD,TK116029,68,10.89,CLOTHING,10/11/16,,Fire Stations (North West),Furniture
800090879,*THOMAS KNEALE & CO LTD,TK116029,69,0.99,CLOTHING,10/11/16,,Fire Stations (North West),Furniture
800090879,*THOMAS KNEALE & CO LTD,TK116029,70,1.48,CLOTHING,10/11/16,,Fire Stations (North West),Furniture
800090879,*THOMAS KNEALE & CO LTD,TK116029,71,3.47,CLOTHING,10/11/16,,Fire Stations (North West),Furniture
800090879,*THOMAS KNEALE & CO LTD,TK116029,72,53.98,OFFICE FURNITURE,10/11/16,,Fire Stations (South East),Furniture
800090879,*THOMAS KNEALE & CO LTD,TK116029,73,53.98,OFFICE FURNITURE,10/11/16,,Fire Stations (North West),Furniture
800090879,*THOMAS KNEALE & CO LTD,TK116029,74,2.84,OFFICE FURNITURE,10/11/16,,Fire Stations (North West),Furniture
800090879,*THOMAS KNEALE & CO LTD,TK116029,75,6.94,CLOTHING,10/11/16,,Fire Stations (South East),Furniture
800090879,*THOMAS KNEALE & CO LTD,TK116029,76,2.96,CLOTHING,10/11/16,,Fire Stations (South East),Furniture
800090879,*THOMAS KNEALE & CO LTD,TK116029,77,10.89,CLOTHING,10/11/16,,Fire Stations (South West),Furniture
800090879,*THOMAS KNEALE & CO LTD,TK116029,78,10.89,CLOTHING,10/11/16,,Fire Stations (South West),Furniture
800090879,*THOMAS KNEALE & CO LTD,TK116029,79,10.89,CLOTHING,10/11/16,,Fire Stations (South West),Furniture
800090879,*THOMAS KNEALE & CO LTD,TK116029,80,3.47,CLOTHING,10/11/16,,Fire Stations (South West),Furniture
800090879,*THOMAS KNEALE & CO LTD,TK116029,81,1.48,CLOTHING,10/11/16,,Fire Stations (South West),Furniture
800090879,*THOMAS KNEALE & CO LTD,TK116029,82,161.94,OFFICE FURNITURE,10/11/16,,Fire Stations (North West),Furniture
800090879,*THOMAS KNEALE & CO LTD,TK116029,83,6.94,CLOTHING,10/11/16,,Fire Stations (North West),Furniture
800090879,*THOMAS KNEALE & CO LTD,TK116029,84,10.89,CLOTHING,10/11/16,,Fire Stations (North West),Furniture
800090879,*THOMAS KNEALE & CO LTD,TK116029,85,0.99,CLOTHING,10/11/16,,Fire Stations (North West),Furniture
800090879,*THOMAS KNEALE & CO LTD,TK116029,86,10.89,CLOTHING,10/11/16,,Fire Stations (North East),Furniture
800090879,*THOMAS KNEALE & CO LTD,TK116029,87,0.99,CLOTHING,10/11/16,,Fire Stations (North East),Furniture
800090879,*THOMAS KNEALE & CO LTD,TK116029,88,10.89,CLOTHING,10/11/16,,Fire Stations (North West),Furniture
800090879,*THOMAS KNEALE & CO LTD,TK116029,89,0.99,CLOTHING,10/11/16,,Fire Stations (North West),Furniture
800090879,*THOMAS KNEALE & CO LTD,TK116029,90,2.84,OFFICE FURNITURE,10/11/16,,Fire Stations (North West),Furniture
800090879,*THOMAS KNEALE & CO LTD,TK116029,91,10.89,CLOTHING,10/11/16,,Fire Stations (North East),Furniture
800090879,*THOMAS KNEALE & CO LTD,TK116029,92,3.47,CLOTHING,10/11/16,,Fire Stations (North East),Furniture
800090879,*THOMAS KNEALE & CO LTD,TK116029,93,1.48,CLOTHING,10/11/16,,Fire Stations (North East),Furniture
800090879,*THOMAS KNEALE & CO LTD,TK116029,94,10.89,CLOTHING,10/11/16,,Fire Stations (South East),Furniture
800090879,*THOMAS KNEALE & CO LTD,TK116029,95,3.47,CLOTHING,10/11/16,,Fire Stations (South East),Furniture
800090879,*THOMAS KNEALE & CO LTD,TK116029,96,1.48,CLOTHING,10/11/16,,Fire Stations (South East),Furniture
800090879,*THOMAS KNEALE & CO LTD,TK116029,97,1.48,CLOTHING,10/11/16,,Fire Stations (North East),Furniture
800090879,*THOMAS KNEALE & CO LTD,TK116029,98,6.94,CLOTHING,10/11/16,,Fire Stations (South West),Furniture
800090879,*THOMAS KNEALE & CO LTD,TK116029,99,2.96,CLOTHING,10/11/16,,Fire Stations (South West),Furniture
141674,GOVNET COMMUNICATIONS=========,0000109375,1,149.00,PROFESSIONAL DEVELOPMENT,14/11/16,298.00,Legal & Democratic Services,Human Resources
141674,GOVNET COMMUNICATIONS=========,0000109375,2,149.00,PROFESSIONAL DEVELOPMENT,14/11/16,,Fire Stations (South East),Human Resources
141674,WAY AHEAD MEDIA,002,1,270.00,PROFESSIONAL DEVELOPMENT,14/11/16,270.00,Communications,Legal Services
141674,OGILVIE FLEET LTD=============,00416430,1,577.76,LEASE CAR CHARGES,14/11/16,577.76,Procurement,Vehicle Management
141674,OGILVIE FLEET LTD=============,00416430,2,-51.58,VAT CAR LEASING,14/11/16,,Finance Services,Vehicle Management
141674,OGILVIE FLEET LTD=============,00416430,3,51.58,LEASE CAR CHARGES,14/11/16,,Procurement,Vehicle Management
141674,OGILVIE FLEET LTD=============,00416432,1,344.15,LEASE CAR CHARGES,14/11/16,344.15,Procurement,Vehicle Management
141674,OGILVIE FLEET LTD=============,00416432,2,-31.50,VAT CAR LEASING,14/11/16,,Finance Services,Vehicle Management
141674,OGILVIE FLEET LTD=============,00416432,3,31.50,LEASE CAR CHARGES,14/11/16,,Procurement,Vehicle Management
141674,OGILVIE FLEET LTD=============,00416434,1,277.32,LEASE CAR CHARGES,14/11/16,277.32,Procurement,Vehicle Management
141674,OGILVIE FLEET LTD=============,00416434,2,-23.27,VAT CAR LEASING,14/11/16,,Finance Services,Vehicle Management
141674,OGILVIE FLEET LTD=============,00416434,3,23.27,LEASE CAR CHARGES,14/11/16,,Procurement,Vehicle Management
141674,OGILVIE FLEET LTD=============,00416435,1,281.97,LEASE CAR CHARGES,14/11/16,281.97,Procurement,Vehicle Management
141674,OGILVIE FLEET LTD=============,00416435,2,-25.45,VAT CAR LEASING,14/11/16,,Finance Services,Vehicle Management
141674,OGILVIE FLEET LTD=============,00416435,3,25.45,LEASE CAR CHARGES,14/11/16,,Procurement,Vehicle Management
091116G,*HUNTER APPAREL SOLUTIONS LTD,067456,1,150.00,CLOTHING,14/11/16,"3,149.86",Fire Stations (North East),Clothing
091116G,*HUNTER APPAREL SOLUTIONS LTD,067456,2,15.28,CLOTHING,14/11/16,,Fire Stations (North East),Clothing
091116G,*HUNTER APPAREL SOLUTIONS LTD,067456,3,100.00,CLOTHING,14/11/16,,Fire Stations (South East),Clothing
091116G,*HUNTER APPAREL SOLUTIONS LTD,067456,4,100.00,CLOTHING,14/11/16,,Fire Stations (South East),Clothing
091116G,*HUNTER APPAREL SOLUTIONS LTD,067456,5,25.44,CLOTHING,14/11/16,,Firefighter Trainees,Clothing
091116G,*HUNTER APPAREL SOLUTIONS LTD,067456,6,22.92,CLOTHING,14/11/16,,Firefighter Trainees,Clothing
091116G,*HUNTER APPAREL SOLUTIONS LTD,067456,7,7.64,CLOTHING,14/11/16,,Fire Stations (South West),Clothing
091116G,*HUNTER APPAREL SOLUTIONS LTD,067456,8,23.40,CLOTHING,14/11/16,,Firefighter Trainees,Clothing
091116G,*HUNTER APPAREL SOLUTIONS LTD,067456,9,20.70,CLOTHING,14/11/16,,Firefighter Trainees,Clothing
091116G,*HUNTER APPAREL SOLUTIONS LTD,067456,10,25.44,CLOTHING,14/11/16,,Firefighter Trainees,Clothing
091116G,*HUNTER APPAREL SOLUTIONS LTD,067456,11,22.92,CLOTHING,14/11/16,,Firefighter Trainees,Clothing
091116G,*HUNTER APPAREL SOLUTIONS LTD,067456,12,25.44,CLOTHING,14/11/16,,Firefighter Trainees,Clothing
091116G,*HUNTER APPAREL SOLUTIONS LTD,067456,13,22.92,CLOTHING,14/11/16,,Firefighter Trainees,Clothing
091116G,*HUNTER APPAREL SOLUTIONS LTD,067456,14,25.44,CLOTHING,14/11/16,,Firefighter Trainees,Clothing
091116G,*HUNTER APPAREL SOLUTIONS LTD,067456,15,22.92,CLOTHING,14/11/16,,Firefighter Trainees,Clothing
091116G,*HUNTER APPAREL SOLUTIONS LTD,067456,16,13.80,CLOTHING,14/11/16,,Fire Stations (South West),Clothing
091116G,*HUNTER APPAREL SOLUTIONS LTD,067456,17,23.40,CLOTHING,14/11/16,,Firefighter Trainees,Clothing
091116G,*HUNTER APPAREL SOLUTIONS LTD,067456,18,20.70,CLOTHING,14/11/16,,Firefighter Trainees,Clothing
091116G,*HUNTER APPAREL SOLUTIONS LTD,067456,19,15.28,CLOTHING,14/11/16,,Fire Stations (South East),Clothing
091116G,*HUNTER APPAREL SOLUTIONS LTD,067456,20,19.08,CLOTHING,14/11/16,,Fire Stations (North West),Clothing
091116G,*HUNTER APPAREL SOLUTIONS LTD,067456,21,25.44,CLOTHING,14/11/16,,Firefighter Trainees,Clothing
091116G,*HUNTER APPAREL SOLUTIONS LTD,067456,22,22.92,CLOTHING,14/11/16,,Firefighter Trainees,Clothing
091116G,*HUNTER APPAREL SOLUTIONS LTD,067456,23,15.28,CLOTHING,14/11/16,,Fire Stations (South East),Clothing
091116G,*HUNTER APPAREL SOLUTIONS LTD,067456,24,12.72,CLOTHING,14/11/16,,Fire Stations (South West),Clothing
091116G,*HUNTER APPAREL SOLUTIONS LTD,067456,25,25.44,CLOTHING,14/11/16,,Firefighter Trainees,Clothing
091116G,*HUNTER APPAREL SOLUTIONS LTD,067456,26,22.92,CLOTHING,14/11/16,,Firefighter Trainees,Clothing
091116G,*HUNTER APPAREL SOLUTIONS LTD,067456,27,25.44,CLOTHING,14/11/16,,Fire Stations (North West),Clothing
091116G,*HUNTER APPAREL SOLUTIONS LTD,067456,28,22.92,CLOTHING,14/11/16,,Fire Safety Regulation,Clothing
091116G,*HUNTER APPAREL SOLUTIONS LTD,067456,29,19.08,CLOTHING,14/11/16,,Fire Safety Regulation,Clothing
091116G,*HUNTER APPAREL SOLUTIONS LTD,067456,30,25.44,CLOTHING,14/11/16,,Firefighter Trainees,Clothing
091116G,*HUNTER APPAREL SOLUTIONS LTD,067456,31,22.92,CLOTHING,14/11/16,,Firefighter Trainees,Clothing
091116G,*HUNTER APPAREL SOLUTIONS LTD,067456,32,12.72,CLOTHING,14/11/16,,Fire Stations (North East),Clothing
091116G,*HUNTER APPAREL SOLUTIONS LTD,067456,33,7.64,CLOTHING,14/11/16,,Fire Stations (North East),Clothing
091116G,*HUNTER APPAREL SOLUTIONS LTD,067456,34,15.28,CLOTHING,14/11/16,,Fire Stations (South West),Clothing
091116G,*HUNTER APPAREL SOLUTIONS LTD,067456,35,15.28,CLOTHING,14/11/16,,Fire Stations (South West),Clothing
091116G,*HUNTER APPAREL SOLUTIONS LTD,067456,36,5.85,CLOTHING,14/11/16,,Fire Stations (North East),Clothing
091116G,*HUNTER APPAREL SOLUTIONS LTD,067456,37,25.44,CLOTHING,14/11/16,,Firefighter Trainees,Clothing
091116G,*HUNTER APPAREL SOLUTIONS LTD,067456,38,22.92,CLOTHING,14/11/16,,Firefighter Trainees,Clothing
091116G,*HUNTER APPAREL SOLUTIONS LTD,067456,39,25.44,CLOTHING,14/11/16,,Firefighter Trainees,Clothing
091116G,*HUNTER APPAREL SOLUTIONS LTD,067456,40,22.92,CLOTHING,14/11/16,,Firefighter Trainees,Clothing
091116G,*HUNTER APPAREL SOLUTIONS LTD,067456,41,25.44,CLOTHING,14/11/16,,Firefighter Trainees,Clothing
091116G,*HUNTER APPAREL SOLUTIONS LTD,067456,42,22.92,CLOTHING,14/11/16,,Firefighter Trainees,Clothing
091116G,*HUNTER APPAREL SOLUTIONS LTD,067456,43,25.44,CLOTHING,14/11/16,,Fire Stations (South East),Clothing
091116G,*HUNTER APPAREL SOLUTIONS LTD,067456,44,6.90,CLOTHING,14/11/16,,Fire Stations (North West),Clothing
091116G,*HUNTER APPAREL SOLUTIONS LTD,067456,45,15.28,CLOTHING,14/11/16,,Fire Stations (South East),Clothing
091116G,*HUNTER APPAREL SOLUTIONS LTD,067456,46,15.28,CLOTHING,14/11/16,,Fire Stations (North West),Clothing
091116G,*HUNTER APPAREL SOLUTIONS LTD,067456,47,15.28,CLOTHING,14/11/16,,Fire Stations (South West),Clothing
091116G,*HUNTER APPAREL SOLUTIONS LTD,067456,48,12.72,CLOTHING,14/11/16,,Fire Stations (South East),Clothing
091116G,*HUNTER APPAREL SOLUTIONS LTD,067456,49,7.64,CLOTHING,14/11/16,,Fire Stations (South East),Clothing
091116G,*HUNTER APPAREL SOLUTIONS LTD,067456,50,22.92,CLOTHING,14/11/16,,Fire Stations (North West),Clothing
091116G,*HUNTER APPAREL SOLUTIONS LTD,067456,51,15.28,CLOTHING,14/11/16,,Fire Stations (North East),Clothing
091116G,*HUNTER APPAREL SOLUTIONS LTD,067456,52,15.28,CLOTHING,14/11/16,,Fire Stations (North East),Clothing
091116G,*HUNTER APPAREL SOLUTIONS LTD,067456,53,7.64,CLOTHING,14/11/16,,Fire Stations (North East),Clothing
091116G,*HUNTER APPAREL SOLUTIONS LTD,067456,54,7.64,CLOTHING,14/11/16,,Fire Stations (North West),Clothing
091116G,*HUNTER APPAREL SOLUTIONS LTD,067456,55,6.36,CLOTHING,14/11/16,,Fire Stations (South West),Clothing
091116G,*HUNTER APPAREL SOLUTIONS LTD,067456,56,20.70,CLOTHING,14/11/16,,Fire Safety Regulation,Clothing
091116G,*HUNTER APPAREL SOLUTIONS LTD,067456,57,7.64,CLOTHING,14/11/16,,Fire Stations (North East),Clothing
091116G,*HUNTER APPAREL SOLUTIONS LTD,067456,58,19.08,CLOTHING,14/11/16,,Fire Stations (North West),Clothing
091116G,*HUNTER APPAREL SOLUTIONS LTD,067456,59,22.92,CLOTHING,14/11/16,,Fire Stations (North West),Clothing
091116G,*HUNTER APPAREL SOLUTIONS LTD,067456,60,22.92,CLOTHING,14/11/16,,Fire Stations (South West),Clothing
091116G,*HUNTER APPAREL SOLUTIONS LTD,067456,61,7.64,CLOTHING,14/11/16,,Fire Stations (North West),Clothing
091116G,*HUNTER APPAREL SOLUTIONS LTD,067456,62,12.72,CLOTHING,14/11/16,,Fire Stations (North West),Clothing
091116G,*HUNTER APPAREL SOLUTIONS LTD,067456,63,25.44,CLOTHING,14/11/16,,Fire Stations (North West),Clothing
091116G,*HUNTER APPAREL SOLUTIONS LTD,067456,64,7.64,CLOTHING,14/11/16,,Fire Stations (North West),Clothing
091116G,*HUNTER APPAREL SOLUTIONS LTD,067456,65,12.72,CLOTHING,14/11/16,,Fire Safety Regulation,Clothing
091116G,*HUNTER APPAREL SOLUTIONS LTD,067456,66,22.92,CLOTHING,14/11/16,,Fire Stations (North West),Clothing
091116G,*HUNTER APPAREL SOLUTIONS LTD,067456,67,15.28,CLOTHING,14/11/16,,Fire Stations (South East),Clothing
091116G,*HUNTER APPAREL SOLUTIONS LTD,067456,68,15.28,CLOTHING,14/11/16,,Fire Stations (North West),Clothing
091116G,*HUNTER APPAREL SOLUTIONS LTD,067456,69,25.44,CLOTHING,14/11/16,,Fire Stations (North West),Clothing
091116G,*HUNTER APPAREL SOLUTIONS LTD,067456,70,22.92,CLOTHING,14/11/16,,Fire Stations (South East),Clothing
091116G,*HUNTER APPAREL SOLUTIONS LTD,067456,71,15.28,CLOTHING,14/11/16,,Fire Stations (South East),Clothing
091116G,*HUNTER APPAREL SOLUTIONS LTD,067456,72,7.64,CLOTHING,14/11/16,,Fire Stations (North West),Clothing
091116G,*HUNTER APPAREL SOLUTIONS LTD,067456,73,13.80,CLOTHING,14/11/16,,Fire Stations (North East),Clothing
091116G,*HUNTER APPAREL SOLUTIONS LTD,067456,74,15.28,CLOTHING,14/11/16,,Fire Stations (North West),Clothing
091116G,*HUNTER APPAREL SOLUTIONS LTD,067456,75,22.92,CLOTHING,14/11/16,,Firefighter Trainees,Clothing
091116G,*HUNTER APPAREL SOLUTIONS LTD,067456,76,19.08,CLOTHING,14/11/16,,Fire Stations (North East),Clothing
091116G,*HUNTER APPAREL SOLUTIONS LTD,067456,77,22.92,CLOTHING,14/11/16,,Fire Stations (North East),Clothing
091116G,*HUNTER APPAREL SOLUTIONS LTD,067456,78,12.72,CLOTHING,14/11/16,,Fire Stations (North West),Clothing
091116G,*HUNTER APPAREL SOLUTIONS LTD,067456,79,15.28,CLOTHING,14/11/16,,Fire Stations (North East),Clothing
091116G,*HUNTER APPAREL SOLUTIONS LTD,067456,80,15.28,CLOTHING,14/11/16,,Fire Stations (North East),Clothing
091116G,*HUNTER APPAREL SOLUTIONS LTD,067456,81,19.08,CLOTHING,14/11/16,,Fire Stations (North East),Clothing
091116G,*HUNTER APPAREL SOLUTIONS LTD,067456,82,19.08,CLOTHING,14/11/16,,Fire Stations (South East),Clothing
091116G,*HUNTER APPAREL SOLUTIONS LTD,067456,83,7.64,CLOTHING,14/11/16,,Fire Stations (South East),Clothing
091116G,*HUNTER APPAREL SOLUTIONS LTD,067456,84,15.28,CLOTHING,14/11/16,,Operational Policy,Clothing
091116G,*HUNTER APPAREL SOLUTIONS LTD,067456,85,7.64,CLOTHING,14/11/16,,Fire Stations (North East),Clothing
091116G,*HUNTER APPAREL SOLUTIONS LTD,067456,86,19.08,CLOTHING,14/11/16,,Fire Stations (North East),Clothing
091116G,*HUNTER APPAREL SOLUTIONS LTD,067456,87,12.72,CLOTHING,14/11/16,,Fire Stations (North East),Clothing
091116G,*HUNTER APPAREL SOLUTIONS LTD,067456,88,15.28,CLOTHING,14/11/16,,Fire Stations (North West),Clothing
091116G,*HUNTER APPAREL SOLUTIONS LTD,067456,89,13.80,CLOTHING,14/11/16,,Fire Stations (North East),Clothing
091116G,*HUNTER APPAREL SOLUTIONS LTD,067456,90,7.64,CLOTHING,14/11/16,,Fire Stations (South East),Clothing
091116G,*HUNTER APPAREL SOLUTIONS LTD,067456,91,15.28,CLOTHING,14/11/16,,Fire Stations (South West),Clothing
091116G,*HUNTER APPAREL SOLUTIONS LTD,067456,92,15.28,CLOTHING,14/11/16,,Fire Stations (South East),Clothing
091116G,*HUNTER APPAREL SOLUTIONS LTD,067456,93,15.28,CLOTHING,14/11/16,,Fire Stations (South East),Clothing
091116G,*HUNTER APPAREL SOLUTIONS LTD,067456,94,12.72,CLOTHING,14/11/16,,Fire Stations (North West),Clothing
091116G,*HUNTER APPAREL SOLUTIONS LTD,067456,95,30.56,CLOTHING,14/11/16,,Fire Stations (North East),Clothing
091116G,*HUNTER APPAREL SOLUTIONS LTD,067456,96,22.92,CLOTHING,14/11/16,,Fire Stations (North East),Clothing
091116G,*HUNTER APPAREL SOLUTIONS LTD,067456,97,6.36,CLOTHING,14/11/16,,Fire Stations (North East),Clothing
091116G,*HUNTER APPAREL SOLUTIONS LTD,067456,98,7.64,CLOTHING,14/11/16,,LIFE - LFB Funded,Clothing
091116G,*HUNTER APPAREL SOLUTIONS LTD,067456,99,19.08,CLOTHING,14/11/16,,Fire Stations (North West),Clothing
091116G,*HUNTER APPAREL SOLUTIONS LTD,067456,100,7.64,CLOTHING,14/11/16,,Fire Stations (North West),Clothing
091116G,*HUNTER APPAREL SOLUTIONS LTD,067456,101,15.28,CLOTHING,14/11/16,,Fire Stations (North West),Clothing
091116G,*HUNTER APPAREL SOLUTIONS LTD,067456,102,22.92,CLOTHING,14/11/16,,Fire Safety Regulation,Clothing
091116G,*HUNTER APPAREL SOLUTIONS LTD,067456,103,15.28,CLOTHING,14/11/16,,Fire Stations (South East),Clothing
091116G,*HUNTER APPAREL SOLUTIONS LTD,067456,104,15.28,CLOTHING,14/11/16,,Fire Stations (North East),Clothing
091116G,*HUNTER APPAREL SOLUTIONS LTD,067456,105,15.28,CLOTHING,14/11/16,,Fire Stations (North West),Clothing
091116G,*HUNTER APPAREL SOLUTIONS LTD,067456,106,7.64,CLOTHING,14/11/16,,Fire Stations (North West),Clothing
091116G,*HUNTER APPAREL SOLUTIONS LTD,067456,107,7.64,CLOTHING,14/11/16,,Fire Stations (South West),Clothing
091116G,*HUNTER APPAREL SOLUTIONS LTD,067456,108,12.72,CLOTHING,14/11/16,,Fire Stations (South East),Clothing
091116G,*HUNTER APPAREL SOLUTIONS LTD,067456,109,12.72,CLOTHING,14/11/16,,Fire Stations (North East),Clothing
091116G,*HUNTER APPAREL SOLUTIONS LTD,067456,110,12.72,CLOTHING,14/11/16,,Fire Stations (North East),Clothing
091116G,*HUNTER APPAREL SOLUTIONS LTD,067456,111,15.28,CLOTHING,14/11/16,,Fire Stations (North East),Clothing
091116G,*HUNTER APPAREL SOLUTIONS LTD,067456,112,7.64,CLOTHING,14/11/16,,Fire Stations (North West),Clothing
091116G,*HUNTER APPAREL SOLUTIONS LTD,067456,113,22.92,CLOTHING,14/11/16,,Fire Stations (North West),Clothing
091116G,*HUNTER APPAREL SOLUTIONS LTD,067456,114,7.64,CLOTHING,14/11/16,,Fire Stations (North West),Clothing
091116G,*HUNTER APPAREL SOLUTIONS LTD,067456,115,15.28,CLOTHING,14/11/16,,Fire Stations (North West),Clothing
091116G,*HUNTER APPAREL SOLUTIONS LTD,067456,116,15.28,CLOTHING,14/11/16,,Fire Stations (North East),Clothing
091116G,*HUNTER APPAREL SOLUTIONS LTD,067456,117,12.72,CLOTHING,14/11/16,,Fire Stations (South West),Clothing
091116G,*HUNTER APPAREL SOLUTIONS LTD,067456,118,15.28,CLOTHING,14/11/16,,Fire Stations (North West),Clothing
091116G,*HUNTER APPAREL SOLUTIONS LTD,067456,119,15.28,CLOTHING,14/11/16,,Fire Stations (South West),Clothing
091116G,*HUNTER APPAREL SOLUTIONS LTD,067456,120,19.08,CLOTHING,14/11/16,,Fire Stations (South East),Clothing
091116G,*HUNTER APPAREL SOLUTIONS LTD,067456,121,7.64,CLOTHING,14/11/16,,Fire Stations (North West),Clothing
091116G,*HUNTER APPAREL SOLUTIONS LTD,067456,122,15.28,CLOTHING,14/11/16,,Fire Stations (North West),Clothing
091116G,*HUNTER APPAREL SOLUTIONS LTD,067456,123,12.72,CLOTHING,14/11/16,,Fire Stations (North West),Clothing
091116G,*HUNTER APPAREL SOLUTIONS LTD,067456,124,12.72,CLOTHING,14/11/16,,Fire Stations (North West),Clothing
091116G,*HUNTER APPAREL SOLUTIONS LTD,067456,125,22.92,CLOTHING,14/11/16,,Fire Stations (North West),Clothing
091116G,*HUNTER APPAREL SOLUTIONS LTD,067456,126,5.85,CLOTHING,14/11/16,,Fire Stations (South East),Clothing
091116G,*HUNTER APPAREL SOLUTIONS LTD,067456,127,7.64,CLOTHING,14/11/16,,Fire Stations (South West),Clothing
091116G,*HUNTER APPAREL SOLUTIONS LTD,067456,128,15.28,CLOTHING,14/11/16,,Fire Stations (South East),Clothing
091116G,*HUNTER APPAREL SOLUTIONS LTD,067456,129,15.28,CLOTHING,14/11/16,,Fire Stations (North East),Clothing
091116G,*HUNTER APPAREL SOLUTIONS LTD,067456,130,7.64,CLOTHING,14/11/16,,Fire Stations (South West),Clothing
091116G,*HUNTER APPAREL SOLUTIONS LTD,067456,131,19.08,CLOTHING,14/11/16,,Fire Stations (South West),Clothing
091116G,*HUNTER APPAREL SOLUTIONS LTD,067456,132,13.80,CLOTHING,14/11/16,,Fire Stations (South West),Clothing
091116G,*HUNTER APPAREL SOLUTIONS LTD,067456,133,25.44,CLOTHING,14/11/16,,Fire Stations (South West),Clothing
091116G,*HUNTER APPAREL SOLUTIONS LTD,067456,134,19.08,CLOTHING,14/11/16,,Fire Stations (South East),Clothing
091116G,*HUNTER APPAREL SOLUTIONS LTD,067456,135,19.08,CLOTHING,14/11/16,,Fire Stations (North East),Clothing
091116G,*HUNTER APPAREL SOLUTIONS LTD,067456,136,12.72,CLOTHING,14/11/16,,Fire Stations (North West),Clothing
091116G,*HUNTER APPAREL SOLUTIONS LTD,067456,137,7.64,CLOTHING,14/11/16,,Fire Stations (South East),Clothing
091116G,*HUNTER APPAREL SOLUTIONS LTD,067456,138,15.28,CLOTHING,14/11/16,,Fire Stations (North West),Clothing
091116G,*HUNTER APPAREL SOLUTIONS LTD,067456,139,7.64,CLOTHING,14/11/16,,Fire Stations (North West),Clothing
091116G,*HUNTER APPAREL SOLUTIONS LTD,067456,140,13.80,CLOTHING,14/11/16,,Fire Stations (South East),Clothing
091116G,*HUNTER APPAREL SOLUTIONS LTD,067456,141,23.40,CLOTHING,14/11/16,,Fire Stations (South West),Clothing
091116G,*HUNTER APPAREL SOLUTIONS LTD,067456,142,15.28,CLOTHING,14/11/16,,Fire Stations (South West),Clothing
091116G,*HUNTER APPAREL SOLUTIONS LTD,067456,143,12.72,CLOTHING,14/11/16,,Fire Stations (South West),Clothing
091116G,*HUNTER APPAREL SOLUTIONS LTD,067456,144,22.92,CLOTHING,14/11/16,,Fire Stations (North West),Clothing
091116G,*HUNTER APPAREL SOLUTIONS LTD,067456,145,15.28,CLOTHING,14/11/16,,Fire Stations (South West),Clothing
091116G,*HUNTER APPAREL SOLUTIONS LTD,067456,146,7.64,CLOTHING,14/11/16,,Fire Stations (North East),Clothing
091116G,*HUNTER APPAREL SOLUTIONS LTD,067456,147,12.72,CLOTHING,14/11/16,,Fire Stations (North East),Clothing
091116G,*HUNTER APPAREL SOLUTIONS LTD,067456,148,15.28,CLOTHING,14/11/16,,Fire Stations (North West),Clothing
091116G,*HUNTER APPAREL SOLUTIONS LTD,067456,149,7.64,CLOTHING,14/11/16,,Fire Stations (South East),Clothing
091116G,*HUNTER APPAREL SOLUTIONS LTD,067456,150,22.92,CLOTHING,14/11/16,,Fire Stations (North West),Clothing
091116G,*HUNTER APPAREL SOLUTIONS LTD,067456,151,15.28,CLOTHING,14/11/16,,Fire Stations (North West),Clothing
091116G,*HUNTER APPAREL SOLUTIONS LTD,067456,152,12.72,CLOTHING,14/11/16,,Fire Stations (North West),Clothing
091116G,*HUNTER APPAREL SOLUTIONS LTD,067456,153,19.08,CLOTHING,14/11/16,,Fire Stations (South East),Clothing
091116G,*HUNTER APPAREL SOLUTIONS LTD,067456,154,15.28,CLOTHING,14/11/16,,Fire Stations (South East),Clothing
091116G,*HUNTER APPAREL SOLUTIONS LTD,067456,155,12.72,CLOTHING,14/11/16,,Fire Stations (North West),Clothing
091116G,*HUNTER APPAREL SOLUTIONS LTD,067456,156,15.28,CLOTHING,14/11/16,,Fire Stations (North West),Clothing
091116G,*HUNTER APPAREL SOLUTIONS LTD,067456,157,15.28,CLOTHING,14/11/16,,Fire Stations (North West),Clothing
091116G,*HUNTER APPAREL SOLUTIONS LTD,067456,158,12.72,CLOTHING,14/11/16,,Fire Stations (North West),Clothing
091116G,*HUNTER APPAREL SOLUTIONS LTD,067456,159,25.44,CLOTHING,14/11/16,,Fire Stations (North West),Clothing
091116G,*HUNTER APPAREL SOLUTIONS LTD,067456,160,22.92,CLOTHING,14/11/16,,Fire Stations (North West),Clothing
091116G,*HUNTER APPAREL SOLUTIONS LTD,067456,161,15.28,CLOTHING,14/11/16,,Fire Stations (North West),Clothing
091116G,*HUNTER APPAREL SOLUTIONS LTD,067456,162,19.08,CLOTHING,14/11/16,,Fire Safety Regulation,Clothing
091116G,*HUNTER APPAREL SOLUTIONS LTD,067456,163,22.92,CLOTHING,14/11/16,,Fire Safety Regulation,Clothing
091116G,*HUNTER APPAREL SOLUTIONS LTD,067456,164,7.64,CLOTHING,14/11/16,,Fire Stations (North West),Clothing
091116G,*HUNTER APPAREL SOLUTIONS LTD,067456,165,12.72,CLOTHING,14/11/16,,Fire Stations (North West),Clothing
091116G,*HUNTER APPAREL SOLUTIONS LTD,067456,166,15.28,CLOTHING,14/11/16,,Fire Stations (South East),Clothing
091116G,*HUNTER APPAREL SOLUTIONS LTD,067456,167,19.08,CLOTHING,14/11/16,,Fire Stations (North East),Clothing
091116G,*HUNTER APPAREL SOLUTIONS LTD,067456,168,15.28,CLOTHING,14/11/16,,Fire Stations (North East),Clothing
091116G,*HUNTER APPAREL SOLUTIONS LTD,067456,169,15.28,CLOTHING,14/11/16,,Fire Stations (North West),Clothing
091116G,*HUNTER APPAREL SOLUTIONS LTD,067456,170,25.44,CLOTHING,14/11/16,,Fire Stations (South West),Clothing
091116G,*HUNTER APPAREL SOLUTIONS LTD,067456,171,7.64,CLOTHING,14/11/16,,Fire Stations (South West),Clothing
091116G,*HUNTER APPAREL SOLUTIONS LTD,067456,172,25.44,CLOTHING,14/11/16,,Fire Stations (North West),Clothing
091116G,*HUNTER APPAREL SOLUTIONS LTD,067456,173,22.92,CLOTHING,14/11/16,,Fire Stations (North West),Clothing
091116G,*HUNTER APPAREL SOLUTIONS LTD,067456,174,12.72,CLOTHING,14/11/16,,Fire Stations (North West),Clothing
091116G,ROYAL BOROUGH OF GREENWICH,10260089,1,"1,000.00",GENERAL,14/11/16,"1,000.00",Community Safety Delivery,Statutory Bodies
800085213,*JAMES HUNTER (OUTFITTERS) LTD,108795,1,362.23,CLOTHING,14/11/16,362.23,Fire Stations (North West),Clothing
800085696,*JAMES HUNTER (OUTFITTERS) LTD,108813,1,138.82,CLOTHING,14/11/16,378.26,Fire Safety Regulation,Clothing
800085696,*JAMES HUNTER (OUTFITTERS) LTD,108813,2,239.44,CLOTHING,14/11/16,,Fire Safety Regulation,Clothing
800089309,*JAMES HUNTER (OUTFITTERS) LTD,108903,1,251.09,CLOTHING,14/11/16,251.09,Fire Stations (North West),Clothing
021116S,PTP TRAINING & MARKETING LTD,115779,1,983.33,PROFESSIONAL DEVELOPMENT,14/11/16,"2,950.00",Operational Response,Human Resources
021116S,PTP TRAINING & MARKETING LTD,115779,2,"1,966.67",PROFESSIONAL DEVELOPMENT,14/11/16,,Operational Response,Human Resources
141674,MISS NATASHA JOFFE============,126462,1,"2,290.00",COUNSELS FEES,14/11/16,"2,290.00",Compensation Budgets,Legal Services
141674,MR DAMIEN WELFARE,130354,1,"6,500.00",COUNSELS FEES,14/11/16,"6,500.00",Compensation Budgets,Legal Services
101116G,APPLUS LLT,15192,1,"3,750.00",GENERAL,14/11/16,"3,750.00",Procurement,Vehicle Management
081116G,GP CONTRACTS==================,15611,1,520.00,OFFICE FURNITURE,14/11/16,520.00,Fire Stations (North East),Furniture
800091169,TOTAL SUPPORT SERVICES,161028,1,160.00,REACTIVE APPLIANCE BAY DOORS,14/11/16,460.00,Technical and Service Support,Works - Construction
800091169,TOTAL SUPPORT SERVICES,161028,2,140.00,REACTIVE APPLIANCE BAY DOORS,14/11/16,,Technical and Service Support,Works - Construction
800091169,TOTAL SUPPORT SERVICES,161028,3,160.00,REACTIVE APPLIANCE BAY DOORS,14/11/16,,Technical and Service Support,Works - Construction
141674,MR GUY LADENBURG==============,235863,1,830.00,PROFESSIONAL FEES ENFORCEMENT,14/11/16,830.00,Legal & Democratic Services,Legal Services
081116G,INFIGO LTD====================,24500,1,497.50,STATIONERY CONSUMABLES,14/11/16,497.50,Communications,Stationery
800091166,MAINTENANCE ASSOCIATED,24995,1,141.70,REACTIVE PEST CONTROL,14/11/16,737.86,Technical and Service Support,Environmental Services
800091166,MAINTENANCE ASSOCIATED,24995,2,117.16,REACTIVE PEST CONTROL,14/11/16,,Technical and Service Support,Environmental Services
800091166,MAINTENANCE ASSOCIATED,24995,3,479.00,REACTIVE PEST CONTROL,14/11/16,,Technical and Service Support,Environmental Services
800087055,ADECCO UK LIMITED=============,27476777,1,"1,456.70",FRS STAFF AGENCY,14/11/16,"1,456.70",Technical and Service Support,Human Resources
091116G,THE DOCUMENT WAREHOUSE UK LTD,2800,1,"2,663.55",GENERAL,14/11/16,"2,663.55",Information Management,Facilities & Management S
902689,PAVILION PUBLISHING LTD,34359747236,1,"2,040.00",PROFESSIONAL DEVELOPMENT,14/11/16,"2,040.00",Central Operations,Education
081116G,COMPUTER CAB PLC==============,349571,1,"1,568.18",PUBLIC TRANSPORT,14/11/16,"1,568.18",Exercise Unified Response,Vehicle Management
281016K,MITIE SECURITY (LONDON) LTD===,44/625396,1,"17,245.92",PREMISES SECURITY,14/11/16,"17,245.92",Technical and Service Support,Facilities & Management S
800091170,SPORTSAFE UK LTD==============,495683,1,"1,723.45",REACTIVE GYM EQUIPMENT,14/11/16,"1,723.45",Technical and Service Support,Sports & Playground Equip
800091172,SPORTSAFE UK LTD==============,495684,1,17.50,PLANNED GYM EQUIPMENT,14/11/16,"1,446.47",Technical and Service Support,Sports & Playground Equip
800091172,SPORTSAFE UK LTD==============,495684,2,18.75,PLANNED GYM EQUIPMENT,14/11/16,,Technical and Service Support,Sports & Playground Equip
800091172,SPORTSAFE UK LTD==============,495684,3,22.50,PLANNED GYM EQUIPMENT,14/11/16,,Technical and Service Support,Sports & Playground Equip
800091172,SPORTSAFE UK LTD==============,495684,4,30.84,PLANNED GYM EQUIPMENT,14/11/16,,Technical and Service Support,Sports & Playground Equip
800091172,SPORTSAFE UK LTD==============,495684,5,18.34,PLANNED GYM EQUIPMENT,14/11/16,,Technical and Service Support,Sports & Playground Equip
800091172,SPORTSAFE UK LTD==============,495684,6,11.67,PLANNED GYM EQUIPMENT,14/11/16,,Technical and Service Support,Sports & Playground Equip
800091172,SPORTSAFE UK LTD==============,495684,7,15.42,PLANNED GYM EQUIPMENT,14/11/16,,Technical and Service Support,Sports & Playground Equip
800091172,SPORTSAFE UK LTD==============,495684,8,11.67,PLANNED GYM EQUIPMENT,14/11/16,,Technical and Service Support,Sports & Playground Equip
800091172,SPORTSAFE UK LTD==============,495684,9,31.67,PLANNED GYM EQUIPMENT,14/11/16,,Technical and Service Support,Sports & Playground Equip
800091172,SPORTSAFE UK LTD==============,495684,10,15.42,PLANNED GYM EQUIPMENT,14/11/16,,Technical and Service Support,Sports & Playground Equip
800091172,SPORTSAFE UK LTD==============,495684,11,11.67,PLANNED GYM EQUIPMENT,14/11/16,,Technical and Service Support,Sports & Playground Equip
800091172,SPORTSAFE UK LTD==============,495684,12,14.59,PLANNED GYM EQUIPMENT,14/11/16,,Technical and Service Support,Sports & Playground Equip
800091172,SPORTSAFE UK LTD==============,495684,13,15.42,PLANNED GYM EQUIPMENT,14/11/16,,Technical and Service Support,Sports & Playground Equip
800091172,SPORTSAFE UK LTD==============,495684,14,15.42,PLANNED GYM EQUIPMENT,14/11/16,,Technical and Service Support,Sports & Playground Equip
800091172,SPORTSAFE UK LTD==============,495684,15,9.58,PLANNED GYM EQUIPMENT,14/11/16,,Technical and Service Support,Sports & Playground Equip
800091172,SPORTSAFE UK LTD==============,495684,16,21.25,PLANNED GYM EQUIPMENT,14/11/16,,Technical and Service Support,Sports & Playground Equip
800091172,SPORTSAFE UK LTD==============,495684,17,13.75,PLANNED GYM EQUIPMENT,14/11/16,,Technical and Service Support,Sports & Playground Equip
800091172,SPORTSAFE UK LTD==============,495684,18,13.75,PLANNED GYM EQUIPMENT,14/11/16,,Technical and Service Support,Sports & Playground Equip
800091172,SPORTSAFE UK LTD==============,495684,19,13.75,PLANNED GYM EQUIPMENT,14/11/16,,Technical and Service Support,Sports & Playground Equip
800091172,SPORTSAFE UK LTD==============,495684,20,11.67,PLANNED GYM EQUIPMENT,14/11/16,,Technical and Service Support,Sports & Playground Equip
800091172,SPORTSAFE UK LTD==============,495684,21,13.75,PLANNED GYM EQUIPMENT,14/11/16,,Technical and Service Support,Sports & Playground Equip
800091172,SPORTSAFE UK LTD==============,495684,22,15.42,PLANNED GYM EQUIPMENT,14/11/16,,Technical and Service Support,Sports & Playground Equip
800091172,SPORTSAFE UK LTD==============,495684,23,15.42,PLANNED GYM EQUIPMENT,14/11/16,,Technical and Service Support,Sports & Playground Equip
800091172,SPORTSAFE UK LTD==============,495684,24,11.67,PLANNED GYM EQUIPMENT,14/11/16,,Technical and Service Support,Sports & Playground Equip
800091172,SPORTSAFE UK LTD==============,495684,25,13.75,PLANNED GYM EQUIPMENT,14/11/16,,Technical and Service Support,Sports & Playground Equip
800091172,SPORTSAFE UK LTD==============,495684,26,13.75,PLANNED GYM EQUIPMENT,14/11/16,,Technical and Service Support,Sports & Playground Equip
800091172,SPORTSAFE UK LTD==============,495684,27,18.75,PLANNED GYM EQUIPMENT,14/11/16,,Technical and Service Support,Sports & Playground Equip
800091172,SPORTSAFE UK LTD==============,495684,28,11.67,PLANNED GYM EQUIPMENT,14/11/16,,Technical and Service Support,Sports & Playground Equip
800091172,SPORTSAFE UK LTD==============,495684,29,17.50,PLANNED GYM EQUIPMENT,14/11/16,,Technical and Service Support,Sports & Playground Equip
800091172,SPORTSAFE UK LTD==============,495684,30,15.42,PLANNED GYM EQUIPMENT,14/11/16,,Technical and Service Support,Sports & Playground Equip
800091172,SPORTSAFE UK LTD==============,495684,31,11.67,PLANNED GYM EQUIPMENT,14/11/16,,Technical and Service Support,Sports & Playground Equip
800091172,SPORTSAFE UK LTD==============,495684,32,18.75,PLANNED GYM EQUIPMENT,14/11/16,,Technical and Service Support,Sports & Playground Equip
800091172,SPORTSAFE UK LTD==============,495684,33,15.42,PLANNED GYM EQUIPMENT,14/11/16,,Technical and Service Support,Sports & Playground Equip
800091172,SPORTSAFE UK LTD==============,495684,34,17.50,PLANNED GYM EQUIPMENT,14/11/16,,Technical and Service Support,Sports & Playground Equip
800091172,SPORTSAFE UK LTD==============,495684,35,17.50,PLANNED GYM EQUIPMENT,14/11/16,,Technical and Service Support,Sports & Playground Equip
800091172,SPORTSAFE UK LTD==============,495684,36,11.67,PLANNED GYM EQUIPMENT,14/11/16,,Technical and Service Support,Sports & Playground Equip
800091172,SPORTSAFE UK LTD==============,495684,37,11.67,PLANNED GYM EQUIPMENT,14/11/16,,Technical and Service Support,Sports & Playground Equip
800091172,SPORTSAFE UK LTD==============,495684,38,49.59,PLANNED GYM EQUIPMENT,14/11/16,,Technical and Service Support,Sports & Playground Equip
800091172,SPORTSAFE UK LTD==============,495684,39,11.67,PLANNED GYM EQUIPMENT,14/11/16,,Technical and Service Support,Sports & Playground Equip
800091172,SPORTSAFE UK LTD==============,495684,40,12.92,PLANNED GYM EQUIPMENT,14/11/16,,Technical and Service Support,Sports & Playground Equip
800091172,SPORTSAFE UK LTD==============,495684,41,18.75,PLANNED GYM EQUIPMENT,14/11/16,,Technical and Service Support,Sports & Playground Equip
800091172,SPORTSAFE UK LTD==============,495684,42,12.92,PLANNED GYM EQUIPMENT,14/11/16,,Technical and Service Support,Sports & Playground Equip
800091172,SPORTSAFE UK LTD==============,495684,43,15.42,PLANNED GYM EQUIPMENT,14/11/16,,Technical and Service Support,Sports & Playground Equip
800091172,SPORTSAFE UK LTD==============,495684,44,15.42,PLANNED GYM EQUIPMENT,14/11/16,,Technical and Service Support,Sports & Playground Equip
800091172,SPORTSAFE UK LTD==============,495684,45,17.50,PLANNED GYM EQUIPMENT,14/11/16,,Technical and Service Support,Sports & Playground Equip
800091172,SPORTSAFE UK LTD==============,495684,46,11.67,PLANNED GYM EQUIPMENT,14/11/16,,Technical and Service Support,Sports & Playground Equip
800091172,SPORTSAFE UK LTD==============,495684,47,15.42,PLANNED GYM EQUIPMENT,14/11/16,,Technical and Service Support,Sports & Playground Equip
800091172,SPORTSAFE UK LTD==============,495684,48,15.42,PLANNED GYM EQUIPMENT,14/11/16,,Technical and Service Support,Sports & Playground Equip
800091172,SPORTSAFE UK LTD==============,495684,49,15.42,PLANNED GYM EQUIPMENT,14/11/16,,Technical and Service Support,Sports & Playground Equip
800091172,SPORTSAFE UK LTD==============,495684,50,15.42,PLANNED GYM EQUIPMENT,14/11/16,,Technical and Service Support,Sports & Playground Equip
800091172,SPORTSAFE UK LTD==============,495684,51,11.67,PLANNED GYM EQUIPMENT,14/11/16,,Technical and Service Support,Sports & Playground Equip
800091172,SPORTSAFE UK LTD==============,495684,52,15.42,PLANNED GYM EQUIPMENT,14/11/16,,Technical and Service Support,Sports & Playground Equip
800091172,SPORTSAFE UK LTD==============,495684,53,11.67,PLANNED GYM EQUIPMENT,14/11/16,,Technical and Service Support,Sports & Playground Equip
800091172,SPORTSAFE UK LTD==============,495684,54,15.42,PLANNED GYM EQUIPMENT,14/11/16,,Technical and Service Support,Sports & Playground Equip
800091172,SPORTSAFE UK LTD==============,495684,55,15.42,PLANNED GYM EQUIPMENT,14/11/16,,Technical and Service Support,Sports & Playground Equip
800091172,SPORTSAFE UK LTD==============,495684,56,21.25,PLANNED GYM EQUIPMENT,14/11/16,,Technical and Service Support,Sports & Playground Equip
800091172,SPORTSAFE UK LTD==============,495684,57,17.50,PLANNED GYM EQUIPMENT,14/11/16,,Technical and Service Support,Sports & Playground Equip
800091172,SPORTSAFE UK LTD==============,495684,58,11.67,PLANNED GYM EQUIPMENT,14/11/16,,Technical and Service Support,Sports & Playground Equip
800091172,SPORTSAFE UK LTD==============,495684,59,17.50,PLANNED GYM EQUIPMENT,14/11/16,,Technical and Service Support,Sports & Playground Equip
800091172,SPORTSAFE UK LTD==============,495684,60,11.67,PLANNED GYM EQUIPMENT,14/11/16,,Technical and Service Support,Sports & Playground Equip
800091172,SPORTSAFE UK LTD==============,495684,61,11.67,PLANNED GYM EQUIPMENT,14/11/16,,Technical and Service Support,Sports & Playground Equip
800091172,SPORTSAFE UK LTD==============,495684,62,17.50,PLANNED GYM EQUIPMENT,14/11/16,,Technical and Service Support,Sports & Playground Equip
800091172,SPORTSAFE UK LTD==============,495684,63,15.42,PLANNED GYM EQUIPMENT,14/11/16,,Technical and Service Support,Sports & Playground Equip
800091172,SPORTSAFE UK LTD==============,495684,64,17.50,PLANNED GYM EQUIPMENT,14/11/16,,Technical and Service Support,Sports & Playground Equip
800091172,SPORTSAFE UK LTD==============,495684,65,11.67,PLANNED GYM EQUIPMENT,14/11/16,,Technical and Service Support,Sports & Playground Equip
800091172,SPORTSAFE UK LTD==============,495684,66,17.50,PLANNED GYM EQUIPMENT,14/11/16,,Technical and Service Support,Sports & Playground Equip
800091172,SPORTSAFE UK LTD==============,495684,67,11.67,PLANNED GYM EQUIPMENT,14/11/16,,Technical and Service Support,Sports & Playground Equip
800091172,SPORTSAFE UK LTD==============,495684,68,11.67,PLANNED GYM EQUIPMENT,14/11/16,,Technical and Service Support,Sports & Playground Equip
800091172,SPORTSAFE UK LTD==============,495684,69,13.75,PLANNED GYM EQUIPMENT,14/11/16,,Technical and Service Support,Sports & Playground Equip
800091172,SPORTSAFE UK LTD==============,495684,70,17.50,PLANNED GYM EQUIPMENT,14/11/16,,Technical and Service Support,Sports & Playground Equip
800091172,SPORTSAFE UK LTD==============,495684,71,15.84,PLANNED GYM EQUIPMENT,14/11/16,,Technical and Service Support,Sports & Playground Equip
800091172,SPORTSAFE UK LTD==============,495684,72,15.42,PLANNED GYM EQUIPMENT,14/11/16,,Technical and Service Support,Sports & Playground Equip
800091172,SPORTSAFE UK LTD==============,495684,73,19.59,PLANNED GYM EQUIPMENT,14/11/16,,Technical and Service Support,Sports & Playground Equip
800091172,SPORTSAFE UK LTD==============,495684,74,15.42,PLANNED GYM EQUIPMENT,14/11/16,,Technical and Service Support,Sports & Playground Equip
800091172,SPORTSAFE UK LTD==============,495684,75,15.42,PLANNED GYM EQUIPMENT,14/11/16,,Technical and Service Support,Sports & Playground Equip
800091172,SPORTSAFE UK LTD==============,495684,76,15.42,PLANNED GYM EQUIPMENT,14/11/16,,Technical and Service Support,Sports & Playground Equip
800091172,SPORTSAFE UK LTD==============,495684,77,15.42,PLANNED GYM EQUIPMENT,14/11/16,,Technical and Service Support,Sports & Playground Equip
800091172,SPORTSAFE UK LTD==============,495684,78,11.67,PLANNED GYM EQUIPMENT,14/11/16,,Technical and Service Support,Sports & Playground Equip
800091172,SPORTSAFE UK LTD==============,495684,79,17.50,PLANNED GYM EQUIPMENT,14/11/16,,Technical and Service Support,Sports & Playground Equip
800091172,SPORTSAFE UK LTD==============,495684,80,13.75,PLANNED GYM EQUIPMENT,14/11/16,,Technical and Service Support,Sports & Playground Equip
800091172,SPORTSAFE UK LTD==============,495684,81,15.42,PLANNED GYM EQUIPMENT,14/11/16,,Technical and Service Support,Sports & Playground Equip
800091172,SPORTSAFE UK LTD==============,495684,82,11.67,PLANNED GYM EQUIPMENT,14/11/16,,Technical and Service Support,Sports & Playground Equip
800091172,SPORTSAFE UK LTD==============,495684,83,15.42,PLANNED GYM EQUIPMENT,14/11/16,,Technical and Service Support,Sports & Playground Equip
800091172,SPORTSAFE UK LTD==============,495684,84,11.67,PLANNED GYM EQUIPMENT,14/11/16,,Technical and Service Support,Sports & Playground Equip
800091172,SPORTSAFE UK LTD==============,495684,85,15.42,PLANNED GYM EQUIPMENT,14/11/16,,Technical and Service Support,Sports & Playground Equip
800091172,SPORTSAFE UK LTD==============,495684,86,13.75,PLANNED GYM EQUIPMENT,14/11/16,,Technical and Service Support,Sports & Playground Equip
800091172,SPORTSAFE UK LTD==============,495684,87,17.50,PLANNED GYM EQUIPMENT,14/11/16,,Technical and Service Support,Sports & Playground Equip
800091172,SPORTSAFE UK LTD==============,495684,88,15.42,PLANNED GYM EQUIPMENT,14/11/16,,Technical and Service Support,Sports & Playground Equip
800091172,SPORTSAFE UK LTD==============,495684,89,15.42,PLANNED GYM EQUIPMENT,14/11/16,,Technical and Service Support,Sports & Playground Equip
800091172,SPORTSAFE UK LTD==============,495684,90,13.75,PLANNED GYM EQUIPMENT,14/11/16,,Technical and Service Support,Sports & Playground Equip
800091172,SPORTSAFE UK LTD==============,495684,91,11.67,PLANNED GYM EQUIPMENT,14/11/16,,Technical and Service Support,Sports & Playground Equip
800091172,SPORTSAFE UK LTD==============,495684,92,13.75,PLANNED GYM EQUIPMENT,14/11/16,,Technical and Service Support,Sports & Playground Equip
800091172,SPORTSAFE UK LTD==============,495684,93,11.67,PLANNED GYM EQUIPMENT,14/11/16,,Technical and Service Support,Sports & Playground Equip
800091162,*OCS GROUP UK LTD,5000224617-1,1,"3,347.40",CATERING,14/11/16,"3,347.40",Technical and Service Support,Catering
800091164,*OCS GROUP UK LTD,5000224617-3,1,702.16,CATERING,14/11/16,702.16,Technical and Service Support,Catering
800090912,*OCS GROUP UK LTD,5000224618-01,1,279.00,REFRESHMENTS,14/11/16,279.00,Fire Safety Regulation,Catering
800090898,*OCS GROUP UK LTD,5000224618-11,1,"1,115.00",REFRESHMENTS,14/11/16,"1,115.00",Community Safety Delivery,Catering
800090910,*OCS GROUP UK LTD,5000224618-13,1,390.60,REFRESHMENTS,14/11/16,390.60,HR Management,Catering
800090917,*OCS GROUP UK LTD,5000224618-19,1,446.40,REFRESHMENTS,14/11/16,446.40,Fire Safety Regulation,Catering
800090931,*OCS GROUP UK LTD,5000224618-31,1,651.00,REFRESHMENTS,14/11/16,651.00,Fire Safety Regulation,Catering
031116C,UNDERSTANDING RECRUITMENT,5231,1,"3,080.00",FRS STAFF AGENCY,14/11/16,"3,080.00",Information and Communication Technology,Human Resources
081116G,SWEETT  UK LTD,7078885,1,"4,950.00",PROF FEES-MISCELLANEOUS,14/11/16,"4,950.00",Technical and Service Support,"Works - Construction, R&M"
081116G,SWEETT  UK LTD,7078887,1,"2,221.47",PROF FEES-MISCELLANEOUS,14/11/16,"3,450.00",Technical and Service Support,"Works - Construction, R&M"
081116G,SWEETT  UK LTD,7078887,2,"1,228.53",PROF FEES-MISCELLANEOUS,14/11/16,,Technical and Service Support,"Works - Construction, R&M"
081116G,GAS & AIR SERVICES (UK)=======,7134,1,"2,400.00",REPAIR & MAINTENANCE,14/11/16,"2,400.00",Technical and Service Support,Building Constr Materials
091116G,BANNER GROUP LIMITED,8472959,1,96.02,STATIONERY CONSUMABLES,14/11/16,386.34,Technical and Service Support,ICT
091116G,BANNER GROUP LIMITED,8472959,2,96.02,STATIONERY CONSUMABLES,14/11/16,,Technical and Service Support,ICT
091116G,BANNER GROUP LIMITED,8472959,3,96.02,STATIONERY CONSUMABLES,14/11/16,,Technical and Service Support,ICT
091116G,BANNER GROUP LIMITED,8472959,4,98.28,STATIONERY CONSUMABLES,14/11/16,,Technical and Service Support,ICT
141677,THOMPSONS SOLICITORS==========,9581,1,"8,500.00",CLAIMANT COSTS AGREED,14/11/16,"8,500.00",Compensation Budgets,Legal Services
141674,LB HARROW,CSIF007,1,"10,000.00",FIRE AUTHS GRANT PAYMENTS,14/11/16,"10,000.00",Community Safety Investment Fund,Statutory Bodies
091116G,ERNST AND YOUNG,GB10100115370,1,"16,871.00",EXTERNAL AUDIT,14/11/16,"16,871.00",Central Finance,Financial Services
091116G,MERSEYSIDE FCDA===============,I0019057,1,"9,463.25",FIRE AUTHS-MUTUAL ASSISTANCE,14/11/16,"9,463.25",National Operational Guidance Project,Human Resources
091116G,STORY EVENTS LTD,INV-1915,1,"17,420.00",GENERAL,14/11/16,"17,420.00",National Operational Guidance Project,Arts & Leisure Services
141674,JCT600 VEHICLE LEASING,INV00131906,1,533.51,LEASE CAR CHARGES,14/11/16,533.51,Procurement,Vehicle Management
141674,JCT600 VEHICLE LEASING,INV00131906,2,-47.37,VAT CAR LEASING,14/11/16,,Finance Services,Vehicle Management
141674,JCT600 VEHICLE LEASING,INV00131906,3,47.37,LEASE CAR CHARGES,14/11/16,,Procurement,Vehicle Management
141674,JCT600 VEHICLE LEASING,INV00131907,1,443.37,LEASE CAR CHARGES,14/11/16,443.37,Procurement,Vehicle Management
141674,JCT600 VEHICLE LEASING,INV00131907,2,-39.54,VAT CAR LEASING,14/11/16,,Finance Services,Vehicle Management
141674,JCT600 VEHICLE LEASING,INV00131907,3,39.54,LEASE CAR CHARGES,14/11/16,,Procurement,Vehicle Management
141674,JCT600 VEHICLE LEASING,INV00131908,1,297.83,LEASE CAR CHARGES,14/11/16,297.83,Procurement,Vehicle Management
141674,JCT600 VEHICLE LEASING,INV00131908,2,-26.76,VAT CAR LEASING,14/11/16,,Finance Services,Vehicle Management
141674,JCT600 VEHICLE LEASING,INV00131908,3,26.76,LEASE CAR CHARGES,14/11/16,,Procurement,Vehicle Management
141674,JCT600 VEHICLE LEASING,INV00131909,1,454.92,LEASE CAR CHARGES,14/11/16,454.92,Procurement,Vehicle Management
141674,JCT600 VEHICLE LEASING,INV00131909,2,-40.29,VAT CAR LEASING,14/11/16,,Finance Services,Vehicle Management
141674,JCT600 VEHICLE LEASING,INV00131909,3,40.29,LEASE CAR CHARGES,14/11/16,,Procurement,Vehicle Management
081116G,JUST FOR KIDS LAW,JFKL1617/70,1,300.00,GENERAL,14/11/16,300.00,Community Safety Delivery,Legal Services
902690,BABCOCK TRAINING LTD,PTSI015289,1,"249,469.29",TRAINING CONTRACT,14/11/16,"1,615,702.42",Development and Training,Human Resources
902690,BABCOCK TRAINING LTD,PTSI015289,2,"1,366,233.13",TRAINING CONTRACT,14/11/16,,Development and Training,Human Resources
311016K,BABCOCK CRITICAL SERVICES LTD,SMAI001620,1,"80,400.00",PURCHASES-VEHICLES,14/11/16,"80,400.00",Procurement,Consultancy
141677,STUART TURNER=================,TURNER,1,"2,016.00",DOCTORS/MEDICAL FEES,14/11/16,"2,016.00",Compensation Budgets,Legal Services
141116G,VCG KESTREL LIMITED===========,0000004032,1,334.00,PRINTING,17/11/16,334.00,Communications,Facilities & Management S
141116G,NORTHERN DIVER (INTERNATIONAL),0000174680,1,865.00,REPAIR & MAINTENANCE,17/11/16,865.00,Technical and Service Support,Fire & Rescue
011116G,SONIC COMMUNICATIONS LTD======,0000231709,1,210.00,PURCHASE,17/11/16,280.00,Information and Communication Technology,ICT
011116G,SONIC COMMUNICATIONS LTD======,0000231709,2,60.00,PURCHASE,17/11/16,,Information and Communication Technology,ICT
011116G,SONIC COMMUNICATIONS LTD======,0000231709,3,10.00,PURCHASE,17/11/16,,Information and Communication Technology,ICT
041116G,BTC GROUP=====================,0000326683,1,"4,514.70",GENERAL CONSUMABLES,17/11/16,"4,514.70",Procurement,Clothing
111116C,MOOLANDS LTD,00004124,1,"1,129.00",PLANNED BUILDING DECORATIONS,17/11/16,"1,129.00",Technical and Service Support,"Works - Construction, R&M"
021116S,TRESCAL LTD,00819325,1,235.00,RADIO,17/11/16,"1,534.19",Information and Communication Technology,Fire & Rescue
021116S,TRESCAL LTD,00819325,2,"1,299.19",RADIO,17/11/16,,Information and Communication Technology,Fire & Rescue
111116C,BRIGLY FIRE LTD,0156,1,"3,666.60",CONSULTANTS,17/11/16,"3,666.60",Fire Safety Regulation,Fire & Rescue
141675,BAA BUSINESS SUPPORT CENTRE===,01816311216,1,"2,311.65",RENTS,17/11/16,"2,311.65",Technical and Service Support,Financial Services
111116C,HELEN BARTIMOTE,0582,1,"4,750.00",CONSULTANTS,17/11/16,"4,750.00",HR Management,Consultancy
101116G,*HUNTER APPAREL SOLUTIONS LTD,067519,1,840.00,UNIFORMS - POMS,17/11/16,"1,829.30",Procurement,Clothing
101116G,*HUNTER APPAREL SOLUTIONS LTD,067519,2,324.80,UNIFORMS - POMS,17/11/16,,Procurement,Clothing
101116G,*HUNTER APPAREL SOLUTIONS LTD,067519,3,524.50,UNIFORMS - POMS,17/11/16,,Procurement,Clothing
101116G,*HUNTER APPAREL SOLUTIONS LTD,067519,4,140.00,UNIFORMS - POMS,17/11/16,,Procurement,Clothing
101116G,*HUNTER APPAREL SOLUTIONS LTD,067520,1,336.60,UNIFORMS - POMS,17/11/16,"2,973.70",Procurement,Clothing
101116G,*HUNTER APPAREL SOLUTIONS LTD,067520,2,734.30,UNIFORMS - POMS,17/11/16,,Procurement,Clothing
101116G,*HUNTER APPAREL SOLUTIONS LTD,067520,3,"1,258.80",UNIFORMS - POMS,17/11/16,,Procurement,Clothing
101116G,*HUNTER APPAREL SOLUTIONS LTD,067520,4,419.60,UNIFORMS - POMS,17/11/16,,Procurement,Clothing
101116G,*HUNTER APPAREL SOLUTIONS LTD,067520,5,224.40,UNIFORMS - POMS,17/11/16,,Procurement,Clothing
101116G,*HUNTER APPAREL SOLUTIONS LTD,067523,1,514.01,UNIFORMS - POMS,17/11/16,"1,318.55",Procurement,Clothing
101116G,*HUNTER APPAREL SOLUTIONS LTD,067523,2,167.84,UNIFORMS - POMS,17/11/16,,Procurement,Clothing
101116G,*HUNTER APPAREL SOLUTIONS LTD,067523,3,524.50,UNIFORMS - POMS,17/11/16,,Procurement,Clothing
101116G,*HUNTER APPAREL SOLUTIONS LTD,067523,4,112.20,UNIFORMS - POMS,17/11/16,,Procurement,Clothing
101116G,AZTEC COMPUTING LTD===========,10499,1,"3,430.00",MAINTENANCE & SUPPORT,17/11/16,"4,200.00",Information and Communication Technology,ICT
101116G,AZTEC COMPUTING LTD===========,10499,2,770.00,MAINTENANCE & SUPPORT,17/11/16,,Information and Communication Technology,ICT
141116G,INSTITUTION OF FIRE ENGINEERS,12953,1,"2,920.00",PROFESSIONAL DEVELOPMENT,17/11/16,"2,920.00",Corporate Management Team,Human Resources
141675,EDF ENERGY===================,1315210000D,1,"23,868.03",ELECTRICITY,17/11/16,"23,868.03",Technical and Service Support,Utilities
111116C,PARK CAMERAS,142795992,1,633.33,OPERATIONAL EQUIP-PURCHASE,17/11/16,633.33,Health and Safety,Facilities & Management S
111116C,PARK CAMERAS,142796071,1,633.33,OPERATIONAL EQUIP-PURCHASE,17/11/16,633.33,Fire Safety Regulation,Facilities & Management S
091116G,DELVA PATMAN REDLER,15/1212,1,"1,841.40",CONSULTANTS,17/11/16,"1,841.40",Technical and Service Support,Consultancy
111116C,BUREAU VERITAS HS&E LTD=======,16015206,1,"98,583.57",SCIENTIFIC SERVICES,17/11/16,"98,583.57",Procurement,Environmental Services
111116C,PA ASSOCIATES (UK) LTD========,16097,1,454.75,REACTIVE SMALL WORKS AND PROJ,17/11/16,454.75,Technical and Service Support,Environmental Services
111116C,PA ASSOCIATES (UK) LTD========,16098,1,454.75,REACTIVE SMALL WORKS AND PROJ,17/11/16,454.75,Technical and Service Support,Environmental Services
111116C,PA ASSOCIATES (UK) LTD========,16099,1,454.75,REACTIVE SMALL WORKS AND PROJ,17/11/16,454.75,Technical and Service Support,Environmental Services
111116C,PA ASSOCIATES (UK) LTD========,16100,1,454.75,REACTIVE SMALL WORKS AND PROJ,17/11/16,454.75,Technical and Service Support,Environmental Services
111116C,PA ASSOCIATES (UK) LTD========,16101,1,454.75,REACTIVE SMALL WORKS AND PROJ,17/11/16,454.75,Technical and Service Support,Environmental Services
111116C,PA ASSOCIATES (UK) LTD========,16103,1,"1,799.75",REACTIVE SMALL WORKS AND PROJ,17/11/16,"1,799.75",Technical and Service Support,Environmental Services
800090887,*NPS (SHOES) LTD,17920,1,41.10,CLOTHING,17/11/16,"1,016.40",Fire Stations (North East),Clothing
800090887,*NPS (SHOES) LTD,17920,2,30.05,CLOTHING,17/11/16,,Fire Stations (North West),Clothing
800090887,*NPS (SHOES) LTD,17920,3,30.05,CLOTHING,17/11/16,,Fire Stations (South East),Clothing
800090887,*NPS (SHOES) LTD,17920,4,30.05,CLOTHING,17/11/16,,Fire Stations (South East),Clothing
800090887,*NPS (SHOES) LTD,17920,5,30.05,CLOTHING,17/11/16,,Fire Stations (South West),Clothing
800090887,*NPS (SHOES) LTD,17920,6,30.05,CLOTHING,17/11/16,,Fire Stations (North East),Clothing
800090887,*NPS (SHOES) LTD,17920,7,29.45,CLOTHING,17/11/16,,Fire Stations (South West),Clothing
800090887,*NPS (SHOES) LTD,17920,8,29.45,CLOTHING,17/11/16,,Fire Stations (North West),Clothing
800090887,*NPS (SHOES) LTD,17920,9,29.45,CLOTHING,17/11/16,,Fire Stations (North West),Clothing
800090887,*NPS (SHOES) LTD,17920,10,29.45,CLOTHING,17/11/16,,Fire Stations (South East),Clothing
800090887,*NPS (SHOES) LTD,17920,11,29.45,CLOTHING,17/11/16,,Fire Stations (South West),Clothing
800090887,*NPS (SHOES) LTD,17920,12,29.45,CLOTHING,17/11/16,,Fire Stations (South West),Clothing
800090887,*NPS (SHOES) LTD,17920,13,29.45,CLOTHING,17/11/16,,Fire Stations (North East),Clothing
800090887,*NPS (SHOES) LTD,17920,14,29.45,CLOTHING,17/11/16,,Fire Stations (North East),Clothing
800090887,*NPS (SHOES) LTD,17920,15,29.45,CLOTHING,17/11/16,,Fire Stations (South West),Clothing
800090887,*NPS (SHOES) LTD,17920,16,35.00,CLOTHING,17/11/16,,Fire Stations (North West),Clothing
800090887,*NPS (SHOES) LTD,17920,17,35.00,CLOTHING,17/11/16,,Fire Stations (North West),Clothing
800090887,*NPS (SHOES) LTD,17920,18,35.00,CLOTHING,17/11/16,,Fire Stations (North East),Clothing
800090887,*NPS (SHOES) LTD,17920,19,35.00,CLOTHING,17/11/16,,Fire Stations (South East),Clothing
800090887,*NPS (SHOES) LTD,17920,20,35.00,CLOTHING,17/11/16,,Fire Stations (North East),Clothing
800090887,*NPS (SHOES) LTD,17920,21,35.00,CLOTHING,17/11/16,,Fire Stations (North West),Clothing
800090887,*NPS (SHOES) LTD,17920,22,35.00,CLOTHING,17/11/16,,Fire Stations (North West),Clothing
800090887,*NPS (SHOES) LTD,17920,23,35.00,CLOTHING,17/11/16,,Fire Stations (North West),Clothing
800090887,*NPS (SHOES) LTD,17920,24,35.00,CLOTHING,17/11/16,,Fire Stations (North West),Clothing
800090887,*NPS (SHOES) LTD,17920,25,35.00,CLOTHING,17/11/16,,Fire Stations (South East),Clothing
800090887,*NPS (SHOES) LTD,17920,26,35.00,CLOTHING,17/11/16,,Fire Stations (North West),Clothing
800090887,*NPS (SHOES) LTD,17920,27,35.00,CLOTHING,17/11/16,,Fire Stations (North West),Clothing
800090887,*NPS (SHOES) LTD,17920,28,35.00,CLOTHING,17/11/16,,Fire Stations (North East),Clothing
800090887,*NPS (SHOES) LTD,17920,29,35.00,CLOTHING,17/11/16,,Fire Stations (North West),Clothing
800090887,*NPS (SHOES) LTD,17920,30,35.00,CLOTHING,17/11/16,,Fire Stations (South East),Clothing
800090887,*NPS (SHOES) LTD,17920,31,35.00,CLOTHING,17/11/16,,Fire Stations (North East),Clothing
101116G,ENTEL UK LTD==================,182729,1,9.00,RADIO,17/11/16,349.00,Information and Communication Technology,ICT
101116G,ENTEL UK LTD==================,182729,2,340.00,RADIO,17/11/16,,Information and Communication Technology,ICT
141116G,DEVON AND SOMERSET FIRE &,2066,1,"14,792.00",PROFESSIONAL DEVELOPMENT,17/11/16,"14,792.00",Operational Resilience,Human Resources
141675,AFFINITY WATER,2075273&T,1,630.60,WATER & SEWERAGE RATES,17/11/16,630.60,Technical and Service Support,Utilities
111116C,RED ONE LIMITED,2326,1,"3,698.00",PROFESSIONAL DEVELOPMENT,17/11/16,"3,698.00",Operational Policy,Human Resources
141675,EDF ENERGY===================,2368210000D,1,"14,677.16",ELECTRICITY,17/11/16,"14,677.16",Technical and Service Support,Utilities
141116G,TRADE WINDS===================,23931,1,"1,037.00",PRINTING,17/11/16,"1,037.00",LFB 150th Anniversary,Facilities & Management S
800087057,ADECCO UK LIMITED=============,27476780,1,"1,456.70",FRS STAFF AGENCY,17/11/16,"1,456.70",Technical and Service Support,Human Resources
800087056,ADECCO UK LIMITED=============,27476781,1,"1,456.70",FRS STAFF AGENCY,17/11/16,"1,456.70",Technical and Service Support,Human Resources
800087058,ADECCO UK LIMITED=============,27482937,1,"1,456.70",FRS STAFF AGENCY,17/11/16,"1,456.70",Technical and Service Support,Human Resources
141675,THAMES WATER UTILITIES LTD====,2796831119K,1,401.44,WATER & SEWERAGE RATES,17/11/16,401.44,Technical and Service Support,Utilities
141116G,DRAEGER SAFETY UK LIMITED=====,2910061535,1,123.03,PROTECTIVE EQUIPT - PARTS,17/11/16,778.43,Technical and Service Support,Fire & Rescue
141116G,DRAEGER SAFETY UK LIMITED=====,2910061535,2,655.40,PROTECTIVE EQUIPT - PARTS,17/11/16,,Technical and Service Support,Fire & Rescue
141675,EDF ENERGY===================,3015210000D,1,"1,356.94",ELECTRICITY,17/11/16,"1,356.94",Technical and Service Support,Utilities
101116G,CIPFA BUSINESS,3122313,1,750.00,PROFESSIONAL DEVELOPMENT,17/11/16,750.00,Finance Services,Human Resources
111116C,BRISTOL UNIFORMS LTD==========,360628,1,"1,508.80",CLOTHING,17/11/16,"1,508.80",Central Operations,Clothing
101116G,FIRE PROTECTION ASSOCIATION===,397,1,700.00,PROFESSIONAL DEVELOPMENT,17/11/16,700.00,Fire Safety Regulation,Education
071116G,CVS INTERNATIONAL,40230,1,780.00,DAY TO DAY MINOR IMPS,17/11/16,780.00,Property PFI,Human Resources
071116G,PCS CONSULTING SERVICES LTD===,4029,1,364.53,PROF FEES-MISCELLANEOUS,17/11/16,364.53,Technical and Service Support,"Works - Construction, R&M"
141116G,DEALERSHIP SERVICES LTD,4706,1,94.75,CLOTHING,17/11/16,471.50,Cadets,Clothing
141116G,DEALERSHIP SERVICES LTD,4706,2,159.60,CLOTHING,17/11/16,,Cadets,Clothing
141116G,DEALERSHIP SERVICES LTD,4706,3,21.45,CLOTHING,17/11/16,,Cadets,Clothing
141116G,DEALERSHIP SERVICES LTD,4706,4,28.85,CLOTHING,17/11/16,,Cadets,Clothing
141116G,DEALERSHIP SERVICES LTD,4706,5,28.85,CLOTHING,17/11/16,,Cadets,Clothing
141116G,DEALERSHIP SERVICES LTD,4706,6,138.00,CLOTHING,17/11/16,,Cadets,Clothing
141116G,DEALERSHIP SERVICES LTD,4758,1,14.85,CLOTHING,17/11/16,251.45,Cadets,Clothing
141116G,DEALERSHIP SERVICES LTD,4758,2,14.85,CLOTHING,17/11/16,,Cadets,Clothing
141116G,DEALERSHIP SERVICES LTD,4758,3,31.00,CLOTHING,17/11/16,,Cadets,Clothing
141116G,DEALERSHIP SERVICES LTD,4758,4,59.85,CLOTHING,17/11/16,,Cadets,Clothing
141116G,DEALERSHIP SERVICES LTD,4758,5,115.40,CLOTHING,17/11/16,,Cadets,Clothing
141116G,DEALERSHIP SERVICES LTD,4758,6,15.50,CLOTHING,17/11/16,,Cadets,Clothing
101116G,FAHEY BUILDERS LTD============,5380,1,"5,056.00",PLANNED BUILDING DECORATIONS,17/11/16,"5,056.00",Technical and Service Support,"Works - Construction, R&M"
071116G,THE HEIGHTEC GROUP LTD========,53945,1,"1,169.64",PROTECTIVE EQUIPMENT,17/11/16,"2,969.07",Technical and Service Support,Fire & Rescue
071116G,THE HEIGHTEC GROUP LTD========,53945,2,"1,799.43",PROTECTIVE EQUIPMENT,17/11/16,,Technical and Service Support,Fire & Rescue
141675,THAMES WATER UTILITIES LTD====,5407351094K,1,449.24,WATER & SEWERAGE RATES,17/11/16,449.24,Technical and Service Support,Utilities
111116C,KNIGHTON CLEANING SERVICES LTD,55745,1,"1,000.00",REACTIVE CLEANING,17/11/16,"1,000.00",Technical and Service Support,Cleaning & Janitorial
800091247,*OCS GROUP UK LTD,5800025290,1,"4,493.25",REFRESHMENTS,17/11/16,"4,493.25",Communications,Catering
800090661,HAYS SPECIALIST RECRUITMENT,630294,1,419.44,FRS STAFF AGENCY,17/11/16,419.44,Fire Safety Regulation,Human Resources
800090642,HAYS SPECIALIST RECRUITMENT,630295,1,969.52,FRS STAFF AGENCY,17/11/16,969.52,Technical and Service Support,Human Resources
800090651,HAYS SPECIALIST RECRUITMENT,630296,1,374.50,FRS STAFF AGENCY,17/11/16,374.50,HR Management,Human Resources
800090660,HAYS SPECIALIST RECRUITMENT,630297,1,508.90,FRS STAFF AGENCY,17/11/16,508.90,Legal & Democratic Services,Human Resources
800090684,HAYS SPECIALIST RECRUITMENT,630298,1,434.42,FRS STAFF AGENCY,17/11/16,434.42,Procurement,Human Resources
800090668,HAYS SPECIALIST RECRUITMENT,630299,1,524.30,FRS STAFF AGENCY,17/11/16,524.30,Fire Safety Regulation,Human Resources
800090652,HAYS SPECIALIST RECRUITMENT,630300,1,524.30,FRS STAFF AGENCY,17/11/16,524.30,Fire Safety Regulation,Human Resources
800090673,HAYS SPECIALIST RECRUITMENT,630302,1,479.36,FRS STAFF AGENCY,17/11/16,479.36,Fire Stations (South East),Human Resources
800090653,HAYS SPECIALIST RECRUITMENT,630303,1,"1,068.55",FRS STAFF AGENCY,17/11/16,"1,068.55",Technical and Service Support,Human Resources
800090649,HAYS SPECIALIST RECRUITMENT,630305,1,807.90,FRS STAFF AGENCY,17/11/16,807.90,National Operational Guidance Project,Human Resources
800090644,HAYS SPECIALIST RECRUITMENT,630306,1,524.30,FRS STAFF AGENCY,17/11/16,524.30,Fire Safety Regulation,Human Resources
800090671,HAYS SPECIALIST RECRUITMENT,630307,1,924.84,FRS STAFF AGENCY,17/11/16,924.84,Review of Property Services,Human Resources
800090670,HAYS SPECIALIST RECRUITMENT,630308,1,610.75,FRS STAFF AGENCY,17/11/16,610.75,Procurement,Human Resources
800090666,HAYS SPECIALIST RECRUITMENT,630309,1,465.28,FRS STAFF AGENCY,17/11/16,465.28,Fire Stations (South West),Human Resources
800090672,HAYS SPECIALIST RECRUITMENT,630310,1,524.30,FRS STAFF AGENCY,17/11/16,524.30,Fire Safety Regulation,Human Resources
800090669,HAYS SPECIALIST RECRUITMENT,630311,1,524.30,FRS STAFF AGENCY,17/11/16,524.30,HR Management,Human Resources
800090678,HAYS SPECIALIST RECRUITMENT,630312,1,366.14,FRS STAFF AGENCY,17/11/16,366.14,Technical and Service Support,Human Resources
800090679,HAYS SPECIALIST RECRUITMENT,630313,1,628.75,FRS STAFF AGENCY,17/11/16,628.75,Health and Safety,Human Resources
800090680,HAYS SPECIALIST RECRUITMENT,630314,1,895.10,FRS STAFF AGENCY,17/11/16,895.10,Technical and Service Support,Human Resources
800090643,HAYS SPECIALIST RECRUITMENT,630315,1,"1,584.15",FRS STAFF AGENCY,17/11/16,"1,584.15",Procurement,Human Resources
800090647,HAYS SPECIALIST RECRUITMENT,630316,1,781.83,FRS STAFF AGENCY,17/11/16,781.83,Information and Communication Technology,Human Resources
800090658,HAYS SPECIALIST RECRUITMENT,630317,1,419.44,FRS STAFF AGENCY,17/11/16,419.44,Fire Safety Regulation,Human Resources
800090641,HAYS SPECIALIST RECRUITMENT,630318,1,"1,670.96",FRS STAFF AGENCY,17/11/16,"1,670.96",Corporate Management Team,Human Resources
800090645,HAYS SPECIALIST RECRUITMENT,630319,1,"1,076.60",FRS STAFF AGENCY,17/11/16,"1,076.60",Development and Training,Human Resources
800090685,HAYS SPECIALIST RECRUITMENT,630321,1,475.25,FRS STAFF AGENCY,17/11/16,475.25,Procurement,Human Resources
800090656,HAYS SPECIALIST RECRUITMENT,630323,1,373.38,FRS STAFF AGENCY,17/11/16,373.38,Procurement,Human Resources
800090646,HAYS SPECIALIST RECRUITMENT,630325,1,524.30,FRS STAFF AGENCY,17/11/16,524.30,HR Management,Human Resources
800090650,HAYS SPECIALIST RECRUITMENT,630326,1,357.63,FRS STAFF AGENCY,17/11/16,357.63,Central Operations,Human Resources
800090682,HAYS SPECIALIST RECRUITMENT,630327,1,527.80,FRS STAFF AGENCY,17/11/16,527.80,Fire Stations (South West),Human Resources
800090674,HAYS SPECIALIST RECRUITMENT,630328,1,277.13,FRS STAFF AGENCY,17/11/16,277.13,Fire Safety Regulation,Human Resources
800090663,HAYS SPECIALIST RECRUITMENT,630329,1,733.60,FRS STAFF AGENCY,17/11/16,733.60,Information and Communication Technology,Human Resources
800090675,HAYS SPECIALIST RECRUITMENT,630330,1,876.75,FRS STAFF AGENCY,17/11/16,876.75,Technical and Service Support,Human Resources
800090657,HAYS SPECIALIST RECRUITMENT,630331,1,385.74,FRS STAFF AGENCY,17/11/16,385.74,Fire Safety Regulation,Human Resources
800090686,HAYS SPECIALIST RECRUITMENT,630332,1,707.70,FRS STAFF AGENCY,17/11/16,707.70,Communications,Human Resources
800090681,HAYS SPECIALIST RECRUITMENT,630333,1,478.02,FRS STAFF AGENCY,17/11/16,478.02,Cadets,Human Resources
800090654,HAYS SPECIALIST RECRUITMENT,630334,1,527.80,FRS STAFF AGENCY,17/11/16,527.80,Procurement,Human Resources
800090676,HAYS SPECIALIST RECRUITMENT,630335,1,554.40,FRS STAFF AGENCY,17/11/16,554.40,Information and Communication Technology,Human Resources
800090677,HAYS SPECIALIST RECRUITMENT,630336,1,"1,545.12",FRS STAFF AGENCY,17/11/16,"1,545.12",Legal & Democratic Services,Human Resources
800090665,HAYS SPECIALIST RECRUITMENT,630337,1,621.95,FRS STAFF AGENCY,17/11/16,621.95,Legal & Democratic Services,Human Resources
800090664,HAYS SPECIALIST RECRUITMENT,630338,1,476.84,FRS STAFF AGENCY,17/11/16,476.84,Strategy & Inclusion,Human Resources
800090648,HAYS SPECIALIST RECRUITMENT,630339,1,741.30,FRS STAFF AGENCY,17/11/16,741.30,Information Management,Human Resources
800090655,HAYS SPECIALIST RECRUITMENT,630340,1,"1,534.05",FRS STAFF AGENCY,17/11/16,"1,534.05",Strategy & Inclusion,Human Resources
800090659,HAYS SPECIALIST RECRUITMENT,630341,1,616.00,FRS STAFF AGENCY,17/11/16,616.00,Information and Communication Technology,Human Resources
800090690,HAYS SPECIALIST RECRUITMENT,630343,1,419.44,FRS STAFF AGENCY,17/11/16,419.44,Fire Safety Regulation,Human Resources
800090689,HAYS SPECIALIST RECRUITMENT,630345,1,503.00,FRS STAFF AGENCY,17/11/16,503.00,Health and Safety,Human Resources
800090688,HAYS SPECIALIST RECRUITMENT,630347,1,527.80,FRS STAFF AGENCY,17/11/16,527.80,Procurement,Human Resources
800090691,HAYS SPECIALIST RECRUITMENT,630348,1,515.04,FRS STAFF AGENCY,17/11/16,515.04,Legal & Democratic Services,Human Resources
141675,THAMES WATER UTILITIES LTD====,6599032529L,1,974.33,ELECTRICITY,17/11/16,974.33,Technical and Service Support,Utilities
021116S,WILLIAM SUGDEN & SONS LTD=====,66327,1,"1,570.00",UNIFORMS - POMS,17/11/16,"1,570.00",Procurement,Clothing
021116S,VODAFONE LIMITED==============,81899442,1,"8,550.00",CELLULAR TELEPHONES,17/11/16,"8,550.00",Information and Communication Technology,ICT
141675,EDF ENERGY===================,8315210000D,1,148.64,ELECTRICITY,17/11/16,"2,972.85",Technical and Service Support,Utilities
141675,EDF ENERGY===================,8315210000D,2,"2,824.21",ELECTRICITY,17/11/16,,Technical and Service Support,Utilities
141675,THAMES WATER UTILITIES LTD====,9860242378K,1,"1,265.71",WATER & SEWERAGE RATES,17/11/16,"1,265.71",Technical and Service Support,Utilities
141116G,*XMA LTD,AS94128,1,84.20,CELLULAR TELEPHONES,17/11/16,252.60,Information and Communication Technology,ICT
141116G,*XMA LTD,AS94128,2,168.40,CELLULAR TELEPHONES,17/11/16,,Information and Communication Technology,ICT
141675,ROYAL BOROUGH OF GREENWICH,CSFI048,1,"9,995.00",FIRE AUTHS GRANT PAYMENTS,17/11/16,"9,995.00",Community Safety Investment Fund,Statutory Bodies
141675,SUTTON HOUSING PARTNERSHIP LTD,CSIF038,1,"7,000.00",FIRE AUTHS GRANT PAYMENTS,17/11/16,"7,000.00",Community Safety Investment Fund,Housing Management
141675,SUTTON HOUSING PARTNERSHIP LTD,CSIF039,1,"1,200.00",FIRE AUTHS GRANT PAYMENTS,17/11/16,"1,200.00",Community Safety Investment Fund,Housing Management
141116G,HALL FUELS,I08751613,1,"2,694.00",FUEL,17/11/16,"2,694.00",Fire Stations (North East),Vehicle Management
141116G,HALL FUELS,I08811520,1,"1,888.80",FUEL,17/11/16,"1,888.80",Fire Stations (North West),Vehicle Management
091116G,HALL FUELS,I08811521,1,"1,888.80",FUEL,17/11/16,"1,888.80",Fire Stations (South West),Vehicle Management
111116C,CAPITA BUSINESS SERVICES LTD==,INV-39544,1,"2,500.00",PROFESSIONAL DEVELOPMENT,17/11/16,"2,500.00",Fire Safety Regulation,ICT
101116G,THE COOK & THE BUTLER,OCT 13,1,"3,546.00",REFRESHMENTS,17/11/16,"3,546.00",Exercise Unified Response,Catering
011116G,ULTIMA BUSINESS SOLUTIONS=====,OP/I111747,1,"5,312.50",MAINTENANCE & SUPPORT,17/11/16,"5,525.00",Information and Communication Technology,ICT
011116G,ULTIMA BUSINESS SOLUTIONS=====,OP/I111747,2,212.50,MAINTENANCE & SUPPORT,17/11/16,,Information and Communication Technology,ICT
011116G,ULTIMA BUSINESS SOLUTIONS=====,OP/I111748,1,850.00,MAINTENANCE & SUPPORT,17/11/16,850.00,Information and Communication Technology,ICT
101116G,NATIONAL EXHIBITION CENTRE,OP/I375419,1,262.20,GENERAL,17/11/16,262.20,National Operational Guidance Project,Human Resources
091116G,PULLMAN MOTORS================,PULL396,1,900.00,OPERATIONAL EQUIP-PURCHASE,17/11/16,900.00,Procurement,Vehicle Management
091116G,PULLMAN MOTORS================,PULL398,1,400.00,OPERATIONAL EQUIP-PURCHASE,17/11/16,400.00,Procurement,Vehicle Management
101116G,RADIOCOMS SYSTEMS LIMITED=====,RSLSI16005495,1,986.00,PURCHASE,17/11/16,996.00,Information and Communication Technology,ICT
101116G,RADIOCOMS SYSTEMS LIMITED=====,RSLSI16005495,2,10.00,PURCHASE,17/11/16,,Information and Communication Technology,ICT
101116G,HUNTER LODGE==================,S-017090,1,435.00,ADVERTISING,17/11/16,445.00,Development and Training,Facilities & Management S
101116G,HUNTER LODGE==================,S-017090,2,10.00,ADVERTISING,17/11/16,,HR Management,Facilities & Management S
041116G,SECURITAS SECURITY SERVICES LT,S-SIN0438930,1,"336,910.55",GENERAL,17/11/16,"336,910.55",Procurement,Fire & Rescue
101116G,HUNTER LODGE==================,SI-06347,1,360.00,ADVERTISING,17/11/16,360.00,Procurement,Facilities & Management S
091116G,HUNTER LODGE==================,SI-06353,1,"1,563.00",ADVERTISING,17/11/16,"1,563.00",Procurement,Facilities & Management S
902691,THERMO FISHER SCIENTIFIC MESST,RSI 506399,1,"6,050.00",REPAIR & MAINTENANCE,18/11/16,"6,083.30",Technical and Service Support,Environmental Services
902691,THERMO FISHER SCIENTIFIC MESST,RSI 506399,2,33.30,REPAIR & MAINTENANCE,18/11/16,,Technical and Service Support,Environmental Services
161116G,GARRAN LOCKERS LTD============,0000015205,1,467.50,OFFICE FURNITURE,21/11/16,467.50,Fire Stations (North East),Furniture
071116G,HEALTH MANAGEMENT LIMITED=====,0000100759,1,250.00,THIRD PARTY REPORTS,21/11/16,"1,403.00",HR Management,Healthcare
071116G,HEALTH MANAGEMENT LIMITED=====,0000100759,2,200.00,THIRD PARTY REPORTS,21/11/16,,HR Management,Healthcare
071116G,HEALTH MANAGEMENT LIMITED=====,0000100759,3,250.00,THIRD PARTY REPORTS,21/11/16,,HR Management,Healthcare
071116G,HEALTH MANAGEMENT LIMITED=====,0000100759,4,703.00,THIRD PARTY REPORTS,21/11/16,,HR Management,Healthcare
031116C,HEALTH MANAGEMENT LIMITED=====,0000155223,1,"116,467.37",OHS CONTRACT,21/11/16,"116,467.37",HR Management,Healthcare
161116G,KONICA MINOLTA BUSINESS,1127249590,1,1.93,OFFICE EQUIPMENT,21/11/16,"6,112.96",Communications,ICT
161116G,KONICA MINOLTA BUSINESS,1127249590,2,157.32,OFFICE EQUIPMENT,21/11/16,,Communications,ICT
161116G,KONICA MINOLTA BUSINESS,1127249590,3,182.35,OFFICE EQUIPMENT,21/11/16,,Communications,ICT
161116G,KONICA MINOLTA BUSINESS,1127249590,4,"2,179.47",OFFICE EQUIPMENT,21/11/16,,Communications,ICT
161116G,KONICA MINOLTA BUSINESS,1127249590,5,158.57,OFFICE EQUIPMENT,21/11/16,,Communications,ICT
161116G,KONICA MINOLTA BUSINESS,1127249590,6,"3,317.07",OFFICE EQUIPMENT,21/11/16,,Communications,ICT
161116G,KONICA MINOLTA BUSINESS,1127249590,7,116.25,OFFICE EQUIPMENT,21/11/16,,Communications,ICT
161116G,OPERATIONAL RESEARCH IN HEALTH,115B/LFB2/1K,1,"8,937.81",CONSULTANTS,21/11/16,"8,937.81",Information Management,Consultancy
161116G,SILVERSANDS LIMITED===========,124313,1,"1,900.00",MAINTENANCE & SUPPORT,21/11/16,"1,900.00",Information and Communication Technology,ICT
161116G,RESPIREX======================,156975,1,325.00,OPERATIONAL EQUIP-PURCHASE,21/11/16,975.00,Operational Policy,Clothing
161116G,RESPIREX======================,156975,2,650.00,OPERATIONAL EQUIP-PURCHASE,21/11/16,,Operational Policy,Clothing
161116G,RESPIREX======================,157774,1,"2,643.80",OPERATIONAL EQUIP-PURCHASE,21/11/16,"2,643.80",Operational Policy,Clothing
151116F,UK TAPES LTD==================,159812,1,"1,230.00",GENERAL CONSUMABLES,21/11/16,"1,230.00",Procurement,Health & Safety
041116G,BURKE HUNTER ADAMS LLP,16/083,1,"4,050.00",PROF FEES-MISCELLANEOUS,21/11/16,"4,050.00",Technical and Service Support,Consultancy
141678,IRG ADVISORS LLP,16002310SJM50815,1,"2,125.00",ADVERTISING,21/11/16,"2,125.00",Corporate Management Team,Human Resources
902692,SLI.DO S. R. O.,16102184,1,551.00,GENERAL,21/11/16,551.00,National Operational Guidance Project,Fire & Rescue
800091268,TOTAL SUPPORT SERVICES,161113,1,626.40,REACTIVE APPLIANCE BAY DOORS,21/11/16,826.40,Technical and Service Support,Works - Construction
800091268,TOTAL SUPPORT SERVICES,161113,2,200.00,REACTIVE APPLIANCE BAY DOORS,21/11/16,,Technical and Service Support,Works - Construction
161116G,IRON MOUNTAIN (UK) LTD========,16209151,1,"2,544.13",MAINTENANCE & SUPPORT,21/11/16,"2,544.13",Information and Communication Technology,ICT
161116G,IRON MOUNTAIN (UK) LTD========,16209990,1,"2,694.79",MAINTENANCE & SUPPORT,21/11/16,"2,694.79",Information and Communication Technology,ICT
081116G,THE WYEDEAN WEAVING COMPANY LD,18246,1,329.00,UNIFORMS - POMS,21/11/16,329.00,Procurement,Clothing
